Workbook

Sheet Cover Page
D1: Add company logo
N2: SEPA v1
B8: Add photo
N13: Notes:
N14: This template may require adjustments by individual operators to meet specific reporting requirements as defined in the site Permit(s)
B29: Annual Performance Report 2023
B31: Permit PPC/A/1150156
B33: Levenseat Renewable Energy Limited (LREL)
B35: LREL
B37: LREL
B39: Year: | C39: 2023
B41: Address: | C41: By Forth, Lanark ML11 8EP
B43: Tel:
B45: Email:
B47: Prepared by: | C47: REDACTED | F47: Position: | G47: REDACTED
B49: Approved by: | C49: REDACTED | F49: Position: | G49: REDACTED
B51: Version: | C51: 1
B53: Issue Date: | C53: 2024-01-31

Sheet Contents
A1: =+'Cover Page'!$B$29 -> Annual Performance Report 2023 | E1: =+'Cover Page'!$B$33 -> Levenseat Renewable Energy Limited (LREL)
A3: Contents | K3: Notes:
A4: Section | B4: Subject | H4: Page | K4: Section references and Page nos. to be inserted
A5: 1 | B5: Facility Information | H5: 3 | K5: Sections and Subjects may require adjustment by individual operators to meet specific reporting requirements as defined in the sites Permit(s)
A6: 2 | B6: EfW Operational Data | H6: 4
A7: 3 | B7: MRFP Operational Data | H7: 8
A8: 4 | B8: Operational Summary | H8: 10
A9: 5 | B9: Performance Form 1 | H9: 11
A10: 6 | B10: Energy Form 1 | H10: 13
A11: 7 | B11: Permit Compliance | H11: 14
A12: 8 | B12: Improvements | H12: 16
A13: 9 | B13: Public Liasion | H13: 17
A14: 10 | B14: Residue Quality - Optional | H14: 18
A15: 11 | B15: Emissions to Water | H15: 19
A16: 12 | B16: Emissions to Air (periodically monitored) | H16: 20
A17: 13 | B17: Emissions to Air (continuously monitored) | H17: 24
A18: 14 | B18: Hydrogen Chloride emissions | H18: 26
A19: 15 | B19: Sulphur Dioxdie emsissions | H19: 27
A20: 16 | B20: Oxides of Notrigen emissions | H20: 28
A21: 17 | B21: Total Organic Carbon emissions | H21: 29
A22: 18 | B22: Particulate Matter emissions | H22: 30
A23: 19 | B23: Carbon Monoxide emissions 0.5 hourly | H23: 31
A24: 20 | B24: Carbon Monoxide emissions 95% 10 min | H24: 32
A25: 21 | B25: Ammonia emissions | H25: 33
A28: Version Control
A29: Section | B29: Information | H29: Date
A30: V1 | B30: Submitted | H30: 2024-01-31
A36: Distribution
A37: Copy | B37: Name, Role | H37: No.
A46: This report is required under the Industrial Emissions Directive’s Article 55(2) requirements on reporting and public information on waste incineration plants and co-incineration plants, which require the operator to produce an annual report on the functioning and monitoring of the plant and make it available to the public.

Sheet Facility Info
A1: =+'Cover Page'!$B$29 -> Annual Performance Report 2023 | E1: =+'Cover Page'!$B$33 -> Levenseat Renewable Energy Limited (LREL)
A3: Plant Description and Design | K3: Notes:
A5: Levenseat Renewable Energy Ltd (LREL) are the owners of a thermal Energy from Waste (EfW) plant with a capacity of c.110,000 tonnes per annum of Refuse Derived Fuel (“RDF”), and an adjacent Materials Recycling Facility (“MRF”) with capacity of 250,000 tonnes of unsorted mixed residual waste per annum. The plant is located in West Lothian near Forth in Central Scotland. The EfW plant generates electricity for export to the grid as well as providing steam to be utilised as renewable heat in a drying facility located at the MRF. The EfW will generate c.13MWh of electricity and will export c.10.5 MWh. The site is split into four distinct areas;  The MRF building  The gasification building (EfW)  The hardstanding area located between the two  The external tank and structures which form part of the processing equipment | K5: Include summary of plant design, design capacity, no. of combustion lines, electrical and heat capacity and any other general information that descibes the facility, its location and purpose
A20: Summary of Operational Processes and Procedures
A22: The key processes in the MRFP are: Pre-treatment of Commercial, Industrial and Minicipal into Solid Recovered Fuel (SRF) and Refuse Derived Fuel (RDF) for incineration, comprising of conveyors, trommels, manual sorting, bunkers, shredders, magnets, eddy currents, optical sorting units, ballistic separators and baling units. The key proceesses in the EfW are: the delivery, receipt, storage and incineration (disposal) of RDF. The plant consists of a single stage fluidised bed reactor comprising an initial primary gasification zone, a secoundary cumbustion zone within the staged fluidized bed gasifier, boiler water treatment; a heat recovery and electricity generation system comprising: a Waste Heat Recovery Boiler, with superheater bundles, that produce steam to drive a 'CHP enabled' turbine unit, an Air Cooled Condenser, and an Economiser. | K22: Include summary of key processes and procedures such as (but not limited to); waste reception, control rooms, grate, bed and bolier, energy & heat generation, cooling systems, residue management, emission controls, health and safety systems, maintenance

Sheet EfW Operational Data
A1: =+'Cover Page'!$B$29 -> Annual Performance Report 2023 | E1: =+'Cover Page'!$B$33 -> Levenseat Renewable Energy Limited (LREL)
A3: Operational Data | K3: Notes:
A4: Plant Size | B4: 96795 | D4: tonnes pa | E4: 46.5 | F4: MWth | G4: 10.509 | H4: MWe | K4: * - RDF to include SRF
A5: No. of combustion lines | B5: 1 | D5: No. of Turbines: | F5: 1 | K5: ** - CHP plants only
A7: Waste types received | B7: Unit | C7: Q1 | D7: Q2 | E7: Q3 | F7: Q4 | G7: Year Total | H7: %
A8: Household / Local Authority | B8: tonnes | G8: =SUM(C8:F8) -> 0 | H8: =IF(G8>0,G8/$G$18,"-") -> - | K8: Availabiity Definition: 'the availability of a line is to be calculated by the number of hours the line reported Continuously Monitored emission levels to the Regulator through the calendar year divided by the total number of hours in that year. The overall plant availability is calculated as the Mean of all lines in the plant. For clarity this includes periods of Other Than Normal Operating Conditions (OTNOC) and abnormal operation.' Rationale: The primary function of an Energy from Waste facility is the disposal of waste. It follows therefore that the availability of a plant is determined by the period of time a facility spends undertaking this activity.
A9: Commercial & Industrial | G9: =SUM(C9:F9) -> 0 | H9: -
A10: Hazardous | G10: 0 | H10: -
A11: Clinical | G11: 0 | H11: -
A12: Waste wood (biomass) | G12: 0 | H12: -
A13: Refuse Derived Fuel * - H'hold/LA | G13: 0 | H13: -
A14: Refuse Derived Fuel * - C&I | G14: 0 | H14: -
A15: Other [Please specify] | G15: 0 | H15: -
A16: Other [Please specify]
A17: Other [Please specify]
A18: Total waste received | C18: =SUM(C8:C17) -> 0 | D18: =SUM(D8:D17) -> 0 | E18: =SUM(E8:E17) -> 0 | F18: =SUM(F8:F17) -> 0 | G18: =SUM(G8:G17) -> 0 | H18: 1
A19: Rejected Waste | G19: =SUM(C19:F19) -> 0 | H19: =IF(G19>0,G19/$G$18,"-") -> -
A20: Unprocessed waste transferred out | C20: =C18-C21 -> -16315.72348 | D20: =D18-D21 -> -13046.49047 | E20: -10791.16483 | F20: -18164.29272 | G20: =SUM(C20:F20) -> -58317.6715 | H20: =IF(G20>0,G20/$G$18,"-") -> -
A21: Total waste combusted | C21: 16315.72348 | D21: 13046.49047 | E21: 10791.16483 | F21: 18164.29272 | G21: =SUM(C21:F21) -> 58317.6715 | H21: =IF(G21>0,G21/$G$18,"-") -> 
A23: Energy Useage / Export | B23: Unit | C23: Q1 | D23: Q2 | E23: Q3 | F23: Q4 | G23: Year Total | H23: KWh/te
A24: Power Generated | B24: MWh | C24: 12865.6495 | D24: 10465.1207 | E24: 8740.259172 | F24: 14434.16189 | G24: =SUM(C24:F24) -> 46505.19126 | H24: =IF(G24>0,G24*1000/$G$21,"-") -> 797.4459553
A25: Power Exported | C25: 9207.225189 | D25: 7606.350098 | E25: 6116.200638 | F25: 10393.87733 | G25: =SUM(C25:F25) -> 33323.65326 | H25: =IF(G25>0,G25*1000/$G$21,"-") -> 571.416046
A26: Power Used on site | C26: =C27+C24-C25 -> 4855.824583 | D26: =D27+D24-D25 -> 4426.645721 | E26: =E27+E24-E25 -> 4404.882753 | F26: =F27+F24-F25 -> 15275.33436 | G26: =SUM(C26:F26) -> 28962.68742 | H26: =IF(G26>0,G26*1000/$G$21,"-") -> 496.6365541
A27: Power Imported | C27: 1197.400269 | D27: 1567.875122 | E27: 1780.824219 | F27: 11235.0498 | G27: =SUM(C27:F27) -> 15781.14941 | H27: =IF(G27>0,G27*1000/$G$21,"-") -> 270.6066447
A28: Parasitic Load | B28: % | C28: =IF(C24>0,C26/(C24+C27),"-") -> 0.3452895824 | D28: =IF(D24>0,D26/(D24+D27),"-") -> 0.3678756137 | E28: =IF(E24>0,E26/(E24+E27),"-") -> 0.4186719741 | F28: =IF(F24>0,F26/(F24+F27),"-") -> 0.5950838904 | G28: =IF(G24>0,G26/(G24+G27),"-") -> 0.4649925987
A29: Thermal Energy Produced ** | B29: MWh | C29: 54387 | D29: 43487 | E29: 38967 | F29: 60547 | G29: =SUM(C29:F29) -> 197388 | H29: =IF(G29>0,G29*1000/$G$21,"-") -> 3384.70304
A30: Thermal Energy Exported ** | C30: 134.2170094 | D30: 54.75608459 | E30: 42.90267732 | F30: 61.39574747 | G30: =SUM(C30:F30) -> 293.2715188 | H30: =IF(G30>0,G30*1000/$G$21,"-") -> 5.028861943
A31: R1 value | G31: Design / Operational / n/a
A33: Waste Disposal & Recovery | B33: Unit | C33: Q1 | D33: Q2 | E33: Q3 | F33: Q4 | G33: Year Total | H33: % inputs
A34: APCRO | B34: tonnes | C34: 1008.26 | D34: 855.16 | E34: 702.1 | F34: 1150.58 | G34: =SUM(C34:F34) -> 3716.1 | H34: =IF(G34>0,G34/$G$21,"-") -> 0.06372167997
A35: FBMO | C35: 212.98 | D35: 87.78 | E35: 65.06 | F35: 92.46 | G35: 458.28 | H35: =IF(G35>0,G35/$G$21,"-") -> 0.007858338446
A36: IBAO | C36: 442.34 | D36: 390 | E36: 329.04 | F36: 492.94 | G36: 1654.32 | H36: 0.02836738775
A37: MCWO | G37: 0 | H37: -
A38: RDF | C38: 0 | D38: 0 | E38: 0 | F38: 0 | G38: 0 | H38: -
A39: SLAGO | C39: 0 | D39: 0 | E39: 0 | F39: 0 | G39: 0 | H39: -
A40: TRAMPMO | C40: 45.2 | D40: 28.14 | E40: 24.72 | F40: 37.74 | G40: =SUM(C40:F40) -> 135.8 | H40: 0.002328625209
A41: TRAMPO | C41: 612.6 | D41: 1013.58 | E41: 294.6 | F41: 715 | G41: =SUM(C41:F41) -> 2635.78 | H41: 0.04519693486
A42: Effluent | G42: =SUM(C42:F42) -> 0 | H42: -
A44: Raw Material Usage | B44: Unit | C44: Q1 | D44: Q2 | E44: Q3 | F44: Q4 | G44: Year Total | H44: kg or Ltr /te
A45: Mains Water | B45: ltrs | C45: 7535000 | D45: 6423000 | E45: 10649000 | F45: 10757 | G45: =SUM(C45:F45) -> 24617757 | H45: =IF(G45>0,G45/$G$21,"-") -> 422.1320291
A46: Other Water | B46: ltrs | G46: =SUM(C46:F46) -> 0 | H46: -
A47: Ammonia | B47: kgs | C47: 0 | D47: 0 | E47: 0 | F47: 0 | G47: =SUM(C47:F47) -> 0 | H47: -
A48: Urea | B48: kgs | C48: 46130.865 | D48: 35256.198 | E48: 25854.248 | F48: 25530.185 | G48: 132771.496 | H48: 2.276694055
A49: Activated Carbon | B49: kgs | C49: 4500 | D49: 3500 | E49: 3000 | F49: 4000 | G49: 15000 | H49: 0.2572119156
A50: Lime / hydrated lime | B50: kgs | C50: 40979.707 | D50: 52443.099 | E50: 49816.753 | F50: 37612.407 | G50: 180851.966 | H50: 3.101152041
A51: Fuel oil | B51: ltrs | C51: 311387.1724 | D51: 483516.441 | E51: 384630.2215 | F51: 712544.9841 | G51: 1892078.819 | H51: 32.44434783
A52: Gas | B52: cf | C52: 0 | D52: 0 | E52: 0 | F52: 0 | G52: 0
A53: Other | C53: 0 | D53: 0 | E53: 0 | F53: 0 | G53: 0
A55: Summary | B55: Line/Unit | C55: Q1 | D55: Q2 | E55: Q3 | F55: Q4 | G55: Year Total | J55: Hrs in year
A56: Availability of waste combustion by line, hrs | B56: =+B5 -> 1 | C56: 1178.493056 | D56: 920.7347222 | E56: 784.959751 | F56: 1213.991666 | G56: =SUM(C56:F56) -> 4098.179195 | H56: =G56/J56 -> 0.4678286752 | J56: 8760
A57: Overall Availability, mean avg. of all lines, hrs | C57: =C56 -> 1178.493056 | D57: =D56 -> 920.7347222 | E57: 784.959751 | F57: 1213.991666 | G57: =SUM(C57:F57) -> 4098.179195 | H57: =G57/J56 -> 0.4678286752
A58: Hours of turbine operations, hrs | B58: 1 | C58: 1185.722955 | D58: 1017.263155 | E58: 844.5383614 | F58: 1336.609444 | G58: =SUM(C58:F58) -> 4384.133916 | H58: =G58/J56 -> 0.5004719083
A59: Hours of heat / steam export | C59: 1313.802765 | D59: 858.7058105 | E59: 692.4453125 | F59: 859.8505859 | G59: 3724.804474 | H59: =IF(B59>0,#REF!/J56,"n/a") -> n/a
A60: Net Calorific Value of waste | B60: MJ/kg | C60: 12.46 | D60: 12.33 | E60: 13.44 | F60: 12.33 | G60: =AVERAGE(C60:F60) -> 12.64 | H60: -
A61: Abnormal Events | B61: qty. | C61: 0 | D61: 0 | E61: 0 | F61: 0 | G61: 0 | H61: =IF(G61>0,"yes","no") -> no
A62: Abnormal operation | B62: hours | C62: 0 | D62: 0 | E62: 0 | F62: 3 | G62: 3 | H62: =+(G62)/J56 -> 0.0003424657534
A63: Permit Breaches | B63: qty. | C63: 2 | D63: 2 | E63: 1 | F63: 8 | G63: 13 | H63: =IF(G63>0,"yes","no") -> yes

Sheet MRFP Operational Data
A1: =+'Cover Page'!$B$29 -> Annual Performance Report 2023 | E1: =+'Cover Page'!$B$33 -> Levenseat Renewable Energy Limited (LREL)
A3: Operational Data | K3: Notes:
A4: Plant Size | D4: tonnes pa | F4: MWth | H4: MWe | K4: * - RDF to include SRF
A5: No. of combustion lines | B5: 1 | D5: No. of Turbines: | F5: 1 | K5: ** - CHP plants only
A7: Waste types received | B7: Unit | C7: Q1 | D7: Q2 | E7: Q3 | F7: Q4 | G7: Year Total | H7: %
A8: Household / Local Authority | B8: tonnes | C8: 16861 | D8: 17380 | E8: 16627 | F8: 16457 | G8: =SUM(C8:F8) -> 67325 | H8: =IF(G8>0,G8/$G$18,"-") -> 0.4083173625 | K8: Availabiity Definition: 'the availability of a line is to be calculated by the number of hours the line reported Continuously Monitored emission levels to the Regulator through the calendar year divided by the total number of hours in that year. The overall plant availability is calculated as the Mean of all lines in the plant. For clarity this includes periods of Other Than Normal Operating Conditions (OTNOC) and abnormal operation.' Rationale: The primary function of an Energy from Waste facility is the disposal of waste. It follows therefore that the availability of a plant is determined by the period of time a facility spends undertaking this activity.
A9: Commercial & Industrial | C9: 8511 | D9: 11000 | E9: 10201 | F9: 10953 | G9: =SUM(C9:F9) -> 40665 | H9: 0.2466279324
A10: Hazardous | G10: 0 | H10: -
A11: Clinical | G11: 0 | H11: -
A12: Waste wood (biomass) | G12: 0 | H12: -
A13: Residuals (Enva and Levenseat) | C13: 15443 | D13: 17359 | E13: 11357 | F13: 12735 | G13: =SUM(C13:F13) -> 56894 | H13: 0.3450547051
A14: Refuse Derived Fuel * - C&I | G14: 0 | H14: -
A15: Other [Please specify] | G15: 0 | H15: -
A16: Other [Please specify]
A17: Other [Please specify]
A18: Total waste received | C18: =SUM(C8:C17) -> 40815 | D18: =SUM(D8:D17) -> 45739 | E18: =SUM(E8:E17) -> 38185 | F18: =SUM(F8:F17) -> 40145 | G18: =SUM(G8:G17) -> 164884 | H18: 1
A19: Rejected Waste | G19: =SUM(C19:F19) -> 0 | H19: =IF(G19>0,G19/$G$18,"-") -> -
A20: Unprocessed waste transferred out | G20: =SUM(C20:F20) -> 0 | H20: =IF(G20>0,G20/$G$18,"-") -> -
A21: Total waste combusted | C21: =C18-SUM(C19:C20) -> 40815 | D21: =D18-SUM(D19:D20) -> 45739 | E21: =E18-SUM(E19:E20) -> 38185 | F21: =F18-SUM(F19:F20) -> 40145 | G21: =SUM(C21:F21) -> 164884 | H21: =IF(G21>0,G21/$G$18,"-") -> 1
A23: Energy Useage / Export | B23: Unit | C23: Q1 | D23: Q2 | E23: Q3 | F23: Q4 | G23: Year Total | H23: KWh/te
A24: Power Generated | B24: MWh | G24: =SUM(C24:F24) -> 0 | H24: =IF(G24>0,G24*1000/$G$21,"-") -> -
A25: Power Exported | G25: =SUM(C25:F25) -> 0 | H25: =IF(G25>0,G25*1000/$G$21,"-") -> -
A26: Power Used on site | G26: =SUM(C26:F26) -> 0 | H26: =IF(G26>0,G26*1000/$G$21,"-") -> -
A27: Power Imported | G27: =SUM(C27:F27) -> 0 | H27: =IF(G27>0,G27*1000/$G$21,"-") -> -
A28: Parasitic Load | B28: % | C28: =IF(C24>0,1-C25/(C24+C27),"-") -> - | D28: =IF(D24>0,1-D25/(D24+D27),"-") -> - | E28: =IF(E24>0,1-E25/(E24+E27),"-") -> - | F28: =IF(F24>0,1-F25/(F24+F27),"-") -> - | G28: =IF(G24>0,1-G25/(G24+G27),"-") -> -
A29: Thermal Energy Produced ** | B29: MWh | G29: =SUM(C29:F29) -> 0 | H29: =IF(G29>0,G29*1000/$G$21,"-") -> -
A30: Thermal Energy Exported ** | G30: =SUM(C30:F30) -> 0 | H30: =IF(G30>0,G30*1000/$G$21,"-") -> -
A31: R1 value | G31: Design / Operational / n/a
A33: Waste Disposal & Recovery | B33: Unit | C33: Q1 | D33: Q2 | E33: Q3 | F33: Q4 | G33: Year Total | H33: % inputs
A34: fines | B34: tonnes | C34: 4535 | D34: 4866 | E34: 3916 | F34: 2787 | G34: =SUM(C34:F34) -> 16104 | H34: =IF(G34>0,G34/$G$21,"-") -> 0.09766866403
A35: heavy | C35: 618 | D35: 27 | E35: 0 | F35: 10 | G35: =SUM(C35:F35) -> 655 | H35: =IF(G35>0,G35/$G$21,"-") -> 0.00397248975
A36: inerts | C36: 2459 | D36: 3938 | E36: 3156 | F36: 3301 | G36: =SUM(C36:F36) -> 12854 | H36: =IF(G36>0,G36/$G$21,"-") -> 0.07795783702
A37: metals recycle | C37: 1355 | D37: 1542 | E37: 1364 | F37: 1333 | G37: =SUM(C37:F37) -> 5594 | H37: 0.03392688193
A38: plastic | C38: 1105 | D38: 1467 | E38: 1078 | F38: 1039 | G38: 4689 | H38: 0.02843817472
A39: rdf | C39: 28023 | D39: 31757 | E39: 27149 | F39: 30639 | G39: 117568 | H39: 0.7130346183
A40: rejects | C40: 1039 | D40: 859 | E40: 474 | F40: 642 | G40: 3014 | H40: 0.01827951772
A41: Other | G41: =SUM(C41:F41) -> 0 | H41: -
A42: Other | C42: 0 | D42: 0 | E42: 0 | F42: 0 | G42: 0 | H42: -
A43: Other | C43: 0 | D43: 0 | E43: 0 | F43: 0 | G43: 0 | H43: -
A45: Raw Material Usage | B45: Unit | C45: Q1 | D45: Q2 | E45: Q3 | F45: Q4 | G45: Year Total | H45: kg or Ltr /te
A46: Mains Water | B46: ltrs | G46: =SUM(C46:F46) -> 0 | H46: =IF(G46>0,G46/$G$21,"-") -> -
A47: Other Water | B47: m³ | C47: 1686 | D47: 1682 | E47: 1365 | F47: 1954 | G47: 6687 | H47: =IF(G47>0,G47/$G$21,"-") -> 0.04055578467
A48: Ammonia | B48: kgs | G48: 0 | H48: -
A49: Urea | B49: kgs | G49: =SUM(C49:F49) -> 0 | H49: -
A50: Activated Carbon | B50: kgs | G50: 0 | H50: -
A51: Lime / hydrated lime | B51: kgs | G51: 0 | H51: -
A52: Fuel oil | B52: ltrs | C52: 35063 | D52: 36020 | E52: 37967 | F52: 39509 | G52: 148559 | H52: 0.9009909997
A53: Gas | B53: cf | C53: 0 | D53: 0 | E53: 0 | F53: 0 | G53: 0 | H53: -
A54: Sodium Hydroxide | B54: ltrs | C54: 5000 | D54: 5000 | E54: 5000 | F54: 5000 | G54: 20000 | H54: 0.121297397
A55: Hydrogen Peroxide | B55: ltrs | C55: 5000 | D55: 5000 | E55: 5000 | F55: 5000 | G55: 20000 | H55: 0.121297397
A56: Sulphric acid | B56: ltrs | C56: 1000 | D56: 1000 | E56: 1000 | F56: 1000 | G56: 4000 | H56: 0.02425947939
A57: Other | C57: 0 | D57: 0 | E57: 0 | F57: 0 | G57: 0
A59: Summary | B59: Line/Unit | C59: Q1 | D59: Q2 | E59: Q3 | F59: Q4 | G59: Year Total | J59: Hrs in year
A60: Availability of waste combustion by line, hrs | B60: =+B5 -> 1 | G60: =SUM(C60:F60) -> 0 | H60: x % | J60: 8760
B61: 2 | G61: 0 | H61: x %
B62: 3 | G62: 0 | H62: x %
B63: 4 | G63: 0 | H63: x %
B64: 5 | G64: =SUM(C64:F64) -> 0 | H64: x %
A65: Overall Availability, mean avg. of all lines, hrs | G65: =AVERAGE(G60:G64) -> 0 | H65: x %
A66: Hours of turbine operations, hrs | B66: 1 | G66: 0 | H66: x %
A67: Hours of turbine operations, hrs | B67: 2 | G67: 0 | H67: x %
A68: Hours of heat / steam export | G68: 0 | H68: =IF(B68>0,G67/J60,"n/a") -> n/a
A69: Net Calorific Value of waste | B69: MJ/kg | H69: -
A70: Abnormal Events | B70: qty. | G70: 0 | H70: =IF(G70>0,"yes","no") -> no
A71: Abnormal operation | B71: hours | G71: 0 | H71: =+(G71)/J60 -> 0
A72: Permit Breaches | B72: qty. | G72: 0 | H72: =IF(G72>0,"yes","no") -> no

Sheet Operational Summary
A1: =+'Cover Page'!$B$29 -> Annual Performance Report 2023 | E1: =+'Cover Page'!$B$33 -> Levenseat Renewable Energy Limited (LREL)
A3: Summary of Plant Operations and Maintenance during the reporting year | K3: Notes:
A5: EfW 12 MONTH OPERATING UPDATE The EFW has delivered 46,505 MWH of genration from a fuel input of 58,318t of RDF produced from the MRF facility. The plant had three planned major outages during the year. In March the statutory pressure systems inspection was carried out on the steam raising plant and signed off by Lloyds Register, no defects reported. In July installation of replacement ductwork and dampers associated with the air and recirculating flue gas distribution systems. in November, a planned DCS upgrade was completed together with a full rebag of the bag filter modules. A number of shorter outages were carried out across the year to allow regular cleaning of the gasifier, the boiler and economiser due to slagging and fouling combined with planned and unplanned maintenance works. MRFP 12 MONTH OPERATING UPDATE The MRFP plant has run consistent from the start of the year, 164,884 tonnes of MSW / C&I have been recieved at the site in the year Plant availability averaged, across the 12 months of operation, 77% with an average throughput of 36.74 tph The plant underwent a 14 day maintenance outage in march for upgrades to C11 and other works,and a further 6-day outage in November to get all the shredders drives and pully's replaced. | K5: Include summary of key operational and/or mainteanance activity undertaken in the year, such as any major component upgrades and/or replacements
A29: Summary of Residue Handling for the reporting year
A31: APCR residues were sent off site to Augean Ltd in England (Port Clarence facility) and Enva (Dunniflats). Boiler ash residues were sent to Levenseat Ltd. for further processing and conditioning. Tramp and Bed Media residues were sent off site for disposal at Avondale landfill. | K31: Include in here a summary of residue handling regimes and destinations

Sheet Perf. Form 1
A1: =+'Cover Page'!C39 -> 2023 | B1: Annual Reporting Performance Form 1
A3: =+'Cover Page'!B31 -> Permit PPC/A/1150156 | F3: Operator: | G3: LREL
A4: Facility: | B4: =+'Cover Page'!B33:I33 -> Levenseat Renewable Energy Limited (LREL) | F4: Form: | G4: Performance 1
A6: Reporting Period from: | D6: 2023-01-01 | F6: to: | G6: 2023-12-31
A8: =+A1 -> 2023 | B8: Annual Reporting of Waste Disposal and Recovery
A9: Waste Description | C9: Disposal Route(s) | E9: Disposal Tonnes | G9: Recovery Tonnes | I9: % / tonne of waste incinerated
A10: 1) Hazardous Wastes
A11: APC Residues | C11: Enva | E11: 2298.4 | I11: =IF((E11+G11)>0,(E11+G11)/'MRFP Operational Data'!$G$21, "-") -> 0.01393949686
A12: APC Residues | C12: Aegean | E12: 1680.5 | I12: =IF((E12+G12)>0,(E12+G12)/'MRFP Operational Data'!$G$21, "-") -> 0.01019201378
A13: APC Residues | C13: Levenseat Ltd. | E13: 39.7 | I13: =IF((E13+G13)>0,(E13+G13)/'MRFP Operational Data'!$G$21, "-") -> 0.000240775333
A14: IBA | C14: Levenseat Ltd. | E14: 1588 | I14: =IF((E14+G14)>0,(E14+G14)/'MRFP Operational Data'!$G$21, "-") -> 0.009631013318
A15: IBA | C15: Enva | E15: 28.5 | I15: =IF((E15+G15)>0,(E15+G15)/'MRFP Operational Data'!$G$21, "-") -> 0.0001728487907
A16: Tramp | C16: Avondale | E16: 443.3 | I16: =IF((E16+G16)>0,(E16+G16)/'MRFP Operational Data'!$G$21, "-") -> 0.002688556804
A17: Tramp | C17: Levenseat Ltd. | E17: 1379.8 | I17: =IF((E17+G17)>0,(E17+G17)/'MRFP Operational Data'!$G$21, "-") -> 0.008368307416
A18: Bed Media | C18: Avondale | E18: 156.8 | I18: =IF((E18+G18)>0,(E18+G18)/'MRFP Operational Data'!$G$21, "-") -> 0.0009509715921
A19: Total Hazardous Waste | E19: =SUM(E11:F18) -> 7615 | G19: =SUM(G11:H18) -> 0 | I19: =IF((E19+G19)>0,(E19+G19)/'MRFP Operational Data'!$G$21, "-") -> 0.04618398389
A21: 2) Non-Hazardous Wastes
A22: Tramp Metals | C22: Levenseat Ltd. | E22: 35.4 | I22: =IF((E22+G22)>0,(E22+G22)/'MRFP Operational Data'!$G$21, "-") -> 0.0002146963926
A23: Tramp Metals | C23: Levenseat Ltd. | E23: 150 | I23: =IF((E23+G23)>0,(E23+G23)/'MRFP Operational Data'!$G$21, "-") -> 0.0009097304772
I24: =IF((E24+G24)>0,(E24+G24)/'MRFP Operational Data'!$G$21, "-") -> -
I25: =IF((E25+G25)>0,(E25+G25)/'MRFP Operational Data'!$G$21, "-") -> -
A26: Total Non-Hazardous Waste | E26: =SUM(E22:F25) -> 185.4 | G26: =SUM(G22:H25) -> 0 | I26: =IF((E26+G26)>0,(E26+G26)/'MRFP Operational Data'!$G$21, "-") -> 0.00112442687
A27: TOTAL WASTE | E27: =+E26+E19 -> 7800.4 | G27: =+G26+G19 -> 0 | I27: =IF((E27+G27)>0,(E27+G27)/'MRFP Operational Data'!$G$21, "-") -> 0.04730841076
A29: Operator’s comments :
A34: =+A1 -> 2023 | B34: Annual Reporting of Water and Other Raw Material Usage
A35: Raw Material | E35: Usage | G35: Unit | H35: Specific Useage | J35: Unit
A36: Mains Water | E36: =+'EfW Operational Data'!G45/1000 -> 24617.757 | G36: m3 | H36: =IF(E36>0,E36/'MRFP Operational Data'!$G$21,"-") -> 0.1493034922 | J36: m3/te
A37: Total Water | E37: =(+'EfW Operational Data'!G45+'EfW Operational Data'!G46)/1000 -> 24617.757 | G37: m3 | H37: =IF(E37>0,E37/'MRFP Operational Data'!$G$21,"-") -> 0.1493034922 | J37: m3/te
A38: Urea / Ammonia | E38: 215630 | G38: kg | H38: =IF(E38>0,E38/'MRFP Operational Data'!$G$21,"-") -> 1.307767885 | J38: kg/te
A39: Activated Carbon | E39: 14000 | G39: kg | H39: =IF(E39>0,E39/'MRFP Operational Data'!$G$21,"-") -> 0.08490817787 | J39: kg/te
A40: Lime / hydrated lime / Sodium Bicarb. | E40: 130700 | G40: kg | H40: =IF(E40>0,E40/'MRFP Operational Data'!$G$21,"-") -> 0.7926784891 | J40: kg/te
E41: .
A42: Operator’s comments :
A46: =+A34 -> 2023 | B46: Annual Reporting of other performance indicators
A47: Parameter | C47: Results by Line
C48: A1 | D48: A2 | E48: A3 | F48: A4 | G48: A5 | I48: Turbine 1 | J48: Turbine 2
A49: Operating hours for the year, hours | C49: 4150.406908
A50: Number of periods of abnormal operation, qty. | C50: 0
A51: Cumulative hours of abnormal operation for this year, hours | C51: 3
A53: Operator’s comments :
A57: Signed: | G57: Date:

Sheet Energy Form 1
A1: =+'Cover Page'!C39 -> 2023 | B1: Annual Reporting of Energy Usage/Export
A3: =+'Cover Page'!B31 -> Permit PPC/A/1150156 | F3: Operator: | G3: LREL
A5: Facility: | B5: =+'Cover Page'!B33:I33 -> Levenseat Renewable Energy Limited (LREL) | F5: Form: | G5: Energy 1
A7: Reporting Period from: | D7: =+'Perf. Form 1'!D6:E6 -> 2023-01-01 | F7: to: | G7: =+'Perf. Form 1'!G6:H6 -> 2023-12-31
A9: Energy Source | D9: Energy Usage | F9: Unit | G9: Specific Useage (KWh/tonne incinerated
A10: Electricity Produced | D10: =+'EfW Operational Data'!G24 -> 46505.19126 | F10: MWh | G10: 797.44
A11: Electricity Imported | D11: =+'EfW Operational Data'!G27 -> 15781.14941 | F11: MWh | G11: 270.6
A12: Electricity Exported | D12: =+'EfW Operational Data'!G25 -> 33323.65326 | F12: MWh | G12: 571.42
A13: Gas Oil | D13: 1551 | F13: tonnes | G13: 301
A14: Steam/hot water exported | D14: =+'EfW Operational Data'!G30 -> 293.2715188 | F14: MWh | G14: 5
A18: Operator’s comments :
A29: Signed: | G29: Date:

Sheet Permit Compliance
A1: =+'Cover Page'!$B$29 -> Annual Performance Report 2023 | E1: =+'Cover Page'!$B$33 -> Levenseat Renewable Energy Limited (LREL)
A3: Summary of Permit Compliance
A5: Compliance with permit limits for continuously monitored pollutants
A7: The plant met its emission limits as shown in the table below:
A8: Substance | C8: Percentage time compliant during operation | L8: Notes:
C9: *97%ile or 100%ile Half-hourly limits | F9: Daily limit | L9: Report to 2 decimal places, i.e. xx.xx% Please provide a brief summary of each notification or non-compliance in the table (rather than just referring to notifications that were sent to the Regulator). *For Half-hourly ELVS - Explain any periods when the 100%ile has not been met.
A10: Particulates
A11: Oxides of nitrogen
A12: Sulphur dioxide
A13: Carbon monoxide
A14: Total organic carbon
A15: Hydrogen chloride
A16: Hydrogen fluoride
A17: Ammonia
A19: Summary of any notifications or non-compliances under the permit
A20: Date | B20: Summary of notification or non-compliance [including Line/Reference] | E20: Reason | H20: Measures taken to prevent reoccurrence
A21: 2023-02-01 | B21: CEMS Monitoring failure (20.4.3) | E21: Failure of CEMS air conditioning unit | H21: Additional a/c unit installed
A22: 2023-02-09 | B22: Fire in tipping hall (2.5)
A23: 2023-05-08 | B23: Number of bales exceeded (17.3)
A24: 2023-06-02 | B24: Particulate matter exceedance (21.2) | E24: During start up
A25: 2023-06-11 | B25: Particulate matter exceedance (21.2) | E25: OTNOC
A26: 2023-07-07 | B26: Particulate matter exceedance (21.2) | E26: Damaged filter bag | H26: Filter bag replaced
A27: 2023-07-31 | B27: Number of bales exceeded (17.3)
A28: 2023-08-07 | B28: Fire in tipping hall (2.5)
A29: 2023-08-07 | B29: Number of bales exceeded (17.3)
A30: 2023-08-28 | B30: Number of bales exceeded (17.3)
A31: 2023-09-21 | B31: Number of bales exceeded (17.3)
A32: 2023-10-04 | B32: Effluent limit exceeded (11.2)
A33: 2023-11-12 | B33: Particulate matter exceedance (21.2) | E33: During start up
A34: 2023-11-13 | B34: Particulate matter exceedance (21.2) | E34: During start up
A35: 2023-11-19 | B35: APCR spillage (2.5) | E35: Expansion joint failure | H35: Expansion joint replaced
A36: 2023-11-19 | B36: Particulate matter exceedance (21.2) | E36: Incorrectly fitted filter bag | H36: Filter bag sealing inspected
A37: 2023-12-03 | B37: Particulate matter exceedance (6.2) | E37: Plant trip
A38: 2023-12-10 | B38: CO Exceedance (6.2) | E38: OTNOC
A39: 2023-12-23 | B39: CO Exceedance (6.2) | E39: Combustion control | H39: Changes to air/recirc gas distribution within gasifier.
A40: 2023-12-24 | B40: CO Exceedance (6.2) | E40: Combustion control | H40: Changes to air/recirc gas distribution within gasifier.
A50: Summary of any complaints received and actions to taken to resolve them.
A51: Date | B51: Summary of complaint [including Line/Reference] | E51: Reason * | H51: Measures taken to prevent reoccurrence
A52: 2023-03-08 | B52: Odour complaint from member of the public via SEPA. | E52: Unsubstantiated
E57: * including whether substantiated by the operator or SEPA

Sheet Improvements
A1: =+'Cover Page'!$B$29 -> Annual Performance Report 2023 | E1: =+'Cover Page'!$B$33 -> Levenseat Renewable Energy Limited (LREL)
A3: Summary of Plant Improvements
A5: Summary of any efficiency improvements that have been completed within the year.
A6: 1) MRFP extra magnets on the sub 60mm line to protect the dryer from batteries and vapes and extra magnet on C94 to remove more ferrous from the fuel. 2) EfW recovery of demin water plant waste stream to flue gas cleaning scrubber water, saving approx 20m3/ day raw water consumption.
A16: Summary of any permit improvement conditions that have been completed within the year and the resulting environmental benefits.
A17: 1) EfW upgrade to CEMS units to include continuous monitoring of N2O. 2) EfW CEMS Data Acquisition and Handling System amended to incorporate new lower limits for continuously monitored emissions to air as per permit issued on 3rd December 2023.
A27: Summary of any changes to the plant or operating techniques which required a variation to the permit and a summary of the resulting environmental impact.
A38: Summary of any other improvements made to the plant or planned to be made and a summary of the resulting environmental benefits.

Sheet Public Liasion
A1: =+'Cover Page'!$B$29 -> Annual Performance Report 2023 | E1: =+'Cover Page'!$B$33 -> Levenseat Renewable Energy Limited (LREL)
A3: Details of Public & Stakeholder Liasion
A5: Summary of events held during the reporting year.
A6: Date | C6: Description
A7: 2023-05-25 | C7: Comminity Liason Group Meeting held at the EfW.
A16: List of events planned for next year
A17: Date | C17: Description
A18: 2024-05-01 | C18: Community Liason Group meeting planned. Date yet to be confirmed.
A29: If you wish to be involved in the public liasion programme, please contact REDACTED@levenseat.co.uk_____________

Sheet Residue Quality
A1: =+'Cover Page'!$B$29 -> Annual Performance Report 2023 | E1: =+'Cover Page'!$B$33 -> Levenseat Renewable Energy Limited (LREL)
A3: Residue Quality Monitoring Requirements
A5: Summary of monitoring undertaken and compliance
A6: Quarterly Assessments] Involves measuring specific characteristics required per material outlined by SEPA [LOI and TOC for TA and BA, lime for APCR], heavy soluble metals including mercurcy and cadmium, and organic subastances outlined in permit (Dioxins, furrans, PCBs, PAHs), alongside the Core Hazard Assessment [HP4, HP8, HP7, HP14 (face-value and refined)].
A13: Commentary on any specific events
A14: Date & Event | C14: Description
A22: Residue Quality Monitoring Results
A23: Parameter (unit) | C23: Limit
D24: Boiler Ash | E24: Tramp Ash | F24: Bed Media | G24: APCR Residues
D25: Quarterly | E25: Quarterly | F25: Quarterly | G25: Quarterly
A26: Loss on Ignition (average %) | C26: <5% | D26: <0.5 | E26: <0.56 | F26: 1.42 | G26: 3.78
A27: Total Organic Carbon (average %) | C27: <3% | D27: 0.37 | E27: 0.17 | F27: 0.17 | G27: 0.73
A28: Free Lime | C28: Not defined (low as possible) | G28: 6.41
A29: Moisture Content | C29: Not defined (low as possible)
A30: No. of Assessments Undertaken | C30: --- | D30: 3 | E30: 3 | F30: 3 | G30: 3
A31: No. of Hazardous Results | C31: --- | D31: 3 for HP14 | E31: 3 for HP14 | F31: 3 for HP4; 3 for HP8; 3 for HP14 | G31: 3
A33: Comments :
A34: Unable to take residue samples in quarter 4 due to plant down time. Samples for quarter 4 were taken in January 2024.

Sheet Water
A1: =+'Cover Page'!$B$29 -> Annual Performance Report 2023 | E1: =+'Cover Page'!$B$33 -> Levenseat Renewable Energy Limited (LREL)
A3: Emissions to Water
A5: Summary of monitoring undertaken and compliance
A6: All trade effluents are sent as off site waste transfers to a waste water treatment facility at the adjacent Levenseat site where they are treated and discharged according to the discharge requirements. Effluent flow rates for the EfW and MRFP are measured at the waste water treatment plant. The EfW produced 17,134 m3 and the MRFP produced 8,838 m3 of effluent in 2023.
A8: All surface water run-off from the site is treated via SUDS.
A13: Commentary on any specific events
A14: Date & Event | C14: Description
A22: Emissions to Water / Sewer
A23: Parameter | D23: Monitoring Frequency | G23: Limit | H23: Target | I23: Max. | J23: Average

Sheet Air (periodic)
A1: =+'Cover Page'!$B$29 -> Annual Performance Report 2023 | E1: =+'Cover Page'!$B$33 -> Levenseat Renewable Energy Limited (LREL)
A3: Emissions to Air (periodically monitored)
A5: Summary of monitoring undertaken, standards used and compliance | M5: Notes:
A6: Periodic monitoring was completed by Socotec in 2023 as per Table 21.2. All results were within permitted limits. | M6: Template may require adjustment for any bespoke monitoring requirements of permit.
A9: Results of emissions to air that are periodically monitored
A10: Substance | C10: Ref. Period | D10: Emission Limit Value | F10: Average | M10: User to add additional tables as necessary, depending on whether quarterly or bi-annual reporting is required for the compliance year
F11: Apr | G11: Nov
A12: Particulates | C12: Ave value consecutive 3 x 30mins | D12: 30 mg/m3 | F12: 0.27 | G12: 1.1
A13: Oxides of nitrogen | C13: Ave value consecutive 3 x 30mins | D13: 200 mg/m3 | F13: 185.54 | G13: 227
A14: Sulphur dioxide | C14: Ave value consecutive 3 x 30mins | D14: 200 mg/m3 | F14: 2.22 | G14: 1.4
A15: Carbon monoxide | C15: Ave value consecutive 3 x 30mins | D15: 100 mg/m3 | F15: 1.42 | G15: 16.69
A16: Total organic carbon | C16: Ave value consecutive 3 x 30mins | D16: 20 mg/m3 | F16: 0.52 | G16: 0.9
A17: Hydrogen chloride | C17: Ave value consecutive 3 x 30mins | D17: 60 mg/m3 | F17: 14.08 | G17: 11
A18: Hydrogen fluoride | C18: Ave value consecutive 3 x 30mins | D18: 4 mg/m3 | F18: 0.37 | G18: 0.11
A19: PM10 | C19: Ave value consecutive 3 x 30mins | D19: mg/m3
A20: PM2.5 | C20: Ave value consecutive 3 x 30mins | D20: mg/m3
A21: Ammonia | C21: Ave value consecutive 3 x 30mins | D21: 10 mg/m3 | F21: 0.55 | G21: 1.3
A22: PAHs | C22: Ave value consecutive 3 x 30mins | D22: ug/m3 | F22: 0.79 | G22: 0.8
A23: Cd and Th and their compounds | C23: Ave value consecutive 3 x 30mins | D23: 0.05 mg/m3 | F23: 0.0015 | G23: 0.002
A24: Hg and its compounds | C24: Ave value consecutive 3 x 30mins | D24: 0.05 mg/m3 | F24: 0.001 | G24: 0.001
A25: Sb, As, Pb, Cr, Co, Cu, Mn, Ni, V and their compounds | C25: Ave value consecutive 3 x 30mins | D25: 0.5 mg/m3 | F25: 0.097 | G25: 0.044
A26: Dioxins & Furans (I-TEQ) | C26: Ave value over single measurement of 6-8 hours | D26: 0.1 ng/m3 | F26: 0.0148 | G26: 0.0002
A27: PCBs (WHO-TEQ Humans / Mammals) | C27: Ave value over single measurement of 6-8 hours | D27: None set ng/m3 | F27: 0.0043 | G27: 0
A28: PCBs (WHO-TEQ Fish) | C28: Ave value over single measurement of 6-8 hours | D28: None set ng/m3 | F28: 0.0002 | G28: 0
A29: PCBs (WHO-TEQ Birds) | C29: Ave value over single measurement of 6-8 hours | D29: None set ng/m3 | F29: 0.0061 | G29: 0.0005
A30: Dioxins & Furans (WHO-TEQ Humans / Mammals) | C30: Ave value over single measurement of 6-8 hours | D30: None set ng/m3 | F30: 0.0137 | G30: 0.0011
A31: Dioxins & Furans (WHO-TEQ Fish) | C31: Ave value over single measurement of 6-8 hours | D31: None set ng/m3 | F31: 0.0158 | G31: 0.0012
A32: Dioxins & Furans (WHO-TEQ Birds) | C32: Ave value over single measurement of 6-8 hours | D32: None set ng/m3 | F32: 0.0236 | G32: 0.0033
A33: Anthanthrene | C33: Ave value consecutive 3 x 30mins | D33: None set µg/m3 | F33: 0.01 | G33: 0.01
A34: Benzo(a)anthracene | C34: Ave value consecutive 3 x 30mins | D34: None set µg/m3 | F34: 0.01 | G34: 0.01
A35: Benzo(a)pyrene | C35: Ave value consecutive 3 x 30mins | D35: None set µg/m3 | F35: 0.01 | G35: 0.01
A36: Benzo(b)fluoranthene | C36: Ave value consecutive 3 x 30mins | D36: None set µg/m3 | F36: 0.01 | G36: 0.01
A37: Benzo(b)naptho(2,1-d) thiophene | C37: Ave value consecutive 3 x 30mins | D37: None set µg/m3 | F37: 0.01 | G37: 0.01
A38: Benzo(c)phenanthrene | C38: Ave value consecutive 3 x 30mins | D38: None set µg/m3 | F38: 0.01 | G38: 0.01
A39: Benzo(ghi)perylene | C39: Ave value consecutive 3 x 30mins | D39: None set µg/m3 | F39: 0.01 | G39: 0.01
A40: Benzo(k)fluoranthene | C40: Ave value consecutive 3 x 30mins | D40: None set µg/m3 | F40: 0.01 | G40: 0.01
A41: Cholanthrene | C41: Ave value consecutive 3 x 30mins | D41: None set µg/m3 | F41: 0.01 | G41: 0.01
A42: Chrysene | C42: Ave value consecutive 3 x 30mins | D42: None set µg/m3 | F42: 0.01 | G42: 0.01
A43: Cyclopenta(cd)pyrene | C43: Ave value consecutive 3 x 30mins | D43: None set µg/m3 | F43: 0.01 | G43: 0.01
A44: Dibenzo(ai)pyrene | C44: Ave value consecutive 3 x 30mins | D44: None set µg/m3 | F44: 0.01 | G44: 0.01
A45: Dibenzo(ah)anthracene | C45: Ave value consecutive 3 x 30mins | D45: None set µg/m3 | F45: 0.01 | G45: 0.01
A46: Fluoranthene | C46: Ave value consecutive 3 x 30mins | D46: None set µg/m3 | F46: 0.04 | G46: 0.74
A47: Indeno(123-cd) pyrene | C47: Ave value consecutive 3 x 30mins | D47: None set µg/m3 | F47: 0.01 | G47: 0.01
A48: Naphthalene | C48: Ave value consecutive 3 x 30mins | D48: None set µg/m3 | F48: 1.67 | G48: 0.58
C49: Ave value consecutive 3 x 30mins
A50: Date of QAL2 /AST: | C50: 2023-02-01
A51: Comments :

Sheet Air (CEMS)
A1: =+'Cover Page'!$B$29 -> Annual Performance Report 2023 | I1: =+'Cover Page'!$B$33 -> Levenseat Renewable Energy Limited (LREL)
A3: Emissions to Air (continously monitored)
P4: Notes:
A5: Summary of monitoring undertaken, standards used and compliance | N5: OUK | P5: Template may require adjustment for any bespoke monitoring requirements of permit
A6: Continually monitored values for the substances below are reported in 30 and minute averages over a 24 hour period. | P6: Report to 2 decimal places, i.e. xx.xx%
A11: Results of emissions to air that are continuously monitored (maximum and average values for each line)
A12: Substance | B12: Reference Period | C12: Emission Limit Value | D12: A1 | F12: A2 | H12: A3 | J12: A4 | L12: A5
D13: Max. | E13: Avg. | F13: Max. | G13: Avg. | H13: Max. | I13: Avg. | J13: Max. | K13: Avg. | L13: Max. | M13: Avg.
A14: Oxides of nitrogen | B14: Daily mean | C14: 200 mg/m3 | D14: =(MAX(NOx!$G$7:$G$18)) -> 8 | E14: =AVERAGE(NOx!$F$7:$F$18) -> 4.569512804
B15: ½ hourly mean | C15: 400 mg/m3 | D15: =MAX(NOx!$D$7:$D$18) -> 275.3 | E15: =AVERAGE(NOx!$C$7:$C$18) -> 121.8915074
A16: Particulates | B16: Daily mean | C16: 10 mg/m3 | D16: =(MAX(Particulates!$G$7:$G$18)) -> 32.5 | E16: =AVERAGE(Particulates!$F$7:$F$18) -> 3.578226323
B17: ½ hourly mean | C17: 30 mg/m3 | D17: =MAX(Particulates!$D$7:$D$18) -> 47.2 | E17: =AVERAGE(Particulates!$C$7:$C$18) -> 2.537486557
A18: Total Organic Carbon | B18: Daily mean | C18: 10 mg/m3 | D18: =(MAX(TOC!$G$7:$G$18)) -> 2 | E18: =AVERAGE(TOC!$F$7:$F$18) -> 0.8714687432
B19: ½ hourly mean | C19: 20 mg/m3 | D19: =MAX(TOC!$D$7:$D$18) -> 7 | E19: =AVERAGE(TOC!$C$7:$C$18) -> 0.8511835934
A20: Hydrogen chloride | B20: Daily mean | C20: 10 mg/m3 | D20: =(MAX(HCl!$G$7:$G$18)) -> 12.7 | E20: =AVERAGE(HCl!$F$7:$F$18) -> 6.311918728
B21: ½ hourly mean | C21: 60 mg/m3 | D21: =MAX(HCl!$D$7:$D$18) -> 41.8 | E21: =AVERAGE(HCl!$C$7:$C$18) -> 6.444182566
A22: Sulphur dioxide | B22: Daily mean | C22: 50 mg/m3 | D22: =(MAX('SO2'!$G$7:$G$18)) -> 8 | E22: =AVERAGE('SO2'!$F$7:$F$18) -> 4.569512804
B23: ½ hourly mean | C23: 200 mg/m3 | D23: =MAX('SO2'!$D$7:$D$18) -> 16.4 | E23: =AVERAGE('SO2'!$C$7:$C$18) -> 4.608955456
A24: Carbon monoxide | B24: Daily mean | C24: 50 mg/m3 | D24: =MAX('CO 0.5hourly'!G7:G18) -> 48.1 | E24: =AVERAGE('CO 0.5hourly'!F7:F18) -> 8.903289513
B25: ½ hourly mean * | C25: 100 mg/m3 * | D25: =MAX('CO 0.5hourly'!D7:D18) -> 191.1 | E25: =AVERAGE('CO 0.5hourly'!C7:C18) -> 8.632328435
B26: 95%ile 10-min avg * | C26: 150 mg/m3 * | D26: =MAX('CO 95% 10 min'!C7:C18) -> 121.9
A27: Ammonia | B27: Daily mean | C27: 10 mg/m3 | D27: =MAX('NH3'!G7:G18) -> 2 | E27: =AVERAGE('NH3'!F7:F18) -> 0.4769196458
A28: * = delete or amend as appropriate
A29: Comments :

Sheet HCl
A1: =+'Cover Page'!$B$29 -> Annual Performance Report 2023 | E1: =+'Cover Page'!$B$33 -> Levenseat Renewable Energy Limited (LREL)
A3: Monitoring of Hydrogen Chloride emissions | D3: Whole Installation | G3: See Notes in Cell Q3 | J3: =+A3 -> Monitoring of Hydrogen Chloride emissions | N3: Per Combustion Line | Q3: Notes:
Q4: User to add logic to complete Whole installation, Table A5:G18. From the data in Per Combustion Line, Table J6:O79, subject to No. of lines installed
A5: mg/Nm3 | B5: 1/2 Hourly Reference Periods | E5: Daily Reference Periods
A6: =+'Cover Page'!C39 -> 2023 | B6: 1/2 hourly HCl ELV | C6: Monthly 1/2 hourly mean | D6: Highest 1/2 hourly maximum | E6: Daily HCl ELV | F6: Monthly daily mean | G6: Highest daily maximum | J6: =+A6 -> 2023 | K6: mg/Nm3 | L6: Monthly 1/2 hourly mean | M6: Monthly 1/2 hourly maximum | N6: Monthly daily mean | O6: Monthly daily maximum
A7: Jan | B7: 60 | C7: =L7 -> 5.212703102 | D7: =M7 -> 22.8 | E7: 10 | F7: =N7 -> 5.10952381 | G7: =O7 -> 7.5 | I7: 1 | J7: A1 | K7: Jan | L7: 5.212703102 | M7: 22.8 | N7: 5.10952381 | O7: 7.5
A8: Feb | B8: 60 | C8: =L8 -> 6.901027668 | D8: =M8 -> 20.4 | E8: 10 | F8: =N8 -> 6.389473684 | G8: =O8 -> 7.7 | I8: 2 | K8: Feb | L8: 6.901027668 | M8: 20.4 | N8: 6.389473684 | O8: 7.7
A9: Mar | B9: 60 | C9: 5.778853047 | D9: 29.8 | E9: 10 | F9: 6.425 | G9: 12.1 | I9: 3 | K9: Mar | L9: 5.778853047 | M9: 29.8 | N9: 6.425 | O9: 12.1 | Q9: Whole Installation table A5:G18:
A10: Apr | B10: 60 | C10: 6.392961165 | D10: 27.2 | E10: 10 | F10: 6.352380952 | G10: 7.9 | I10: 4 | K10: Apr | L10: 6.392961165 | M10: 27.2 | N10: 6.352380952 | O10: 7.9 | Q10: Mean: for 1/2 hourly and daily periods calculate mean of values across all operational combustion lines for the month
A11: May | B11: 60 | C11: 6.585005513 | D11: 33 | E11: 10 | F11: 6.454545455 | G11: 8.4 | I11: 5 | K11: May | L11: 6.585005513 | M11: 33 | N11: 6.454545455 | O11: 8.4
A12: Jun | B12: 60 | C12: 8.484615385 | D12: 30 | E12: 10 | F12: 8.12 | G12: 9.8 | I12: 6 | K12: Jun | L12: 8.484615385 | M12: 30 | N12: 8.12 | O12: 9.8
A13: Jul | B13: 60 | C13: 6.530379747 | D13: 12.5 | E13: 10 | F13: 6.24 | G13: 7.8 | I13: 7 | K13: Jul | L13: 6.530379747 | M13: 12.5 | N13: 6.24 | O13: 7.8 | Q13: Maximum: for 1/2 hourly and daily periods use the highest value across all operational combustion lines for the month
A14: Aug | B14: 60 | C14: 5.744768856 | D14: 12.5 | E14: 10 | F14: 5.3 | G14: 7 | I14: 8 | K14: Aug | L14: 5.744768856 | M14: 12.5 | N14: 5.3 | O14: 7
A15: Sep | B15: 60 | C15: 6.904354354 | D15: 29.3 | E15: 10 | F15: 6.605882353 | G15: 8.7 | I15: 9 | K15: Sep | L15: 6.904354354 | M15: 29.3 | N15: 6.605882353 | O15: 8.7
A16: Oct | B16: 60 | C16: 6.811672794 | D16: 41.8 | E16: 10 | F16: 6.7 | G16: 7.6 | I16: 10 | K16: Oct | L16: 6.811672794 | M16: 41.8 | N16: 6.7 | O16: 7.6
A17: Nov | B17: 60 | C17: 6.218644068 | D17: 18.4 | E17: 10 | F17: 6.517647059 | G17: 12.7 | I17: 11 | K17: Nov | L17: 6.218644068 | M17: 18.4 | N17: 6.517647059 | O17: 12.7
A18: Dec | B18: 60 | C18: 5.765205092 | D18: 28.8 | E18: 10 | F18: 5.528571429 | G18: 7.7 | I18: 12 | K18: Dec | L18: 5.765205092 | M18: 28.8 | N18: 5.528571429 | O18: 7.7
K19: Annual | L19: =AVERAGE(L7:L18) -> 6.444182566 | M19: =MAX(M7:M18) -> 41.8 | N19: =AVERAGE(N7:N18) -> 6.311918728 | O19: =MAX(O7:O18) -> 12.7
A48: Comments :

Sheet SO2
A1: =+'Cover Page'!$B$29 -> Annual Performance Report 2023 | E1: =+'Cover Page'!$B$33 -> Levenseat Renewable Energy Limited (LREL)
A3: Monitoring of Sulphur dioxide emissions | D3: Whole Installation | G3: See Notes in Cell Q3 | J3: =+A3 -> Monitoring of Sulphur dioxide emissions | N3: Per Combustion Line | Q3: Notes:
Q4: User to add logic to complete Whole installation, Table A5:G18. From the data in Per Combustion Line, Table J6:O79, subject to No. of lines installed
A5: mg/Nm3 | B5: 1/2 Hourly Reference Periods | E5: Daily Reference Periods
A6: =+'Cover Page'!C39 -> 2023 | B6: 1/2 hourly SO2 ELV | C6: Monthly 1/2 hourly mean | D6: Highest 1/2 hourly maximum | E6: Daily SO2 ELV | F6: Monthly daily mean | G6: Highest daily maximum | J6: =+A6 -> 2023 | K6: mg/Nm3 | L6: Monthly 1/2 hourly mean | M6: Monthly 1/2 hourly maximum | N6: Monthly daily mean | O6: Monthly daily maximum
A7: Jan | B7: 200 | C7: =L7 -> 2.232939439 | D7: =M7 -> 3.6 | E7: 50 | F7: =N7 -> 2.185714286 | G7: =O7 -> 2.6 | I7: 1 | J7: A1 | K7: Jan | L7: 2.232939439 | M7: 3.6 | N7: 2.185714286 | O7: 2.6
A8: Feb | B8: 200 | C8: =L8 -> 2.490988142 | D8: =M8 -> 5.3 | E8: 50 | F8: =N8 -> 2.542857143 | G8: =O8 -> 3.2 | I8: 2 | K8: Feb | L8: 2.490988142 | M8: 5.3 | N8: 2.542857143 | O8: 3.2
A9: Mar | B9: 200 | C9: 2.59390681 | D9: 9.3 | E9: 50 | F9: 2.4625 | G9: 3 | I9: 3 | K9: Mar | L9: 2.59390681 | M9: 9.3 | N9: 2.4625 | O9: 3 | Q9: Whole Installation table A5:G18:
A10: Apr | B10: 200 | C10: 4.905097087 | D10: 16.4 | E10: 50 | F10: 4.947619048 | G10: 6.6 | I10: 4 | K10: Apr | L10: 4.905097087 | M10: 16.4 | N10: 4.947619048 | O10: 6.6 | Q10: Mean: for 1/2 hourly and daily periods calculate mean of values across all operational combustion lines for the month
A11: May | B11: 200 | C11: 5.202094818 | D11: 7.7 | E11: 50 | F11: 5.218181818 | G11: 5.7 | I11: 5 | K11: May | L11: 5.202094818 | M11: 7.7 | N11: 5.218181818 | O11: 5.7
A12: Jun | B12: 200 | C12: 4.96043956 | D12: 5.8 | E12: 50 | F12: 4.92 | G12: 5.1 | I12: 6 | K12: Jun | L12: 4.96043956 | M12: 5.8 | N12: 4.92 | O12: 5.1
A13: Jul | B13: 200 | C13: 5.692194093 | D13: 7.4 | E13: 50 | F13: 5.506666667 | G13: 6.5 | I13: 7 | K13: Jul | L13: 5.692194093 | M13: 7.4 | N13: 5.506666667 | O13: 6.5 | Q13: Maximum: for 1/2 hourly and daily periods use the highest value across all operational combustion lines for the month
A14: Aug | B14: 200 | C14: 7.059124088 | D14: 8.5 | E14: 50 | F14: 7.058333333 | G14: 8 | I14: 8 | K14: Aug | L14: 7.059124088 | M14: 8.5 | N14: 7.058333333 | O14: 8
A15: Sep | B15: 200 | C15: 4.912012012 | D15: 7.8 | E15: 50 | F15: 4.976470588 | G15: 6.8 | I15: 9 | K15: Sep | L15: 4.912012012 | M15: 7.8 | N15: 4.976470588 | O15: 6.8
A16: Oct | B16: 200 | C16: 4.2796875 | D16: 6.3 | E16: 50 | F16: 4.274074074 | G16: 4.5 | I16: 10 | K16: Oct | L16: 4.2796875 | M16: 6.3 | N16: 4.274074074 | O16: 4.5
A17: Nov | B17: 200 | C17: 5.450693374 | D17: 8.5 | E17: 50 | F17: 5.194117647 | G17: 5.8 | I17: 11 | K17: Nov | L17: 5.450693374 | M17: 8.5 | N17: 5.194117647 | O17: 5.8
A18: Dec | B18: 200 | C18: 5.528288543 | D18: 7.5 | E18: 50 | F18: 5.547619048 | G18: 6.2 | I18: 12 | K18: Dec | L18: 5.528288543 | M18: 7.5 | N18: 5.547619048 | O18: 6.2
K19: Annual | L19: =AVERAGE(L7:L18) -> 4.608955456 | M19: =MAX(M7:M18) -> 16.4 | N19: =AVERAGE(N7:N18) -> 4.569512804 | O19: =MAX(O7:O18) -> 8
A48: Comments :

Sheet NOx
A1: =+'Cover Page'!$B$29 -> Annual Performance Report 2023 | E1: =+'Cover Page'!$B$33 -> Levenseat Renewable Energy Limited (LREL)
A3: Monitoring of Oxides of Nitrogen emissions | D3: Whole Installation | G3: See Notes in Cell Q3 | J3: =+A3 -> Monitoring of Oxides of Nitrogen emissions | N3: Per Combustion Line | Q3: Notes:
Q4: User to add logic to complete Whole installation, Table A5:G18. From the data in Per Combustion Line, Table J6:O79, subject to No. of lines installed
A5: mg/Nm3 | B5: 1/2 Hourly Reference Periods | E5: Daily Reference Periods
A6: =+'Cover Page'!C39 -> 2023 | B6: 1/2 hourly NOx ELV | C6: Monthly 1/2 hourly mean | D6: Highest 1/2 hourly maximum | E6: Daily NOx ELV | F6: Monthly daily mean | G6: Highest daily maximum | J6: =+A6 -> 2023 | K6: mg/Nm3 | L6: Monthly 1/2 hourly mean | M6: Monthly 1/2 hourly maximum | N6: Monthly daily mean | O6: Monthly daily maximum
A7: Jan | B7: 400 | C7: =L7 -> 143.4545052 | D7: =M7 -> 199.2 | E7: 200 | F7: =N7 -> 2.185714286 | G7: =O7 -> 2.6 | I7: 1 | J7: A1 | K7: Jan | L7: 143.4545052 | M7: 199.2 | N7: 2.185714286 | O7: 2.6
A8: Feb | B8: 400 | C8: =L8 -> 135.4471937 | D8: =M8 -> 218.8 | E8: 200 | F8: =N8 -> 2.542857143 | G8: =O8 -> 3.2 | I8: 2 | K8: Feb | L8: 135.4471937 | M8: 218.8 | N8: 2.542857143 | O8: 3.2
A9: Mar | B9: 400 | C9: 126.0752688 | D9: 275.3 | E9: 200 | F9: 2.4625 | G9: 3 | I9: 3 | K9: Mar | L9: 126.0752688 | M9: 275.3 | N9: 2.4625 | O9: 3 | Q9: Whole Installation table A5:G18:
A10: Apr | B10: 400 | C10: 131.0754854 | D10: 191 | E10: 200 | F10: 4.947619048 | G10: 6.6 | I10: 4 | K10: Apr | L10: 131.0754854 | M10: 191 | N10: 4.947619048 | O10: 6.6 | Q10: Mean: for 1/2 hourly and daily periods calculate mean of values across all operational combustion lines for the month
A11: May | B11: 400 | C11: 137.9120176 | D11: 199.7 | E11: 200 | F11: 5.218181818 | G11: 5.7 | I11: 5 | K11: May | L11: 137.9120176 | M11: 199.7 | N11: 5.218181818 | O11: 5.7
A12: Jun | B12: 400 | C12: 141.4373626 | D12: 242.2 | E12: 200 | F12: 4.92 | G12: 5.1 | I12: 6 | K12: Jun | L12: 141.4373626 | M12: 242.2 | N12: 4.92 | O12: 5.1
A13: Jul | B13: 400 | C13: 125.971308 | D13: 193.8 | E13: 200 | F13: 5.506666667 | G13: 6.5 | I13: 7 | K13: Jul | L13: 125.971308 | M13: 193.8 | N13: 5.506666667 | O13: 6.5 | Q13: Maximum: for 1/2 hourly and daily periods use the highest value across all operational combustion lines for the month
A14: Aug | B14: 400 | C14: 112.7600973 | D14: 157.1 | E14: 200 | F14: 7.058333333 | G14: 8 | I14: 8 | K14: Aug | L14: 112.7600973 | M14: 157.1 | N14: 7.058333333 | O14: 8
A15: Sep | B15: 400 | C15: 105.9363363 | D15: 196.6 | E15: 200 | F15: 4.976470588 | G15: 6.8 | I15: 9 | K15: Sep | L15: 105.9363363 | M15: 196.6 | N15: 4.976470588 | O15: 6.8
A16: Oct | B16: 400 | C16: 118.2163603 | D16: 180 | E16: 200 | F16: 4.274074074 | G16: 4.5 | I16: 10 | K16: Oct | L16: 118.2163603 | M16: 180 | N16: 4.274074074 | O16: 4.5
A17: Nov | B17: 400 | C17: 88.898151 | D17: 180.6 | E17: 200 | F17: 5.194117647 | G17: 5.8 | I17: 11 | K17: Nov | L17: 88.898151 | M17: 180.6 | N17: 5.194117647 | O17: 5.8
A18: Dec | B18: 400 | C18: 95.51400283 | D18: 201.9 | E18: 200 | F18: 5.547619048 | G18: 6.2 | I18: 12 | K18: Dec | L18: 95.51400283 | M18: 201.9 | N18: 5.547619048 | O18: 6.2
K19: Annual | L19: =AVERAGE(L7:L18) -> 121.8915074 | M19: =MAX(M7:M18) -> 275.3 | N19: =AVERAGE(N7:N18) -> 4.569512804 | O19: =MAX(O7:O18) -> 8
A48: Comments :

Sheet TOC
A1: =+'Cover Page'!$B$29 -> Annual Performance Report 2023 | E1: =+'Cover Page'!$B$33 -> Levenseat Renewable Energy Limited (LREL)
A3: Monitoring of Total organic carbon emissions | D3: Whole Installation | G3: See Notes in Cell Q3 | J3: =+A3 -> Monitoring of Total organic carbon emissions | N3: Per Combustion Line | Q3: Notes:
Q4: User to add logic to complete Whole installation, Table A5:G18. From the data in Per Combustion Line, Table J6:O79, subject to No. of lines installed
A5: mg/Nm3 | B5: 1/2 Hourly Reference Periods | E5: Daily Reference Periods
A6: =+'Cover Page'!C39 -> 2023 | B6: 1/2 hourly TOC ELV | C6: Monthly 1/2 hourly mean | D6: Highest 1/2 hourly maximum | E6: Daily TOC ELV | F6: Monthly daily mean | G6: Highest daily maximum | J6: =+A6 -> 2023 | K6: mg/Nm3 | L6: Monthly 1/2 hourly mean | M6: Monthly 1/2 hourly maximum | N6: Monthly daily mean | O6: Monthly daily maximum
A7: Jan | B7: 20 | C7: =L7 -> 0.1682422452 | D7: =M7 -> 1.2 | E7: 10 | F7: =N7 -> 0.1571428571 | G7: =O7 -> 0.3 | I7: 1 | J7: A1 | K7: Jan | L7: 0.1682422452 | M7: 1.2 | N7: 0.1571428571 | O7: 0.3
A8: Feb | B8: 20 | C8: =L8 -> 0.1631620553 | D8: =M8 -> 0.8 | E8: 10 | F8: =N8 -> 0.1571428571 | G8: =O8 -> 0.2 | I8: 2 | K8: Feb | L8: 0.1631620553 | M8: 0.8 | N8: 0.1571428571 | O8: 0.2
A9: Mar | B9: 20 | C9: 0.3215053763 | D9: 1.3 | E9: 10 | F9: 0.3375 | G9: 0.6 | I9: 3 | K9: Mar | L9: 0.3215053763 | M9: 1.3 | N9: 0.3375 | O9: 0.6 | Q9: Whole Installation table A5:G18:
A10: Apr | B10: 20 | C10: 0.8503640777 | D10: 3.8 | E10: 10 | F10: 0.8714285714 | G10: 1.2 | I10: 4 | K10: Apr | L10: 0.8503640777 | M10: 3.8 | N10: 0.8714285714 | O10: 1.2 | Q10: Mean: for 1/2 hourly and daily periods calculate mean of values across all operational combustion lines for the month
A11: May | B11: 20 | C11: 0.9857772878 | D11: 2.8 | E11: 10 | F11: 0.9863636364 | G11: 1.3 | I11: 5 | K11: May | L11: 0.9857772878 | M11: 2.8 | N11: 0.9863636364 | O11: 1.3
A12: Jun | B12: 20 | C12: 1.21978022 | D12: 3.4 | E12: 10 | F12: 1.26 | G12: 1.6 | I12: 6 | K12: Jun | L12: 1.21978022 | M12: 3.4 | N12: 1.26 | O12: 1.6
A13: Jul | B13: 20 | C13: 1.413291139 | D13: 2.2 | E13: 10 | F13: 1.44 | G13: 2 | I13: 7 | K13: Jul | L13: 1.413291139 | M13: 2.2 | N13: 1.44 | O13: 2 | Q13: Maximum: for 1/2 hourly and daily periods use the highest value across all operational combustion lines for the month
A14: Aug | B14: 20 | C14: 1.401946472 | D14: 7 | E14: 10 | F14: 1.441666667 | G14: 1.6 | I14: 8 | K14: Aug | L14: 1.401946472 | M14: 7 | N14: 1.441666667 | O14: 1.6
A15: Sep | B15: 20 | C15: 0.8768768769 | D15: 3.3 | E15: 10 | F15: 0.8882352941 | G15: 1 | I15: 9 | K15: Sep | L15: 0.8768768769 | M15: 3.3 | N15: 0.8882352941 | O15: 1
A16: Oct | B16: 20 | C16: 0.9232536765 | D16: 1.8 | E16: 10 | F16: 0.9296296296 | G16: 1.1 | I16: 10 | K16: Oct | L16: 0.9232536765 | M16: 1.8 | N16: 0.9296296296 | O16: 1.1
A17: Nov | B17: 20 | C17: 0.9122102009 | D17: 2.6 | E17: 10 | F17: 0.9647058824 | G17: 1.5 | I17: 11 | K17: Nov | L17: 0.9122102009 | M17: 2.6 | N17: 0.9647058824 | O17: 1.5
A18: Dec | B18: 20 | C18: 0.9777934936 | D18: 3.6 | E18: 10 | F18: 1.023809524 | G18: 1.5 | I18: 12 | K18: Dec | L18: 0.9777934936 | M18: 3.6 | N18: 1.023809524 | O18: 1.5
K19: Annual | L19: =AVERAGE(L7:L18) -> 0.8511835934 | M19: =MAX(M7:M18) -> 7 | N19: =AVERAGE(N7:N18) -> 0.8714687432 | O19: =MAX(O7:O18) -> 2
A48: Comments :

Sheet Particulates
A1: =+'Cover Page'!$B$29 -> Annual Performance Report 2023 | E1: =+'Cover Page'!$B$33 -> Levenseat Renewable Energy Limited (LREL)
A3: Monitoring of Particulate matter emissions | D3: Whole Installation | G3: See Notes in Cell Q3 | J3: =+A3 -> Monitoring of Particulate matter emissions | N3: Per Combustion Line | Q3: Notes:
Q4: User to add logic to complete Whole installation, Table A5:G18. From the data in Per Combustion Line, Table J6:O79, subject to No. of lines installed
A5: mg/Nm3 | B5: 1/2 Hourly Reference Periods | E5: Daily Reference Periods
A6: =+'Cover Page'!C39 -> 2023 | B6: 1/2 hourly PM ELV | C6: Monthly 1/2 hourly mean | D6: Highest 1/2 hourly maximum | E6: Daily PM ELV | F6: Monthly daily mean | G6: Highest daily maximum | J6: =+A6 -> 2023 | K6: mg/Nm3 | L6: Monthly 1/2 hourly mean | M6: Monthly 1/2 hourly maximum | N6: Monthly daily mean | O6: Monthly daily maximum
A7: Jan | B7: 30 | C7: =L7 -> 0.2926144756 | D7: =M7 -> 3.3 | E7: 10 | F7: =N7 -> 0.3142857143 | G7: =O7 -> 1.3 | I7: 1 | J7: A1 | K7: Jan | L7: 0.2926144756 | M7: 3.3 | N7: 0.3142857143 | O7: 1.3
A8: Feb | B8: 30 | C8: =L8 -> 0.1698975571 | D8: =M8 -> 1.2 | E8: 10 | F8: =N8 -> 0.1642857143 | G8: =O8 -> 0.4 | I8: 2 | K8: Feb | L8: 0.1698975571 | M8: 1.2 | N8: 0.1642857143 | O8: 0.4
A9: Mar | B9: 30 | C9: 0.6551971326 | D9: 19.6 | E9: 10 | F9: 0.625 | G9: 2.5 | I9: 3 | K9: Mar | L9: 0.6551971326 | M9: 19.6 | N9: 0.625 | O9: 2.5 | Q9: Whole Installation table A5:G18:
A10: Apr | B10: 30 | C10: 1.609333333 | D10: 4.6 | E10: 10 | F10: 1.638095238 | G10: 2.6 | I10: 4 | K10: Apr | L10: 1.609333333 | M10: 4.6 | N10: 1.638095238 | O10: 2.6 | Q10: Mean: for 1/2 hourly and daily periods calculate mean of values across all operational combustion lines for the month
A11: May | B11: 30 | C11: 2.318722467 | D11: 13.4 | E11: 10 | F11: 2.359090909 | G11: 5 | I11: 5 | K11: May | L11: 2.318722467 | M11: 13.4 | N11: 2.359090909 | O11: 5
A12: Jun | B12: 30 | C12: 9.581318681 | D12: 47.2 | E12: 10 | F12: 12.58 | G12: 32.5 | I12: 6 | K12: Jun | L12: 9.581318681 | M12: 47.2 | N12: 12.58 | O12: 32.5
A13: Jul | B13: 30 | C13: 3.397689076 | D13: 32.6 | E13: 10 | F13: 8.273333333 | G13: 20.4 | I13: 7 | K13: Jul | L13: 3.397689076 | M13: 32.6 | N13: 8.273333333 | O13: 20.4 | Q13: Maximum: for 1/2 hourly and daily periods use the highest value across all operational combustion lines for the month
A14: Aug | B14: 30 | C14: 0.5012106538 | D14: 20.2 | E14: 10 | F14: 3.366666667 | G14: 11.8 | I14: 8 | K14: Aug | L14: 0.5012106538 | M14: 20.2 | N14: 3.366666667 | O14: 11.8
A15: Sep | B15: 30 | C15: 1.323873874 | D15: 14.6 | E15: 10 | F15: 2.076470588 | G15: 6.8 | I15: 9 | K15: Sep | L15: 1.323873874 | M15: 14.6 | N15: 2.076470588 | O15: 6.8
A16: Oct | B16: 30 | C16: 2.109283088 | D16: 11.7 | E16: 10 | F16: 2.118518519 | G16: 2.9 | I16: 10 | K16: Oct | L16: 2.109283088 | M16: 11.7 | N16: 2.118518519 | O16: 2.9
A17: Nov | B17: 30 | C17: 5.876271186 | D17: 35.7 | E17: 10 | F17: 6.670588235 | G17: 12.9 | I17: 11 | K17: Nov | L17: 5.876271186 | M17: 35.7 | N17: 6.670588235 | O17: 12.9
A18: Dec | B18: 30 | C18: 2.614427157 | D18: 8 | E18: 10 | F18: 2.752380952 | G18: 5.3 | I18: 12 | K18: Dec | L18: 2.614427157 | M18: 8 | N18: 2.752380952 | O18: 5.3
K19: Annual | L19: =AVERAGE(L7:L18) -> 2.537486557 | M19: =MAX(M7:M18) -> 47.2 | N19: =AVERAGE(N7:N18) -> 3.578226323 | O19: =MAX(O7:O18) -> 32.5
A48: Comments :

Sheet CO 0.5hourly
A1: =+'Cover Page'!$B$29 -> Annual Performance Report 2023 | E1: =+'Cover Page'!$B$33 -> Levenseat Renewable Energy Limited (LREL)
A3: Monitoring of Carbon Monoxide (half hourly) | D3: Whole Installation | G3: See Notes in Cell Q3 | J3: =+A3 -> Monitoring of Carbon Monoxide (half hourly) | N3: Per Combustion Line | Q3: Notes:
Q4: User to add logic to complete Whole installation, Table A5:G18. From the data in Per Combustion Line, Table J6:O79, subject to No. of lines installed
A5: mg/Nm3 | B5: 1/2 Hourly Reference Periods | E5: Daily Reference Periods
A6: =+'Cover Page'!C39 -> 2023 | B6: 1/2 hourly CO ELV | C6: Monthly 1/2 hourly mean | D6: Highest 1/2 hourly maximum | E6: Daily CO ELV | F6: Monthly daily mean | G6: Highest daily maximum | J6: =+A6 -> 2023 | K6: mg/Nm3 | L6: Monthly 1/2 hourly mean | M6: Monthly 1/2 hourly maximum | N6: Monthly daily mean | O6: Monthly daily maximum
A7: Jan | B7: 100 | C7: =L7 -> 1.887444609 | D7: =M7 -> 41 | E7: 50 | F7: =N7 -> 1.804761905 | G7: =O7 -> 3.6 | I7: 1 | J7: A1 | K7: Jan | L7: 1.887444609 | M7: 41 | N7: 1.804761905 | O7: 3.6
A8: Feb | B8: =+B7 -> 100 | C8: =L8 -> 2.01083004 | D8: =M8 -> 102.3 | E8: =+E7 -> 50 | F8: =N8 -> 1.914285714 | G8: =O8 -> 4 | I8: 2 | K8: Feb | L8: 2.01083004 | M8: 102.3 | N8: 1.914285714 | O8: 4
A9: Mar | B9: =+B8 -> 100 | C9: 3.613620072 | D9: 26.8 | E9: =+E8 -> 50 | F9: 3.675 | G9: 6 | I9: 3 | K9: Mar | L9: 3.613620072 | M9: 26.8 | N9: 3.675 | O9: 6 | Q9: Whole Installation table A5:G18:
A10: Apr | B10: 100 | C10: 5.379004854 | D10: 65.4 | E10: 50 | F10: 5.50952381 | G10: 8.6 | I10: 4 | K10: Apr | L10: 5.379004854 | M10: 65.4 | N10: 5.50952381 | O10: 8.6 | Q10: Mean: for 1/2 hourly and daily periods calculate mean of values across all operational combustion lines for the month
A11: May | B11: 100 | C11: 5.926681367 | D11: 61.9 | E11: 50 | F11: 6.045454545 | G11: 8.5 | I11: 5 | K11: May | L11: 5.926681367 | M11: 61.9 | N11: 6.045454545 | O11: 8.5
A12: Jun | B12: 100 | C12: 6.58021978 | D12: 20.4 | E12: 50 | F12: 6.76 | G12: 8.9 | I12: 6 | K12: Jun | L12: 6.58021978 | M12: 20.4 | N12: 6.76 | O12: 8.9
A13: Jul | B13: 100 | C13: 7.809704641 | D13: 44.9 | E13: 50 | F13: 7.726666667 | G13: 12.6 | I13: 7 | K13: Jul | L13: 7.809704641 | M13: 44.9 | N13: 7.726666667 | O13: 12.6 | Q13: Maximum: for 1/2 hourly and daily periods use the highest value across all operational combustion lines for the month
A14: Aug | B14: 100 | C14: 14.10218978 | D14: 185.1 | E14: 50 | F14: 16.28333333 | G14: 44.4 | I14: 8 | K14: Aug | L14: 14.10218978 | M14: 185.1 | N14: 16.28333333 | O14: 44.4
A15: Sep | B15: 100 | C15: 10.28498498 | D15: 191.1 | E15: 50 | F15: 9.752941176 | G15: 20.7 | I15: 9 | K15: Sep | L15: 10.28498498 | M15: 191.1 | N15: 9.752941176 | O15: 20.7
A16: Oct | B16: 100 | C16: 9.287040441 | D16: 147.2 | E16: 50 | F16: 9.266666667 | G16: 24.8 | I16: 10 | K16: Oct | L16: 9.287040441 | M16: 147.2 | N16: 9.266666667 | O16: 24.8
A17: Nov | B17: 100 | C17: 17.32927581 | D17: 111.1 | E17: 50 | F17: 18.32941176 | G17: 42.8 | I17: 11 | K17: Nov | L17: 17.32927581 | M17: 111.1 | N17: 18.32941176 | O17: 42.8
A18: Dec | B18: 100 | C18: 19.37694484 | D18: 109.2 | E18: 50 | F18: 19.77142857 | G18: 48.1 | I18: 12 | K18: Dec | L18: 19.37694484 | M18: 109.2 | N18: 19.77142857 | O18: 48.1
K19: Annual | L19: =AVERAGE(L7:L18) -> 8.632328435 | M19: =MAX(M7:M18) -> 191.1 | N19: =AVERAGE(N7:N18) -> 8.903289513 | O19: =MAX(O7:O18) -> 48.1
A48: Comments :

Sheet CO 95% 10 min
A1: =+'Cover Page'!$B$29 -> Annual Performance Report 2023 | E1: =+'Cover Page'!$B$33 -> Levenseat Renewable Energy Limited (LREL)
A3: Monitoring of Carbon Monoxide (10-minute avg) | E3: Whole Installation | H3: See Notes in Cell S3 | J3: =+A3 -> Monitoring of Carbon Monoxide (10-minute avg) | O3: Per Combustion Line | Q3: Notes: | S3: Notes:
S4: User to add logic to complete Whole installation, Table A5:H18. From the data in Per Combustion Line, Table K6:Q79, subject to No. of lines installed
A5: mg/Nm3 | B5: 10-minute Reference Periods | F5: Daily Reference Periods
A6: =+'Cover Page'!C39 -> 2023 | B6: 95%ile 10-min avg CO ELV | C6: 95%ile 10-min avg maximum | D6: Monthly CO 10-min avg mean | E6: 10-min avg maximum | F6: Daily CO ELV | G6: Monthly daily mean | H6: Highest daily maximum | K6: =+A6 -> 2023 | L6: mg/Nm3 | M6: 95%ile 10-min avg maximum | N6: Monthly CO 10-min avg mean | O6: 10-min avg maximum | P6: Monthly daily mean | Q6: Monthly daily maximum
A7: Jan | B7: 150 | C7: =M7 -> 26 | D7: =N7 -> 1.93689929 | E7: =O7 -> 178.3 | F7: 50 | G7: =P7 -> 1.804761905 | H7: =Q7 -> 3.6 | J7: 1 | K7: A1 | L7: Jan | M7: 26 | N7: 1.93689929 | O7: 178.3 | P7: 1.804761905 | Q7: 3.6
A8: Feb | B8: =+B7 -> 150 | C8: =M8 -> 7.1 | D8: =N8 -> 2.012417785 | E8: =O8 -> 298.1 | F8: =+F7 -> 50 | G8: =P8 -> 1.914285714 | H8: =Q8 -> 4 | J8: 2 | L8: Feb | M8: 7.1 | N8: 2.012417785 | O8: 298.1 | P8: 1.914285714 | Q8: 4
A9: Mar | B9: =+B8 -> 150 | C9: 26.8 | D9: 3.528469751 | E9: 46.7 | F9: =+F8 -> 50 | G9: 3.675 | H9: 6 | J9: 3 | L9: Mar | M9: 26.8 | N9: 3.528469751 | O9: 46.7 | P9: 3.675 | Q9: 6 | S9: Whole Installation table A5:H18:
A10: Apr | B10: 150 | C10: 36.2 | D10: 5.433950866 | E10: 288.6 | F10: 50 | G10: 5.50952381 | H10: 8.6 | J10: 4 | L10: Apr | M10: 36.2 | N10: 5.433950866 | O10: 288.6 | P10: 5.50952381 | Q10: 8.6 | S10: Mean: for 10-min and daily periods use average of all operational combustion lines.
A11: May | B11: 150 | C11: 31.5 | D11: 6.052124542 | E11: 257.9 | F11: 50 | G11: 6.045454545 | H11: 8.5 | J11: 5 | L11: May | M11: 31.5 | N11: 6.052124542 | O11: 257.9 | P11: 6.045454545 | Q11: 8.5
A12: Jun | B12: 150 | C12: 20.4 | D12: 6.862093863 | E12: 56.1 | F12: 50 | G12: 6.76 | H12: 8.9 | J12: 6 | L12: Jun | M12: 20.4 | N12: 6.862093863 | O12: 56.1 | P12: 6.76 | Q12: 8.9
A13: Jul | B13: 150 | C13: 26.2 | D13: 7.81977638 | E13: 105.8 | F13: 50 | G13: 7.726666667 | H13: 12.6 | J13: 7 | L13: Jul | M13: 26.2 | N13: 7.81977638 | O13: 105.8 | P13: 7.726666667 | Q13: 12.6 | S13: Maximum: for 10-min and daily periods use the highest of all operational combustion lines in any month.
A14: Aug | B14: 150 | C14: 121.9 | D14: 13.9615942 | E14: 382.4 | F14: 50 | G14: 16.28333333 | H14: 44.4 | J14: 8 | L14: Aug | M14: 121.9 | N14: 13.9615942 | O14: 382.4 | P14: 16.28333333 | Q14: 44.4
A15: Sep | B15: 150 | C15: 47.5 | D15: 9.983990025 | E15: 185.1 | F15: 50 | G15: 9.752941176 | H15: 20.7 | J15: 9 | L15: Sep | M15: 47.5 | N15: 9.983990025 | O15: 185.1 | P15: 9.752941176 | Q15: 20.7
A16: Oct | B16: 150 | C16: 69 | D16: 9.240159167 | E16: 259.1 | F16: 50 | G16: 9.266666667 | H16: 24.8 | J16: 10 | L16: Oct | M16: 69 | N16: 9.240159167 | O16: 259.1 | P16: 9.266666667 | Q16: 24.8
A17: Nov | B17: 150 | C17: 111.1 | D17: 17.30922604 | E17: 218.8 | F17: 50 | G17: 18.32941176 | H17: 42.8 | J17: 11 | L17: Nov | M17: 111.1 | N17: 17.30922604 | O17: 218.8 | P17: 18.32941176 | Q17: 42.8
A18: Dec | B18: 150 | C18: 102.7 | D18: 19.63177966 | E18: 212.2 | F18: 50 | G18: 19.77142857 | H18: 48.1 | J18: 12 | L18: Dec | M18: 102.7 | N18: 19.63177966 | O18: 212.2 | P18: 19.77142857 | Q18: 48.1
L19: Annual | M19: =AVERAGE(M7:M18) -> 52.2 | O19: =MAX(O7:O18) -> 382.4 | P19: =AVERAGE(P7:P18) -> 8.903289513 | Q19: =MAX(Q7:Q18) -> 48.1
A48: Comments :

Sheet NH3
A1: =+'Cover Page'!$B$29 -> Annual Performance Report 2023 | E1: =+'Cover Page'!$B$33 -> Levenseat Renewable Energy Limited (LREL)
A3: Monitoring of Ammnonia emissions | D3: Whole Installation | G3: See Notes in Cell Q3 | J3: =+A3 -> Monitoring of Ammnonia emissions | N3: Per Combustion Line | Q3: Notes:
Q4: User to add logic to complete Whole installation, Table A5:G18. From the data in Per Combustion Line, Table J6:O79, subject to No. of lines installed
A5: mg/Nm3 | B5: 1/2 Hourly Reference Periods | E5: Daily Reference Periods
A6: =+'Cover Page'!C39 -> 2023 | B6: 1/2 hourly NH3 ELV | C6: Monthly 1/2 hourly mean | D6: Highest 1/2 hourly maximum | E6: Daily NH3 ELV | F6: Monthly daily mean | G6: Highest daily maximum | J6: =+A6 -> 2023 | K6: mg/Nm3 | L6: Monthly 1/2 hourly mean | M6: Monthly 1/2 hourly maximum | N6: Monthly daily mean | O6: Monthly daily maximum
A7: Jan | B7: 0 | C7: n/a | D7: n/a | E7: 10 | F7: =N7 -> 0.2904761905 | G7: =O7 -> 0.6 | I7: 1 | J7: A1 | K7: Jan | L7: n/a | M7: n/a | N7: 0.2904761905 | O7: 0.6
A8: Feb | B8: =+B7 -> 0 | C8: n/a | D8: n/a | E8: =+E7 -> 10 | F8: =N8 -> 0.3 | G8: =O8 -> 0.6 | I8: 2 | K8: Feb | L8: n/a | M8: n/a | N8: 0.3 | O8: 0.6
A9: Mar | B9: =+B8 -> 0 | C9: n/a | D9: n/a | E9: =+E8 -> 10 | F9: 0.3375 | G9: 0.6 | I9: 3 | K9: Mar | L9: n/a | M9: n/a | N9: 0.3375 | O9: 0.6 | Q9: Whole Installation table A5:G18:
A10: Apr | B10: 0 | C10: n/a | D10: n/a | E10: 10 | F10: 0.1285714286 | G10: 0.3 | I10: 4 | K10: Apr | L10: n/a | M10: n/a | N10: 0.1285714286 | O10: 0.3 | Q10: Mean: for 1/2 hourly and daily periods calculate mean of values across all operational combustion lines for the month
A11: May | B11: 0 | C11: n/a | D11: n/a | E11: 10 | F11: 0.08636363636 | G11: 0.3 | I11: 5 | K11: May | L11: n/a | M11: n/a | N11: 0.08636363636 | O11: 0.3
A12: Jun | B12: 0 | C12: n/a | D12: n/a | E12: 10 | F12: 0.06 | G12: 0.1 | I12: 6 | K12: Jun | L12: n/a | M12: n/a | N12: 0.06 | O12: 0.1
A13: Jul | B13: 0 | C13: n/a | D13: n/a | E13: 10 | F13: 0.62 | G13: 1.4 | I13: 7 | K13: Jul | L13: n/a | M13: n/a | N13: 0.62 | O13: 1.4 | Q13: Maximum: for 1/2 hourly and daily periods use the highest value across all operational combustion lines for the month
A14: Aug | B14: 0 | C14: n/a | D14: n/a | E14: 10 | F14: 1.133333333 | G14: 1.8 | I14: 8 | K14: Aug | L14: n/a | M14: n/a | N14: 1.133333333 | O14: 1.8
A15: Sep | B15: 0 | C15: n/a | D15: n/a | E15: 10 | F15: 0.7058823529 | G15: 1.5 | I15: 9 | K15: Sep | L15: n/a | M15: n/a | N15: 0.7058823529 | O15: 1.5
A16: Oct | B16: 0 | C16: n/a | D16: n/a | E16: 10 | F16: 0.6407407407 | G16: 1.8 | I16: 10 | K16: Oct | L16: n/a | M16: n/a | N16: 0.6407407407 | O16: 1.8
A17: Nov | B17: 0 | C17: n/a | D17: n/a | E17: 10 | F17: 0.7058823529 | G17: 2 | I17: 11 | K17: Nov | L17: n/a | M17: n/a | N17: 0.7058823529 | O17: 2
A18: Dec | B18: 0 | C18: n/a | D18: n/a | E18: 10 | F18: 0.7142857143 | G18: 1.3 | I18: 12 | K18: Dec | L18: n/a | M18: n/a | N18: 0.7142857143 | O18: 1.3
K19: Annual | L19: =AVERAGE(L7:L18) ->  | M19: =MAX(M7:M18) -> 0 | N19: =AVERAGE(N7:N18) -> 0.4769196458 | O19: =MAX(O7:O18) -> 2
A48: Comments :

Sheet Daily Mean (hidden)
A1: Date | B1: NOx | C1: CO | D1: SO2 | E1: HCl | F1: NH3 | G1: TOC | H1: Dust | I1: Valid | M1: Valid | N1: 1
A2: 2021-01-01 | B2: 99.6 | C2: 8.1 | D2: 1.7 | E2: 8 | F2: 1.5 | G2: 0.1 | H2: 0.9 | I2: 1
A3: 2021-01-02 | B3: 92.4 | C3: 4.9 | D3: 1.3 | E3: 7.2 | F3: 2.2 | G3: 0.2 | H3: 1.3 | I3: 1 | M3: Row Labels | N3: Average of NOx | O3: Max of NOx | P3: Average of CO | Q3: Max of CO | R3: Average of SO2 | S3: Max of SO2 | T3: Average of HCl | U3: Max of HCl | V3: Average of NH3 | W3: Max of NH3 | X3: Average of TOC | Y3: Max of TOC | Z3: Average of Dust | AA3: Max of Dust
A4: 2021-01-03 | B4: 105.5 | C4: 5 | D4: 1.5 | E4: 6.8 | F4: 1.2 | G4: 0.3 | H4: 0.8 | I4: 1 | M4: Jan | N4: 98.60526316 | O4: 111.8 | P4: 6.615789474 | Q4: 25.5 | R4: 1.357894737 | S4: 1.7 | T4: 7.194736842 | U4: 8.1 | V4: 1.294736842 | W4: 2.6 | X4: 0.2526315789 | Y4: 1.2 | Z4: 0.7736842105 | AA4: 1.3
A5: 2021-01-04 | B5: 96.2 | C5: 2.8 | D5: 1.5 | E5: 6.3 | F5: 1.3 | G5: 0.1 | H5: 0.6 | I5: 1 | M5: Feb | N5: 101.226087 | O5: 123.4 | P5: 7.82173913 | Q5: 21.4 | R5: 1.117391304 | S5: 1.5 | T5: 5.782608696 | U5: 7.3 | V5: 1.404347826 | W5: 2.4 | X5: 0.3434782609 | Y5: 0.6 | Z5: 1.630434783 | AA5: 26.6
A6: 2021-01-05 | B6: 91.3 | C6: 8.9 | D6: 1.5 | E6: 6.5 | F6: 1.3 | G6: 0.5 | H6: 0.7 | I6: 1 | M6: Mar | N6: 117.036 | O6: 134.2 | P6: 4.504 | Q6: 16 | R6: 1.296 | S6: 1.7 | T6: 6.668 | U6: 7.8 | V6: 1.096 | W6: 1.8 | X6: 0.232 | Y6: 0.6 | Z6: 0.372 | AA6: 4.5
A7: 2021-01-06 | B7: 111.6 | C7: 7 | D7: 1.3 | E7: 7.8 | F7: 0.9 | G7: 0.3 | H7: 1 | I7: 1 | M7: Apr | N7: 107.8842105 | O7: 127.4 | P7: 5.984210526 | Q7: 18.8 | R7: 1.305263158 | S7: 1.7 | T7: 7.415789474 | U7: 10 | V7: 0.8052631579 | W7: 1.7 | X7: 0.4526315789 | Y7: 1.2 | Z7: 0.9157894737 | AA7: 4.2
A8: 2021-01-07 | B8: 86.2 | C8: 8.2 | D8: 1.3 | E8: 7.4 | F8: 1.1 | G8: 0.2 | H8: 0.7 | I8: 1 | M8: May | N8: 114.23 | O8: 175.3 | P8: 11.28 | Q8: 20.6 | R8: 1.396666667 | S8: 2.2 | T8: 7.376666667 | U8: 10.4 | V8: 0.5733333333 | W8: 0.9 | X8: 0.6866666667 | Y8: 1.5 | Z8: 1.186666667 | AA8: 6
A9: 2021-01-08 | B9: 97.7 | C9: 6 | D9: 1.4 | E9: 6.8 | F9: 0.8 | G9: 0.1 | H9: 0.8 | I9: 1 | M9: Jun | N9: 0 | O9: 0 | P9: 0 | Q9: 0 | R9: 0 | S9: 0 | T9: 0 | U9: 0 | V9: 0 | W9: 0 | X9: 0 | Y9: 0 | Z9: 0 | AA9: 0
A10: 2021-01-09 | B10: 79 | C10: 6.3 | D10: 1.4 | E10: 6.9 | F10: 1 | G10: 0.3 | H10: 0.9 | I10: 1 | M10: Jul | N10: 102.8533333 | O10: 157.2 | P10: 5.62 | Q10: 13.5 | R10: 1.246666667 | S10: 1.6 | T10: 6.84 | U10: 7.9 | V10: 0.94 | W10: 1.4 | X10: 0.42 | Y10: 0.9 | Z10: 2.58 | AA10: 17.6
A11: 2021-01-10 | B11: 105 | C11: 4.2 | D11: 1.5 | E11: 7.6 | F11: 1.4 | G11: 0.1 | H11: 0.6 | I11: 1 | M11: Aug | N11: 119.5888889 | O11: 160.3 | P11: 2.344444444 | Q11: 6.3 | R11: 1.133333333 | S11: 1.5 | T11: 6.555555556 | U11: 10.4 | V11: 0.8555555556 | W11: 1.2 | X11: 0.2777777778 | Y11: 0.4 | Z11: 0.6 | AA11: 1.2
A12: 2021-01-11 | B12: 92.7 | C12: 4.5 | D12: 1.2 | E12: 7.3 | F12: 2.6 | G12: 0 | H12: 1 | I12: 1 | M12: Sep | N12: 125.4238095 | O12: 137.9 | P12: 5.295238095 | Q12: 16.5 | R12: 1.29047619 | S12: 1.7 | T12: 7.042857143 | U12: 7.5 | V12: 0.6666666667 | W12: 1.4 | X12: 0.3476190476 | Y12: 0.7 | Z12: 0.4333333333 | AA12: 1.4
A13: 2021-01-12 | B13: 110.6 | C13: 3.3 | D13: 1.2 | E13: 8.1 | F13: 2 | G13: 0 | H13: 0.7 | I13: 1 | M13: Oct | N13: 113.164 | O13: 130.2 | P13: 7.496 | Q13: 20.7 | R13: 1.316 | S13: 1.9 | T13: 7.34 | U13: 17.2 | V13: 0.636 | W13: 1.2 | X13: 0.348 | Y13: 0.8 | Z13: 0.404 | AA13: 0.8
A14: 2021-01-13 | B14: 108.3 | C14: 4.8 | D14: 1.5 | E14: 8 | F14: 1.4 | G14: 0.3 | H14: 0.6 | I14: 1 | M14: Nov | N14: 0 | O14: 0 | P14: 0 | Q14: 0 | R14: 0 | S14: 0 | T14: 0 | U14: 0 | V14: 0 | W14: 0 | X14: 0 | Y14: 0 | Z14: 0 | AA14: 0
A15: 2021-01-14 | B15: 94 | C15: 4.2 | D15: 1.1 | E15: 8 | F15: 0.9 | G15: 0.1 | H15: 0.6 | I15: 1 | M15: Dec | N15: 100.6 | O15: 100.6 | P15: 3.2 | Q15: 3.2 | R15: 1.4 | S15: 1.4 | T15: 1.3 | U15: 1.3 | V15: 0.5 | W15: 0.5 | X15: 0 | Y15: 0 | Z15: 4.7 | AA15: 4.7
A16: 2021-01-15 | B16: 110.7 | C16: 6.7 | D16: 1 | E16: 7.6 | F16: 1 | G16: 0.2 | H16: 0.6 | I16: 1
A17: 2021-01-16 | B17: 84.5 | C17: 6.6 | D17: 1.4 | E17: 7.8 | F17: 1.4 | G17: 0.3 | H17: 0.5 | I17: 1
A18: 2021-01-17 | B18: 107.2 | C18: 4.8 | D18: 1.2 | E18: 7 | F18: 1 | G18: 0.2 | H18: 0.5 | I18: 1
A19: 2021-01-18 | B19: 111.8 | C19: 3.9 | D19: 1.2 | E19: 5.6 | F19: 0.6 | G19: 0.3 | H19: 0.7 | I19: 1
A20: 2021-01-19 | B20: 89.2 | C20: 25.5 | D20: 1.6 | E20: 6 | F20: 1 | G20: 1.2 | H20: 1.2 | I20: 1
A21: 2021-01-20 | B21: 0 | C21: 0 | D21: 0 | E21: 0 | F21: 0 | G21: 0 | H21: 0 | I21: 0
A22: 2021-01-21 | B22: 0 | C22: 0 | D22: 0 | E22: 0 | F22: 0 | G22: 0 | H22: 0 | I22: 0
A23: 2021-01-22 | B23: 0 | C23: 0 | D23: 0 | E23: 0 | F23: 0 | G23: 0 | H23: 0 | I23: 0
A24: 2021-01-23 | B24: 0 | C24: 0 | D24: 0 | E24: 0 | F24: 0 | G24: 0 | H24: 0 | I24: 0
A25: 2021-01-24 | B25: 0 | C25: 0 | D25: 0 | E25: 0 | F25: 0 | G25: 0 | H25: 0 | I25: 0
A26: 2021-01-25 | B26: 0 | C26: 0 | D26: 0 | E26: 0 | F26: 0 | G26: 0 | H26: 0 | I26: 0
A27: 2021-01-26 | B27: 0 | C27: 0 | D27: 0 | E27: 0 | F27: 0 | G27: 0 | H27: 0 | I27: 0
A28: 2021-01-27 | B28: 0 | C28: 0 | D28: 0 | E28: 0 | F28: 0 | G28: 0 | H28: 0 | I28: 0
A29: 2021-01-28 | B29: 0 | C29: 0 | D29: 0 | E29: 0 | F29: 0 | G29: 0 | H29: 0 | I29: 0
A30: 2021-01-29 | B30: 0 | C30: 0 | D30: 0 | E30: 0 | F30: 0 | G30: 0 | H30: 0 | I30: 0
A31: 2021-01-30 | B31: 0 | C31: 0 | D31: 0 | E31: 0 | F31: 0 | G31: 0 | H31: 0 | I31: 0
A32: 2021-01-31 | B32: 0 | C32: 0 | D32: 0 | E32: 0 | F32: 0 | G32: 0 | H32: 0 | I32: 0
A33: 2021-02-01 | B33: 0 | C33: 0 | D33: 0 | E33: 0 | F33: 0 | G33: 0 | H33: 0 | I33: 0
A34: 2021-02-02 | B34: 110.8 | C34: 3.1 | D34: 1.2 | E34: 3.5 | F34: 0.9 | G34: 0.4 | H34: 4.2 | I34: 1
A35: 2021-02-03 | B35: 110.9 | C35: 4.8 | D35: 1.1 | E35: 4.3 | F35: 1.2 | G35: 0.3 | H35: 26.6 | I35: 1
A36: 2021-02-04 | B36: 0 | C36: 0 | D36: 0 | E36: 0 | F36: 0 | G36: 0 | H36: 0 | I36: 0
A37: 2021-02-05 | B37: 119.6 | C37: 3.2 | D37: 1 | E37: 1.7 | F37: 1.1 | G37: 0.4 | H37: 1 | I37: 1
A38: 2021-02-06 | B38: 105.1 | C38: 4.6 | D38: 1.5 | E38: 4.6 | F38: 0.8 | G38: 0.3 | H38: 0.6 | I38: 1
A39: 2021-02-07 | B39: 104.3 | C39: 9.5 | D39: 1.2 | E39: 6.6 | F39: 0.9 | G39: 0.2 | H39: 0.4 | I39: 1
A40: 2021-02-08 | B40: 96.9 | C40: 21.4 | D40: 1 | E40: 6.1 | F40: 2.1 | G40: 0.6 | H40: 0.4 | I40: 1
A41: 2021-02-09 | B41: 113.3 | C41: 14.1 | D41: 1.2 | E41: 4.9 | F41: 1.5 | G41: 0.4 | H41: 0.3 | I41: 1
A42: 2021-02-10 | B42: 98 | C42: 3 | D42: 1.3 | E42: 7 | F42: 0.8 | G42: 0.3 | H42: 0.3 | I42: 1
A43: 2021-02-11 | B43: 92.5 | C43: 1.6 | D43: 1.1 | E43: 7 | F43: 1.1 | G43: 0.4 | H43: 0.3 | I43: 1
A44: 2021-02-12 | B44: 100.9 | C44: 2.3 | D44: 0.5 | E44: 4.9 | F44: 0.9 | G44: 0.4 | H44: 0.3 | I44: 1
A45: 2021-02-13 | B45: 123.4 | C45: 2.9 | D45: 1 | E45: 5.2 | F45: 0.9 | G45: 0.4 | H45: 0.6 | I45: 1
A46: 2021-02-14 | B46: 0 | C46: 0 | D46: 0 | E46: 0 | F46: 0 | G46: 0 | H46: 0 | I46: 0
A47: 2021-02-15 | B47: 0 | C47: 0 | D47: 0 | E47: 0 | F47: 0 | G47: 0 | H47: 0 | I47: 0
A48: 2021-02-16 | B48: 0 | C48: 0 | D48: 0 | E48: 0 | F48: 0 | G48: 0 | H48: 0 | I48: 0
A49: 2021-02-17 | B49: 107.7 | C49: 7.3 | D49: 0.6 | E49: 7.2 | F49: 1.7 | G49: 0.4 | H49: 0.3 | I49: 1
A50: 2021-02-18 | B50: 80.2 | C50: 2.3 | D50: 1 | E50: 4.9 | F50: 2 | G50: 0.2 | H50: 0.2 | I50: 1
A51: 2021-02-19 | B51: 82.2 | C51: 4.6 | D51: 1 | E51: 6.4 | F51: 2.4 | G51: 0.3 | H51: 0.3 | I51: 1
A52: 2021-02-20 | B52: 100 | C52: 12.7 | D52: 1.2 | E52: 6.3 | F52: 1.7 | G52: 0.4 | H52: 0.2 | I52: 1
A53: 2021-02-21 | B53: 93.5 | C53: 13.5 | D53: 1.3 | E53: 5.8 | F53: 1.5 | G53: 0.4 | H53: 0.2 | I53: 1
A54: 2021-02-22 | B54: 98.4 | C54: 14.5 | D54: 1.1 | E54: 7.3 | F54: 1.5 | G54: 0.3 | H54: 0.1 | I54: 1
A55: 2021-02-23 | B55: 100.5 | C55: 18.2 | D55: 1 | E55: 5.8 | F55: 1.8 | G55: 0.4 | H55: 0.2 | I55: 1
A56: 2021-02-24 | B56: 93 | C56: 9.7 | D56: 1.3 | E56: 6.5 | F56: 1.4 | G56: 0.3 | H56: 0.2 | I56: 1
A57: 2021-02-25 | B57: 96.4 | C57: 9.5 | D57: 1.3 | E57: 6.5 | F57: 1.6 | G57: 0.3 | H57: 0.2 | I57: 1
A58: 2021-02-26 | B58: 86.5 | C58: 5.4 | D58: 1.3 | E58: 6.9 | F58: 2 | G58: 0.3 | H58: 0.2 | I58: 1
A59: 2021-02-27 | B59: 103.7 | C59: 7.1 | D59: 1.3 | E59: 7.1 | F59: 1.2 | G59: 0.3 | H59: 0.2 | I59: 1
A60: 2021-02-28 | B60: 110.4 | C60: 4.6 | D60: 1.2 | E60: 6.5 | F60: 1.3 | G60: 0.2 | H60: 0.2 | I60: 1
A61: 2021-03-01 | B61: 121.4 | C61: 2.9 | D61: 1.3 | E61: 7.8 | F61: 0.9 | G61: 0.3 | H61: 0.2 | I61: 1
A62: 2021-03-02 | B62: 117.3 | C62: 6.3 | D62: 1.7 | E62: 6.7 | F62: 1.2 | G62: 0.3 | H62: 0.3 | I62: 1
A63: 2021-03-03 | B63: 114.8 | C63: 2.2 | D63: 1.6 | E63: 7.5 | F63: 1 | G63: 0.2 | H63: 0.2 | I63: 1
A64: 2021-03-04 | B64: 117.5 | C64: 3.1 | D64: 1.5 | E64: 5.4 | F64: 1 | G64: 0.2 | H64: 0.2 | I64: 1
A65: 2021-03-05 | B65: 113.4 | C65: 2 | D65: 1.2 | E65: 6.8 | F65: 1.3 | G65: 0.2 | H65: 0.2 | I65: 1
A66: 2021-03-06 | B66: 131.8 | C66: 5.3 | D66: 1.2 | E66: 5 | F66: 0.9 | G66: 0.2 | H66: 0.3 | I66: 1
A67: 2021-03-07 | B67: 116.9 | C67: 2.6 | D67: 1.1 | E67: 5.1 | F67: 1.1 | G67: 0.2 | H67: 0.3 | I67: 1
A68: 2021-03-08 | B68: 134.2 | C68: 1.7 | D68: 1.1 | E68: 5.6 | F68: 1.1 | G68: 0.2 | H68: 0.3 | I68: 1
A69: 2021-03-09 | B69: 123.5 | C69: 2 | D69: 1.2 | E69: 7.2 | F69: 1.1 | G69: 0.2 | H69: 0.3 | I69: 1
A70: 2021-03-10 | B70: 125.6 | C70: 2.1 | D70: 1.1 | E70: 6.2 | F70: 0.9 | G70: 0.2 | H70: 0.2 | I70: 1
A71: 2021-03-11 | B71: 118.2 | C71: 3.5 | D71: 1.3 | E71: 7.6 | F71: 1.1 | G71: 0.1 | H71: 0.2 | I71: 1
A72: 2021-03-12 | B72: 128.5 | C72: 5.7 | D72: 1.2 | E72: 6.6 | F72: 0.7 | G72: 0.1 | H72: 0.2 | I72: 1
A73: 2021-03-13 | B73: 124.7 | C73: 5.2 | D73: 1.4 | E73: 7.6 | F73: 0.8 | G73: 0.1 | H73: 0.2 | I73: 1
A74: 2021-03-14 | B74: 0 | C74: 0 | D74: 0 | E74: 0 | F74: 0 | G74: 0 | H74: 0 | I74: 0
A75: 2021-03-15 | B75: 0 | C75: 0 | D75: 0 | E75: 0 | F75: 0 | G75: 0 | H75: 0 | I75: 0
A76: 2021-03-16 | B76: 0 | C76: 0 | D76: 0 | E76: 0 | F76: 0 | G76: 0 | H76: 0 | I76: 0
A77: 2021-03-17 | B77: 117.8 | C77: 1.4 | D77: 1.1 | E77: 3.6 | F77: 1.4 | G77: 0.4 | H77: 0.3 | I77: 1
A78: 2021-03-18 | B78: 105.3 | C78: 16 | D78: 1.4 | E78: 6.9 | F78: 1 | G78: 0.6 | H78: 0.2 | I78: 1
A79: 2021-03-19 | B79: 110.6 | C79: 7.4 | D79: 1.5 | E79: 4.4 | F79: 1.6 | G79: 0.4 | H79: 4.5 | I79: 1
A80: 2021-03-20 | B80: 122.8 | C80: 4.4 | D80: 1.2 | E80: 7.8 | F80: 0.7 | G80: 0.2 | H80: 0.3 | I80: 1
A81: 2021-03-21 | B81: 97.3 | C81: 6.5 | D81: 1.1 | E81: 6 | F81: 1.4 | G81: 0.3 | H81: 0.2 | I81: 1
A82: 2021-03-22 | B82: 99.2 | C82: 4.3 | D82: 0.9 | E82: 7.8 | F82: 0.8 | G82: 0.2 | H82: 0.1 | I82: 1
A83: 2021-03-23 | B83: 113.2 | C83: 4.5 | D83: 1.4 | E83: 6.8 | F83: 0.9 | G83: 0.2 | H83: 0.1 | I83: 1
A84: 2021-03-24 | B84: 127.4 | C84: 3.8 | D84: 1.4 | E84: 7.6 | F84: 0.9 | G84: 0.2 | H84: 0.1 | I84: 1
A85: 2021-03-25 | B85: 108.9 | C85: 5.9 | D85: 1.3 | E85: 7.8 | F85: 1.2 | G85: 0.2 | H85: 0.1 | I85: 1
A86: 2021-03-26 | B86: 115.2 | C86: 2.3 | D86: 1.6 | E86: 7.7 | F86: 1.4 | G86: 0.2 | H86: 0.1 | I86: 1
A87: 2021-03-27 | B87: 101.1 | C87: 8.6 | D87: 1.3 | E87: 7.6 | F87: 1.8 | G87: 0.2 | H87: 0.1 | I87: 1
A88: 2021-03-28 | B88: 119.3 | C88: 2.9 | D88: 1.3 | E88: 7.6 | F88: 1.2 | G88: 0.2 | H88: 0.1 | I88: 1
A89: 2021-03-29 | B89: 0 | C89: 0 | D89: 0 | E89: 0 | F89: 0 | G89: 0 | H89: 0 | I89: 0
A90: 2021-03-30 | B90: 0 | C90: 0 | D90: 0 | E90: 0 | F90: 0 | G90: 0 | H90: 0 | I90: 0
A91: 2021-03-31 | B91: 0 | C91: 0 | D91: 0 | E91: 0 | F91: 0 | G91: 0 | H91: 0 | I91: 0
A92: 2021-04-01 | B92: 0 | C92: 0 | D92: 0 | E92: 0 | F92: 0 | G92: 0 | H92: 0 | I92: 0
A93: 2021-04-02 | B93: 0 | C93: 0 | D93: 0 | E93: 0 | F93: 0 | G93: 0 | H93: 0 | I93: 0
A94: 2021-04-03 | B94: 0 | C94: 0 | D94: 0 | E94: 0 | F94: 0 | G94: 0 | H94: 0 | I94: 0
A95: 2021-04-04 | B95: 0 | C95: 0 | D95: 0 | E95: 0 | F95: 0 | G95: 0 | H95: 0 | I95: 0
A96: 2021-04-05 | B96: 112.1 | C96: 8.4 | D96: 1.2 | E96: 10 | F96: 1.7 | G96: 0.8 | H96: 1.1 | I96: 1
A97: 2021-04-06 | B97: 121.3 | C97: 2.3 | D97: 1.1 | E97: 5.4 | F97: 1 | G97: 0.3 | H97: 0.2 | I97: 1
A98: 2021-04-07 | B98: 122.5 | C98: 2.3 | D98: 1.3 | E98: 7.6 | F98: 0.7 | G98: 0.2 | H98: 0.1 | I98: 1
A99: 2021-04-08 | B99: 122.7 | C99: 3.5 | D99: 1.2 | E99: 7.8 | F99: 0.9 | G99: 0.2 | H99: 0.1 | I99: 1
A100: 2021-04-09 | B100: 106.9 | C100: 2.2 | D100: 1.5 | E100: 7.8 | F100: 0.8 | G100: 0.2 | H100: 0.1 | I100: 1
A101: 2021-04-10 | B101: 108.8 | C101: 6.3 | D101: 1.7 | E101: 7.6 | F101: 0.9 | G101: 0.3 | H101: 0.1 | I101: 1
A102: 2021-04-11 | B102: 0 | C102: 0 | D102: 0 | E102: 0 | F102: 0 | G102: 0 | H102: 0 | I102: 0
A103: 2021-04-12 | B103: 0 | C103: 0 | D103: 0 | E103: 0 | F103: 0 | G103: 0 | H103: 0 | I103: 0
A104: 2021-04-13 | B104: 0 | C104: 0 | D104: 0 | E104: 0 | F104: 0 | G104: 0 | H104: 0 | I104: 0
A105: 2021-04-14 | B105: 0 | C105: 0 | D105: 0 | E105: 0 | F105: 0 | G105: 0 | H105: 0 | I105: 0
A106: 2021-04-15 | B106: 0 | C106: 0 | D106: 0 | E106: 0 | F106: 0 | G106: 0 | H106: 0 | I106: 0
A107: 2021-04-16 | B107: 0 | C107: 0 | D107: 0 | E107: 0 | F107: 0 | G107: 0 | H107: 0 | I107: 0
A108: 2021-04-17 | B108: 0 | C108: 0 | D108: 0 | E108: 0 | F108: 0 | G108: 0 | H108: 0 | I108: 0
A109: 2021-04-18 | B109: 127.4 | C109: 1.6 | D109: 0.8 | E109: 4.6 | F109: 0.8 | G109: 0.4 | H109: 1.5 | I109: 1
A110: 2021-04-19 | B110: 98.8 | C110: 3.1 | D110: 1 | E110: 7.1 | F110: 0.8 | G110: 0.3 | H110: 0.1 | I110: 1
A111: 2021-04-20 | B111: 101.6 | C111: 3.6 | D111: 1.4 | E111: 8.1 | F111: 0.8 | G111: 0.3 | H111: 3.2 | I111: 1
A112: 2021-04-21 | B112: 93.5 | C112: 5.1 | D112: 1.4 | E112: 7.7 | F112: 0.9 | G112: 0.4 | H112: 4.2 | I112: 1
A113: 2021-04-22 | B113: 96.1 | C113: 4.5 | D113: 1.3 | E113: 7.3 | F113: 0.8 | G113: 0.3 | H113: 2.2 | I113: 1
A114: 2021-04-23 | B114: 99.1 | C114: 6.7 | D114: 1.4 | E114: 7.4 | F114: 0.7 | G114: 0.4 | H114: 3.2 | I114: 1
A115: 2021-04-24 | B115: 89.2 | C115: 6.9 | D115: 1.5 | E115: 8 | F115: 0.7 | G115: 0.6 | H115: 0.1 | I115: 1
A116: 2021-04-25 | B116: 99 | C116: 6.5 | D116: 1.6 | E116: 7.4 | F116: 0.6 | G116: 0.5 | H116: 0.3 | I116: 1
A117: 2021-04-26 | B117: 106.2 | C117: 7 | D117: 1.4 | E117: 7.4 | F117: 0.7 | G117: 0.5 | H117: 0.3 | I117: 1
A118: 2021-04-27 | B118: 111.2 | C118: 7.4 | D118: 1.2 | E118: 7.4 | F118: 0.6 | G118: 0.5 | H118: 0.2 | I118: 1
A119: 2021-04-28 | B119: 112.9 | C119: 2.2 | D119: 1 | E119: 7.3 | F119: 0.5 | G119: 0.2 | H119: 0.2 | I119: 1
A120: 2021-04-29 | B120: 111.9 | C120: 15.3 | D120: 1.3 | E120: 7.4 | F120: 0.6 | G120: 1 | H120: 0.1 | I120: 1
A121: 2021-04-30 | B121: 108.6 | C121: 18.8 | D121: 1.5 | E121: 7.6 | F121: 0.8 | G121: 1.2 | H121: 0.1 | I121: 1
A122: 2021-05-01 | B122: 119.7 | C122: 10.9 | D122: 1.3 | E122: 8.2 | F122: 0.7 | G122: 0.8 | H122: 0.1 | I122: 1
A123: 2021-05-02 | B123: 116.5 | C123: 6.6 | D123: 1.3 | E123: 6.5 | F123: 0.6 | G123: 0.4 | H123: 0.2 | I123: 1
A124: 2021-05-03 | B124: 130.8 | C124: 12.7 | D124: 1.1 | E124: 6.5 | F124: 0.6 | G124: 0.8 | H124: 0.2 | I124: 1
A125: 2021-05-04 | B125: 113.5 | C125: 19.6 | D125: 1.3 | E125: 7 | F125: 0.7 | G125: 1.2 | H125: 0.1 | I125: 1
A126: 2021-05-05 | B126: 101.1 | C126: 15 | D126: 1.5 | E126: 7.3 | F126: 0.7 | G126: 1.1 | H126: 0.2 | I126: 1
A127: 2021-05-06 | B127: 118.8 | C127: 7.5 | D127: 1.2 | E127: 7.4 | F127: 0.6 | G127: 0.4 | H127: 3.8 | I127: 1
A128: 2021-05-07 | B128: 137.5 | C128: 9.7 | D128: 0.7 | E128: 7.5 | F128: 0.5 | G128: 0.6 | H128: 0.8 | I128: 1
A129: 2021-05-08 | B129: 96.1 | C129: 11.7 | D129: 0.7 | E129: 6.6 | F129: 0.8 | G129: 0.7 | H129: 1 | I129: 1
A130: 2021-05-09 | B130: 84.8 | C130: 19.2 | D130: 0.7 | E130: 6.7 | F130: 0.9 | G130: 1.5 | H130: 0.3 | I130: 1
A131: 2021-05-10 | B131: 120 | C131: 15.5 | D131: 0.6 | E131: 7 | F131: 0.8 | G131: 1.1 | H131: 0.2 | I131: 1
A132: 2021-05-11 | B132: 102.5 | C132: 20.6 | D132: 0.7 | E132: 7.5 | F132: 0.6 | G132: 1.5 | H132: 0.1 | I132: 1
A133: 2021-05-12 | B133: 97.6 | C133: 19.9 | D133: 0.7 | E133: 7.2 | F133: 0.6 | G133: 1.4 | H133: 0.1 | I133: 1
A134: 2021-05-13 | B134: 94.7 | C134: 13.3 | D134: 1.2 | E134: 7.4 | F134: 0.7 | G134: 0.6 | H134: 0.2 | I134: 1
A135: 2021-05-14 | B135: 121 | C135: 6.9 | D135: 2 | E135: 8.9 | F135: 0.5 | G135: 0.3 | H135: 4.9 | I135: 1
A136: 2021-05-15 | B136: 108.7 | C136: 19 | D136: 1.8 | E136: 7.3 | F136: 0.5 | G136: 0.9 | H136: 0.4 | I136: 1
A137: 2021-05-16 | B137: 175.3 | C137: 6.9 | D137: 1.6 | E137: 10.4 | F137: 0.2 | G137: 0.6 | H137: 0.8 | I137: 1
A138: 2021-05-17 | B138: 154.4 | C138: 7.9 | D138: 2.2 | E138: 6.1 | F138: 0.4 | G138: 0.4 | H138: 1.2 | I138: 1
A139: 2021-05-18 | B139: 105.6 | C139: 13.3 | D139: 2.1 | E139: 6.9 | F139: 0.5 | G139: 0.7 | H139: 1.2 | I139: 1
A140: 2021-05-19 | B140: 107.2 | C140: 10.9 | D140: 1.5 | E140: 6.7 | F140: 0.6 | G140: 0.7 | H140: 1 | I140: 1
A141: 2021-05-20 | B141: 99.3 | C141: 13.1 | D141: 1.9 | E141: 7.3 | F141: 0.6 | G141: 0.8 | H141: 1 | I141: 1
A142: 2021-05-21 | B142: 106.9 | C142: 10.6 | D142: 1.5 | E142: 7.2 | F142: 0.5 | G142: 0.5 | H142: 1.2 | I142: 1
A143: 2021-05-22 | B143: 110.1 | C143: 12.7 | D143: 1.6 | E143: 8.9 | F143: 0.6 | G143: 0.6 | H143: 2.9 | I143: 1
A144: 2021-05-23 | B144: 126.2 | C144: 10.5 | D144: 1.1 | E144: 7.2 | F144: 0.3 | G144: 0.5 | H144: 6 | I144: 1
A145: 2021-05-24 | B145: 105.8 | C145: 10.9 | D145: 1.5 | E145: 7.5 | F145: 0.4 | G145: 0.4 | H145: 0.5 | I145: 1
A146: 2021-05-25 | B146: 105.1 | C146: 5.9 | D146: 1.5 | E146: 7.4 | F146: 0.4 | G146: 0.3 | H146: 0.3 | I146: 1
A147: 2021-05-26 | B147: 110.5 | C147: 4.3 | D147: 1.7 | E147: 7.4 | F147: 0.5 | G147: 0.3 | H147: 0.2 | I147: 1
A148: 2021-05-27 | B148: 114.1 | C148: 4.1 | D148: 1.6 | E148: 7.4 | F148: 0.4 | G148: 0.3 | H148: 0.3 | I148: 1
A149: 2021-05-28 | B149: 100.6 | C149: 5.6 | D149: 1.7 | E149: 7.3 | F149: 0.7 | G149: 0.3 | H149: 0.3 | I149: 1
A150: 2021-05-29 | B150: 101.7 | C150: 8 | D150: 1.7 | E150: 7.2 | F150: 0.8 | G150: 0.5 | H150: 3.2 | I150: 1
A151: 2021-05-30 | B151: 140.8 | C151: 5.6 | D151: 1.9 | E151: 7.4 | F151: 0.5 | G151: 0.4 | H151: 2.9 | I151: 1
A152: 2021-05-31 | B152: 0 | C152: 0 | D152: 0 | E152: 0 | F152: 0 | G152: 0 | H152: 0 | I152: 0
A153: 2021-06-01 | B153: 0 | C153: 0 | D153: 0 | E153: 0 | F153: 0 | G153: 0 | H153: 0 | I153: 0
A154: 2021-06-02 | B154: 0 | C154: 0 | D154: 0 | E154: 0 | F154: 0 | G154: 0 | H154: 0 | I154: 0
A155: 2021-06-03 | B155: 0 | C155: 0 | D155: 0 | E155: 0 | F155: 0 | G155: 0 | H155: 0 | I155: 0
A156: 2021-06-04 | B156: 0 | C156: 0 | D156: 0 | E156: 0 | F156: 0 | G156: 0 | H156: 0 | I156: 0
A157: 2021-06-05 | B157: 0 | C157: 0 | D157: 0 | E157: 0 | F157: 0 | G157: 0 | H157: 0 | I157: 0
A158: 2021-06-06 | B158: 0 | C158: 0 | D158: 0 | E158: 0 | F158: 0 | G158: 0 | H158: 0 | I158: 0
A159: 2021-06-07 | B159: 0 | C159: 0 | D159: 0 | E159: 0 | F159: 0 | G159: 0 | H159: 0 | I159: 0
A160: 2021-06-08 | B160: 0 | C160: 0 | D160: 0 | E160: 0 | F160: 0 | G160: 0 | H160: 0 | I160: 0
A161: 2021-06-09 | B161: 0 | C161: 0 | D161: 0 | E161: 0 | F161: 0 | G161: 0 | H161: 0 | I161: 0
A162: 2021-06-10 | B162: 0 | C162: 0 | D162: 0 | E162: 0 | F162: 0 | G162: 0 | H162: 0 | I162: 0
A163: 2021-06-11 | B163: 0 | C163: 0 | D163: 0 | E163: 0 | F163: 0 | G163: 0 | H163: 0 | I163: 0
A164: 2021-06-12 | B164: 0 | C164: 0 | D164: 0 | E164: 0 | F164: 0 | G164: 0 | H164: 0 | I164: 0
A165: 2021-06-13 | B165: 0 | C165: 0 | D165: 0 | E165: 0 | F165: 0 | G165: 0 | H165: 0 | I165: 0
A166: 2021-06-14 | B166: 0 | C166: 0 | D166: 0 | E166: 0 | F166: 0 | G166: 0 | H166: 0 | I166: 0
A167: 2021-06-15 | B167: 0 | C167: 0 | D167: 0 | E167: 0 | F167: 0 | G167: 0 | H167: 0 | I167: 0
A168: 2021-06-16 | B168: 0 | C168: 0 | D168: 0 | E168: 0 | F168: 0 | G168: 0 | H168: 0 | I168: 0
A169: 2021-06-17 | B169: 0 | C169: 0 | D169: 0 | E169: 0 | F169: 0 | G169: 0 | H169: 0 | I169: 0
A170: 2021-06-18 | B170: 0 | C170: 0 | D170: 0 | E170: 0 | F170: 0 | G170: 0 | H170: 0 | I170: 0
A171: 2021-06-19 | B171: 0 | C171: 0 | D171: 0 | E171: 0 | F171: 0 | G171: 0 | H171: 0 | I171: 0
A172: 2021-06-20 | B172: 0 | C172: 0 | D172: 0 | E172: 0 | F172: 0 | G172: 0 | H172: 0 | I172: 0
A173: 2021-06-21 | B173: 0 | C173: 0 | D173: 0 | E173: 0 | F173: 0 | G173: 0 | H173: 0 | I173: 0
A174: 2021-06-22 | B174: 0 | C174: 0 | D174: 0 | E174: 0 | F174: 0 | G174: 0 | H174: 0 | I174: 0
A175: 2021-06-23 | B175: 0 | C175: 0 | D175: 0 | E175: 0 | F175: 0 | G175: 0 | H175: 0 | I175: 0
A176: 2021-06-24 | B176: 0 | C176: 0 | D176: 0 | E176: 0 | F176: 0 | G176: 0 | H176: 0 | I176: 0
A177: 2021-06-25 | B177: 0 | C177: 0 | D177: 0 | E177: 0 | F177: 0 | G177: 0 | H177: 0 | I177: 0
A178: 2021-06-26 | B178: 0 | C178: 0 | D178: 0 | E178: 0 | F178: 0 | G178: 0 | H178: 0 | I178: 0
A179: 2021-06-27 | B179: 0 | C179: 0 | D179: 0 | E179: 0 | F179: 0 | G179: 0 | H179: 0 | I179: 0
A180: 2021-06-28 | B180: 0 | C180: 0 | D180: 0 | E180: 0 | F180: 0 | G180: 0 | H180: 0 | I180: 0
A181: 2021-06-29 | B181: 0 | C181: 0 | D181: 0 | E181: 0 | F181: 0 | G181: 0 | H181: 0 | I181: 0
A182: 2021-06-30 | B182: 0 | C182: 0 | D182: 0 | E182: 0 | F182: 0 | G182: 0 | H182: 0 | I182: 0
A183: 2021-07-01 | B183: 0 | C183: 0 | D183: 0 | E183: 0 | F183: 0 | G183: 0 | H183: 0 | I183: 0
A184: 2021-07-02 | B184: 0 | C184: 0 | D184: 0 | E184: 0 | F184: 0 | G184: 0 | H184: 0 | I184: 0
A185: 2021-07-03 | B185: 0 | C185: 0 | D185: 0 | E185: 0 | F185: 0 | G185: 0 | H185: 0 | I185: 0
A186: 2021-07-04 | B186: 0 | C186: 0 | D186: 0 | E186: 0 | F186: 0 | G186: 0 | H186: 0 | I186: 0
A187: 2021-07-05 | B187: 0 | C187: 0 | D187: 0 | E187: 0 | F187: 0 | G187: 0 | H187: 0 | I187: 0
A188: 2021-07-06 | B188: 0 | C188: 0 | D188: 0 | E188: 0 | F188: 0 | G188: 0 | H188: 0 | I188: 0
A189: 2021-07-07 | B189: 0 | C189: 0 | D189: 0 | E189: 0 | F189: 0 | G189: 0 | H189: 0 | I189: 0
A190: 2021-07-08 | B190: 0 | C190: 0 | D190: 0 | E190: 0 | F190: 0 | G190: 0 | H190: 0 | I190: 0
A191: 2021-07-09 | B191: 0 | C191: 0 | D191: 0 | E191: 0 | F191: 0 | G191: 0 | H191: 0 | I191: 0
A192: 2021-07-10 | B192: 0 | C192: 0 | D192: 0 | E192: 0 | F192: 0 | G192: 0 | H192: 0 | I192: 0
A193: 2021-07-11 | B193: 0 | C193: 0 | D193: 0 | E193: 0 | F193: 0 | G193: 0 | H193: 0 | I193: 0
A194: 2021-07-12 | B194: 0 | C194: 0 | D194: 0 | E194: 0 | F194: 0 | G194: 0 | H194: 0 | I194: 0
A195: 2021-07-13 | B195: 0 | C195: 0 | D195: 0 | E195: 0 | F195: 0 | G195: 0 | H195: 0 | I195: 0
A196: 2021-07-14 | B196: 0 | C196: 0 | D196: 0 | E196: 0 | F196: 0 | G196: 0 | H196: 0 | I196: 0
A197: 2021-07-15 | B197: 122.6 | C197: 2.3 | D197: 0.9 | E197: 7.5 | F197: 0.3 | G197: 0.8 | H197: 4.6 | I197: 1
A198: 2021-07-16 | B198: 0 | C198: 0 | D198: 0 | E198: 0 | F198: 0 | G198: 0 | H198: 0 | I198: 0
A199: 2021-07-17 | B199: 157.2 | C199: 3 | D199: 0.7 | E199: 4.2 | F199: 0.2 | G199: 0.5 | H199: 17.6 | I199: 1
A200: 2021-07-18 | B200: 127.1 | C200: 6.5 | D200: 1.3 | E200: 4.9 | F200: 0.6 | G200: 0.7 | H200: 12.2 | I200: 1
... 166 more rows

Sheet 30m Mean (hidden)
A1: Date.Time | B1: NOx | C1: CO | D1: SO2 | E1: HCl | F1: NH3 | G1: TOC | H1: Dust | I1: Valid | M1: Valid | N1: Waste
A2: 2021-01-01T00:29:00 | B2: 94.7 | C2: 1.7 | D2: 1.5 | E2: 5.1 | F2: 2.9 | G2: 0 | H2: 1 | I2: Waste
A3: 2021-01-01T00:59:00 | B3: 86.8 | C3: 2.4 | D3: 1.6 | E3: 5.6 | F3: 2.7 | G3: 0 | H3: 1 | I3: Waste | M3: Row Labels | N3: Average of NOx | O3: Max of NOx | P3: Average of CO | Q3: Max of CO | R3: Average of SO2 | S3: Max of SO2 | T3: Average of HCl | U3: Max of HCl | V3: Average of NH3 | W3: Max of NH3 | X3: Average of TOC | Y3: Max of TOC | Z3: Average of Dust | AA3: Max of Dust
A4: 2021-01-01T01:29:00 | B4: 81 | C4: 2.5 | D4: 1.6 | E4: 5.9 | F4: 2.4 | G4: 0 | H4: 0.9 | I4: Waste | M4: Jan | N4: 98.92007001 | O4: 220.9 | P4: 5.908634772 | Q4: 147.1 | R4: 1.354725788 | S4: 2.3 | T4: 7.242707118 | U4: 14 | V4: 1.306534422 | W4: 4.9 | X4: 0.2064177363 | Y4: 14.8 | Z4: 0.7480746791 | AA4: 4
A5: 2021-01-01T01:59:00 | B5: 91.2 | C5: 2.3 | D5: 1.7 | E5: 6.4 | F5: 1.7 | G5: 0 | H5: 0.9 | I5: Waste | M5: Feb | N5: 98.9768595 | O5: 157.8 | P5: 8.179693034 | Q5: 156 | R5: 1.163636364 | S5: 1.9 | T5: 6.067532468 | U5: 14.1 | V5: 1.439197166 | W5: 9 | X5: 0.3221959858 | Y5: 6.4 | Z5: 0.5282172373 | AA5: 101.3
A6: 2021-01-01T02:29:00 | B6: 113.2 | C6: 1.8 | D6: 1.7 | E6: 7.5 | F6: 1.3 | G6: 0 | H6: 0.8 | I6: Waste | M6: Mar | N6: 117.0488225 | O6: 187.5 | P6: 4.534692029 | Q6: 159.5 | R6: 1.298460145 | S6: 2.2 | T6: 6.756884058 | U6: 12.8 | V6: 1.07798913 | W6: 6.2 | X6: 0.2338768116 | Y6: 10.4 | Z6: 0.3523550725 | AA6: 11.4
A7: 2021-01-01T02:59:00 | B7: 105.9 | C7: 3.7 | D7: 1.9 | E7: 7 | F7: 1.3 | G7: 0 | H7: 0.8 | I7: Waste | M7: Apr | N7: 106.7634783 | O7: 201.3 | P7: 6.064720497 | Q7: 105.8 | R7: 1.320621118 | S7: 2.3 | T7: 7.380496894 | U7: 27.4 | V7: 0.7752795031 | W7: 2.8 | X7: 0.4404968944 | Y7: 9 | Z7: 0.9481987578 | AA7: 26.2
A8: 2021-01-01T03:29:00 | B8: 103 | C8: 2.3 | D8: 1.7 | E8: 6.6 | F8: 1.2 | G8: 0 | H8: 1.5 | I8: Waste | M8: May | N8: 111.4461665 | O8: 233.9 | P8: 11.3721352 | Q8: 200.2 | R8: 1.374361088 | S8: 2.6 | T8: 7.307419621 | U8: 56.5 | V8: 0.5780708986 | W8: 1.8 | X8: 0.6882207578 | Y8: 15.2 | Z8: 1.233251029 | AA8: 146.1
A9: 2021-01-01T03:59:00 | B9: 95 | C9: 19.4 | D9: 1.6 | E9: 6.7 | F9: 1 | G9: 0.1 | H9: 1.7 | I9: Waste | M9: Jun | N9: 0 | O9: 0 | P9: 0 | Q9: 0 | R9: 0 | S9: 0 | T9: 0 | U9: 0 | V9: 0 | W9: 0 | X9: 0 | Y9: 0 | Z9: 0 | AA9: 0
A10: 2021-01-01T04:29:00 | B10: 89.8 | C10: 6.5 | D10: 1.6 | E10: 7.1 | F10: 0.9 | G10: 0.1 | H10: 0.7 | I10: Waste | M10: Jul | N10: 96.01838879 | O10: 203.3 | P10: 5.958318739 | Q10: 65.4 | R10: 1.307530648 | S10: 2.1 | T10: 7.179859895 | U10: 16.2 | V10: 1.07793345 | W10: 3.8 | X10: 0.3789842382 | Y10: 5 | Z10: 0.6873905429 | AA10: 32.6
A11: 2021-01-01T04:59:00 | B11: 89.8 | C11: 3.4 | D11: 1.7 | E11: 7.5 | F11: 0.9 | G11: 0 | H11: 0.8 | I11: Waste | M11: Aug | N11: 111.9285141 | O11: 203.9 | P11: 3.281526104 | Q11: 48 | R11: 1.187550201 | S11: 3.6 | T11: 6.820883534 | U11: 19.1 | V11: 0.9634538153 | W11: 2.2 | X11: 0.2630522088 | Y11: 1.7 | Z11: 0.4504 | AA11: 3.6
A12: 2021-01-01T05:29:00 | B12: 111.3 | C12: 6.4 | D12: 1.7 | E12: 7.8 | F12: 1.1 | G12: 0 | H12: 0.9 | I12: Waste | M12: Sep | N12: 124.0135731 | O12: 236.2 | P12: 4.761136891 | Q12: 165.9 | R12: 1.281090487 | S12: 3.4 | T12: 7.09187935 | U12: 13.5 | V12: 0.6719257541 | W12: 2.2 | X12: 0.329350348 | Y12: 11.4 | Z12: 0.3863583815 | AA12: 4.4
A13: 2021-01-01T05:59:00 | B13: 96.2 | C13: 1.9 | D13: 1.7 | E13: 7.8 | F13: 0.9 | G13: 0 | H13: 0.6 | I13: Waste | M13: Oct | N13: 112.867543 | O13: 231.5 | P13: 7.680283114 | Q13: 149.7 | R13: 1.326390293 | S13: 4.8 | T13: 7.064610718 | U13: 26.3 | V13: 0.644388271 | W13: 2.4 | X13: 0.3300303337 | Y13: 8 | Z13: 0.3835187058 | AA13: 2.5
A14: 2021-01-01T06:29:00 | B14: 95.4 | C14: 10 | D14: 1.6 | E14: 8.4 | F14: 0.9 | G14: 0 | H14: 0.6 | I14: Waste | M14: Nov | N14: 0 | O14: 0 | P14: 0 | Q14: 0 | R14: 0 | S14: 0 | T14: 0 | U14: 0 | V14: 0 | W14: 0 | X14: 0 | Y14: 0 | Z14: 0 | AA14: 0
A15: 2021-01-01T06:59:00 | B15: 94.8 | C15: 3.3 | D15: 1.6 | E15: 8.2 | F15: 1.5 | G15: 0 | H15: 0.7 | I15: Waste | M15: Dec | N15: 100.5666667 | O15: 111.5 | P15: 3.233333333 | Q15: 4.3 | R15: 1.433333333 | S15: 3.3 | T15: 1.25 | U15: 2.4 | V15: 0.55 | W15: 0.8 | X15: 0 | Y15: 0 | Z15: 4.666666667 | AA15: 8.2
A16: 2021-01-01T07:29:00 | B16: 104.6 | C16: 3.6 | D16: 1.4 | E16: 5.7 | F16: 2.7 | G16: 0 | H16: 1 | I16: Waste
A17: 2021-01-01T07:59:00 | B17: 107.3 | C17: 2.5 | D17: 1.4 | E17: 5.6 | F17: 1.9 | G17: 0.1 | H17: 2 | I17: Waste
A18: 2021-01-01T08:29:00 | B18: 123.5 | C18: 4.3 | D18: 1.9 | E18: 7.2 | F18: 1.9 | G18: 0 | H18: 1.3 | I18: Waste
A19: 2021-01-01T08:59:00 | B19: 106.3 | C19: 2.7 | D19: 1.8 | E19: 7.2 | F19: 1.4 | G19: 0 | H19: 0.7 | I19: Waste
A20: 2021-01-01T09:29:00 | B20: 99 | C20: 3.2 | D20: 1.8 | E20: 7.7 | F20: 1.3 | G20: 0 | H20: 0.8 | I20: Waste
A21: 2021-01-01T09:59:00 | B21: 99.7 | C21: 8 | D21: 1.8 | E21: 7.6 | F21: 1.2 | G21: 0 | H21: 0.9 | I21: Waste
A22: 2021-01-01T10:29:00 | B22: 107 | C22: 73.1 | D22: 1.9 | E22: 8.1 | F22: 1.3 | G22: 0.5 | H22: 0.9 | I22: Waste
A23: 2021-01-01T10:59:00 | B23: 120.9< | C23: 0.1< | D23: 1.2< | E23: 9.6< | F23: 1.5< | G23: 0.0< | H23: 0.0< | I23: No waste
A24: 2021-01-01T11:29:00 | B24: 110.8< | C24: 0.1< | D24: 1.5< | E24: 11.1< | F24: 1.1< | G24: 0.0< | H24: 0.0< | I24: No waste
A25: 2021-01-01T11:59:00 | B25: 90 | C25: 0 | D25: 1.2 | E25: 9 | F25: 0.7 | G25: 0 | H25: 0 | I25: Waste
A26: 2021-01-01T12:29:00 | B26: 113.8 | C26: 2.2 | D26: 1.4 | E26: 10.1 | F26: 0.9 | G26: 0 | H26: 0.7 | I26: Waste
A27: 2021-01-01T12:59:00 | B27: 126.3< | C27: 25.8< | D27: 1.4< | E27: 5.9< | F27: 1.6< | G27: 0.1< | H27: 0.1< | I27: No waste
A28: 2021-01-01T13:29:00 | B28: 110.6< | C28: 0.0< | D28: 1.2< | E28: 6.6< | F28: 0.9< | G28: 0.0< | H28: 0.0< | I28: No waste
A29: 2021-01-01T13:59:00 | B29: 105.6 | C29: 3.4 | D29: 1.2 | E29: 10.9 | F29: 0.9 | G29: 0 | H29: 0.1 | I29: Waste
A30: 2021-01-01T14:29:00 | B30: 152.3 | C30: 64.5 | D30: 2.1 | E30: 11.4 | F30: 1.2 | G30: 1.7 | H30: 0.4 | I30: Waste
A31: 2021-01-01T14:59:00 | B31: 158.9< | C31: 24.4< | D31: 2.0< | E31: 5.9< | F31: 1.7< | G31: 0.3< | H31: 0.0< | I31: No waste
A32: 2021-01-01T15:29:00 | B32: 88.4 | C32: 0.1 | D32: 1.8 | E32: 8 | F32: 1 | G32: 0 | H32: 0 | I32: Waste
A33: 2021-01-01T15:59:00 | B33: 106.8 | C33: 5.3 | D33: 1.4 | E33: 10.4 | F33: 0.8 | G33: 0 | H33: 0.3 | I33: Waste
A34: 2021-01-01T16:29:00 | B34: 99.5 | C34: 3.2 | D34: 1.7 | E34: 7.6 | F34: 1.1 | G34: 0.1 | H34: 0.4 | I34: Waste
A35: 2021-01-01T16:59:00 | B35: 98.7 | C35: 5.8 | D35: 1.8 | E35: 7.3 | F35: 1.1 | G35: 0.1 | H35: 0.5 | I35: Waste
A36: 2021-01-01T17:29:00 | B36: 106.6 | C36: 9.6 | D36: 1.9 | E36: 7.8 | F36: 1.4 | G36: 0 | H36: 1.4 | I36: Waste
A37: 2021-01-01T17:59:00 | B37: 88.2 | C37: 5 | D37: 1.7 | E37: 7.8 | F37: 1.4 | G37: 0 | H37: 0.7 | I37: Waste
A38: 2021-01-01T18:29:00 | B38: 86.1 | C38: 3.2 | D38: 1.8 | E38: 7.6 | F38: 1.5 | G38: 0 | H38: 1.1 | I38: Waste
A39: 2021-01-01T18:59:00 | B39: 92.6 | C39: 21.6 | D39: 1.9 | E39: 7.9 | F39: 1.4 | G39: 0.2 | H39: 1.8 | I39: Waste
A40: 2021-01-01T19:29:00 | B40: 90.2 | C40: 19.4 | D40: 1.8 | E40: 8.9 | F40: 1.5 | G40: 0.1 | H40: 1.8 | I40: Waste
A41: 2021-01-01T19:59:00 | B41: 91.3 | C41: 7.6 | D41: 1.8 | E41: 8.2 | F41: 1.9 | G41: 0 | H41: 0.9 | I41: Waste
A42: 2021-01-01T20:29:00 | B42: 102.3 | C42: 5.4 | D42: 1.9 | E42: 7.9 | F42: 2.3 | G42: 0 | H42: 1.4 | I42: Waste
A43: 2021-01-01T20:59:00 | B43: 91.2 | C43: 1.7 | D43: 1.8 | E43: 7.8 | F43: 1.7 | G43: 0 | H43: 1.3 | I43: Waste
A44: 2021-01-01T21:29:00 | B44: 88.8 | C44: 2.3 | D44: 1.8 | E44: 7.4 | F44: 1.7 | G44: 0 | H44: 1.1 | I44: Waste
A45: 2021-01-01T21:59:00 | B45: 91.4 | C45: 4.4 | D45: 1.8 | E45: 8.4 | F45: 1.6 | G45: 0 | H45: 0.9 | I45: Waste
A46: 2021-01-01T22:29:00 | B46: 85.9 | C46: 1.9 | D46: 1.8 | E46: 9.1 | F46: 1.7 | G46: 0 | H46: 0.9 | I46: Waste
A47: 2021-01-01T22:59:00 | B47: 132.3< | C47: 127.4< | D47: 1.7< | E47: 9.4< | F47: 2.5< | G47: 2.5< | H47: 0.1< | I47: No waste
A48: 2021-01-01T23:29:00 | B48: 79.9 | C48: 1.9 | D48: 1.5 | E48: 9.7 | F48: 1.5 | G48: 0 | H48: 0 | I48: Waste
A49: 2021-01-01T23:59:00 | B49: 136.7 | C49: 8 | D49: 1.4 | E49: 14 | F49: 1.1 | G49: 0 | H49: 0.5 | I49: Waste
A50: 2021-01-02T00:29:00 | B50: 99.7 | C50: 2.1 | D50: 1.8 | E50: 7.3 | F50: 1.1 | G50: 0 | H50: 1.3 | I50: Waste
A51: 2021-01-02T00:59:00 | B51: 86.4 | C51: 1.9 | D51: 1.8 | E51: 8.9 | F51: 1.6 | G51: 0 | H51: 1.1 | I51: Waste
A52: 2021-01-02T01:29:00 | B52: 85.8 | C52: 1.8 | D52: 1.7 | E52: 8.9 | F52: 1.9 | G52: 0 | H52: 0.8 | I52: Waste
A53: 2021-01-02T01:59:00 | B53: 90.9 | C53: 1.7 | D53: 1.6 | E53: 8.6 | F53: 2 | G53: 0 | H53: 0.8 | I53: Waste
A54: 2021-01-02T02:29:00 | B54: 109.3 | C54: 4.2 | D54: 1.8 | E54: 9.5 | F54: 2 | G54: 0 | H54: 1 | I54: Waste
A55: 2021-01-02T02:59:00 | B55: 101.5 | C55: 3 | D55: 1.8 | E55: 8.2 | F55: 1.9 | G55: 0 | H55: 1.1 | I55: Waste
A56: 2021-01-02T03:29:00 | B56: 98.7 | C56: 5.4 | D56: 1.8 | E56: 7.8 | F56: 2.1 | G56: 0 | H56: 2.6 | I56: Waste
A57: 2021-01-02T03:59:00 | B57: 92.2 | C57: 24.7 | D57: 1.7 | E57: 7.1 | F57: 2 | G57: 0.1 | H57: 2.6 | I57: Waste
A58: 2021-01-02T04:29:00 | B58: 86.6 | C58: 3.2 | D58: 1.8 | E58: 7.7 | F58: 1.9 | G58: 0 | H58: 1.3 | I58: Waste
A59: 2021-01-02T04:59:00 | B59: 88.7 | C59: 5.3 | D59: 1.8 | E59: 7.6 | F59: 1.8 | G59: 0 | H59: 1.4 | I59: Waste
A60: 2021-01-02T05:29:00 | B60: 96.8 | C60: 5.3 | D60: 1.9 | E60: 9.2 | F60: 2 | G60: 0 | H60: 1.4 | I60: Waste
A61: 2021-01-02T05:59:00 | B61: 85.1 | C61: 4 | D61: 1.8 | E61: 7.6 | F61: 2.3 | G61: 0 | H61: 1.2 | I61: Waste
A62: 2021-01-02T06:29:00 | B62: 80.2 | C62: 2.8 | D62: 1.7 | E62: 7.4 | F62: 2.5 | G62: 0 | H62: 1.2 | I62: Waste
A63: 2021-01-02T06:59:00 | B63: 77 | C63: 4.8 | D63: 1.7 | E63: 7.6 | F63: 2.3 | G63: 0 | H63: 1.1 | I63: Waste
A64: 2021-01-02T07:29:00 | B64: 77 | C64: 8.2 | D64: 1.3 | E64: 8.1 | F64: 2 | G64: 0 | H64: 1 | I64: Waste
A65: 2021-01-02T07:59:00 | B65: 82.3 | C65: 2.3 | D65: 0.8 | E65: 8.7 | F65: 1.9 | G65: 0.2 | H65: 1 | I65: Waste
A66: 2021-01-02T08:29:00 | B66: 92.4 | C66: 4.5 | D66: 1.2 | E66: 8.5 | F66: 2.9 | G66: 0.3 | H66: 1.1 | I66: Waste
A67: 2021-01-02T08:59:00 | B67: 86.6 | C67: 2.6 | D67: 1.1 | E67: 7.3 | F67: 2.7 | G67: 0.2 | H67: 1 | I67: Waste
A68: 2021-01-02T09:29:00 | B68: 83.2 | C68: 6.1 | D68: 1.1 | E68: 7.7 | F68: 2.5 | G68: 0.2 | H68: 1 | I68: Waste
A69: 2021-01-02T09:59:00 | B69: 93.7 | C69: 2.1 | D69: 1.2 | E69: 8.8 | F69: 2.1 | G69: 0.2 | H69: 1 | I69: Waste
A70: 2021-01-02T10:29:00 | B70: 106.7 | C70: 20.4 | D70: 1.3 | E70: 8.2 | F70: 2.1 | G70: 0.3 | H70: 1.2 | I70: Waste
A71: 2021-01-02T10:59:00 | B71: 92.2 | C71: 3.3 | D71: 1.1 | E71: 6.5 | F71: 2.1 | G71: 0.2 | H71: 1.2 | I71: Waste
A72: 2021-01-02T11:29:00 | B72: 88.4 | C72: 5 | D72: 1.2 | E72: 6.1 | F72: 1.9 | G72: 0.2 | H72: 1.5 | I72: Waste
A73: 2021-01-02T11:59:00 | B73: 92.2 | C73: 2.4 | D73: 1.1 | E73: 7.9 | F73: 1.6 | G73: 0.2 | H73: 1.3 | I73: Waste
A74: 2021-01-02T12:29:00 | B74: 96.8 | C74: 2.7 | D74: 1.2 | E74: 10 | F74: 2.4 | G74: 0.3 | H74: 1.2 | I74: Waste
A75: 2021-01-02T12:59:00 | B75: 89.8 | C75: 2.8 | D75: 1.2 | E75: 7.4 | F75: 1.9 | G75: 0.2 | H75: 1 | I75: Waste
A76: 2021-01-02T13:29:00 | B76: 82.1 | C76: 1.9 | D76: 1.2 | E76: 7.1 | F76: 1.9 | G76: 0.2 | H76: 1.2 | I76: Waste
A77: 2021-01-02T13:59:00 | B77: 89.8 | C77: 2.4 | D77: 1.2 | E77: 7.9 | F77: 1.6 | G77: 0.2 | H77: 1.4 | I77: Waste
A78: 2021-01-02T14:29:00 | B78: 96.5 | C78: 5.5 | D78: 1.3 | E78: 8 | F78: 1.7 | G78: 0.3 | H78: 1.3 | I78: Waste
A79: 2021-01-02T14:59:00 | B79: 101.9 | C79: 24.1 | D79: 1.4 | E79: 8 | F79: 1.6 | G79: 0.8 | H79: 1.3 | I79: Waste
A80: 2021-01-02T15:29:00 | B80: 107.3 | C80: 9.4 | D80: 1.3 | E80: 7.9 | F80: 1.4 | G80: 0.3 | H80: 1.3 | I80: Waste
A81: 2021-01-02T15:59:00 | B81: 87.8 | C81: 8 | D81: 1.3 | E81: 7.8 | F81: 1.4 | G81: 0.3 | H81: 1.1 | I81: Waste
A82: 2021-01-02T16:29:00 | B82: 87.8 | C82: 1.9 | D82: 1.2 | E82: 8.4 | F82: 1.3 | G82: 0.2 | H82: 0.9 | I82: Waste
A83: 2021-01-02T16:59:00 | B83: 82.9 | C83: 3.1 | D83: 1.1 | E83: 6.2 | F83: 3.9 | G83: 0.2 | H83: 0.9 | I83: Waste
A84: 2021-01-02T17:29:00 | B84: 103.6 | C84: 3.1 | D84: 1.2 | E84: 5.6 | F84: 3.1 | G84: 0.3 | H84: 1.2 | I84: Waste
A85: 2021-01-02T17:59:00 | B85: 92.8 | C85: 11.3 | D85: 1.2 | E85: 5.7 | F85: 2.3 | G85: 0.3 | H85: 1 | I85: Waste
A86: 2021-01-02T18:29:00 | B86: 93.2 | C86: 1.5 | D86: 1.2 | E86: 6.3 | F86: 2 | G86: 0.3 | H86: 1.2 | I86: Waste
A87: 2021-01-02T18:59:00 | B87: 91.4 | C87: 3 | D87: 1.2 | E87: 7.2 | F87: 1.8 | G87: 0.3 | H87: 1 | I87: Waste
A88: 2021-01-02T19:29:00 | B88: 89 | C88: 2.4 | D88: 1.1 | E88: 8.1 | F88: 1.7 | G88: 0.3 | H88: 1 | I88: Waste
A89: 2021-01-02T19:59:00 | B89: 90.6 | C89: 2 | D89: 1.2 | E89: 8 | F89: 1.6 | G89: 0.3 | H89: 0.8 | I89: Waste
A90: 2021-01-02T20:29:00 | B90: 101.9 | C90: 3.9 | D90: 1.2 | E90: 7.2 | F90: 3.8 | G90: 0.3 | H90: 0.8 | I90: Waste
A91: 2021-01-02T20:59:00 | B91: 87.4 | C91: 2.8 | D91: 1 | E91: 3.9 | F91: 4.9 | G91: 0.3 | H91: 0.9 | I91: Waste
A92: 2021-01-02T21:29:00 | B92: 92.4 | C92: 1.3 | D92: 1 | E92: 3.4 | F92: 4.3 | G92: 0.3 | H92: 1.7 | I92: Waste
A93: 2021-01-02T21:59:00 | B93: 96.3 | C93: 2.8 | D93: 1.1 | E93: 3.3 | F93: 3.4 | G93: 0.3 | H93: 2 | I93: Waste
A94: 2021-01-02T22:29:00 | B94: 92.5 | C94: 1.5 | D94: 1.1 | E94: 3.5 | F94: 3 | G94: 0.3 | H94: 1.9 | I94: Waste
A95: 2021-01-02T22:59:00 | B95: 93.8 | C95: 3 | D95: 1.1 | E95: 3.6 | F95: 2.8 | G95: 0.3 | H95: 1.8 | I95: Waste
A96: 2021-01-02T23:29:00 | B96: 114.1 | C96: 5.9 | D96: 1.1 | E96: 4.4 | F96: 2.2 | G96: 0.3 | H96: 3.6 | I96: Waste
A97: 2021-01-02T23:59:00 | B97: 102.2 | C97: 2.1 | D97: 1.1 | E97: 4.3 | F97: 2 | G97: 0.4 | H97: 2 | I97: Waste
A98: 2021-01-03T00:29:00 | B98: 99.2 | C98: 1.3 | D98: 1.1 | E98: 4.7 | F98: 1.8 | G98: 0.5 | H98: 1.7 | I98: Waste
A99: 2021-01-03T00:59:00 | B99: 105.8 | C99: 1.8 | D99: 1.1 | E99: 5.3 | F99: 1.8 | G99: 0.3 | H99: 1.7 | I99: Waste
A100: 2021-01-03T01:29:00 | B100: 97.1 | C100: 4.9 | D100: 1.1 | E100: 5.6 | F100: 2 | G100: 0.2 | H100: 1.5 | I100: Waste
A101: 2021-01-03T01:59:00 | B101: 103.5 | C101: 2.1 | D101: 1.1 | E101: 6 | F101: 1.7 | G101: 0.2 | H101: 1.6 | I101: Waste
A102: 2021-01-03T02:29:00 | B102: 120.3 | C102: 2 | D102: 1.3 | E102: 7.3 | F102: 1.6 | G102: 0.3 | H102: 1.5 | I102: Waste
A103: 2021-01-03T02:59:00 | B103: 116.2 | C103: 6.8 | D103: 1.2 | E103: 6.5 | F103: 1.6 | G103: 0.3 | H103: 1.3 | I103: Waste
A104: 2021-01-03T03:29:00 | B104: 116.8 | C104: 3.4 | D104: 1.2 | E104: 5.8 | F104: 1.6 | G104: 0.3 | H104: 1.4 | I104: Waste
A105: 2021-01-03T03:59:00 | B105: 104.8 | C105: 2.4 | D105: 1.1 | E105: 5.6 | F105: 1.4 | G105: 0.2 | H105: 1.4 | I105: Waste
A106: 2021-01-03T04:29:00 | B106: 97.2 | C106: 4.2 | D106: 1.2 | E106: 5.9 | F106: 1.3 | G106: 0.2 | H106: 1.3 | I106: Waste
A107: 2021-01-03T04:59:00 | B107: 100.7 | C107: 1.8 | D107: 1.2 | E107: 6.6 | F107: 1.2 | G107: 0.2 | H107: 0.9 | I107: Waste
A108: 2021-01-03T05:29:00 | B108: 103.2 | C108: 2.7 | D108: 1.2 | E108: 7.7 | F108: 1.3 | G108: 0.2 | H108: 1.6 | I108: Waste
A109: 2021-01-03T05:59:00 | B109: 103.6 | C109: 1.8 | D109: 1.1 | E109: 6.3 | F109: 1.9 | G109: 0.2 | H109: 1 | I109: Waste
A110: 2021-01-03T06:29:00 | B110: 98.2 | C110: 2.4 | D110: 1.1 | E110: 4.9 | F110: 2.1 | G110: 0.2 | H110: 0.8 | I110: Waste
A111: 2021-01-03T06:59:00 | B111: 96.9 | C111: 1.6 | D111: 1.1 | E111: 5.2 | F111: 1.7 | G111: 0.2 | H111: 0.6 | I111: Waste
A112: 2021-01-03T07:29:00 | B112: 99.9 | C112: 1.6 | D112: 1.1 | E112: 5.9 | F112: 1.5 | G112: 0.2 | H112: 0.7 | I112: Waste
A113: 2021-01-03T07:59:00 | B113: 161.2< | C113: 125.5< | D113: 1.4< | E113: 6.2< | F113: 3.6< | G113: 1.0< | H113: 0.3< | I113: No waste
A114: 2021-01-03T08:29:00 | B114: 124.2< | C114: 0.0< | D114: 1.2< | E114: 8.2< | F114: 1.6< | G114: 0.3< | H114: 0.0< | I114: No waste
A115: 2021-01-03T08:59:00 | B115: 109.6< | C115: 0.0< | D115: 1.0< | E115: 8.7< | F115: 0.8< | G115: 0.2< | H115: 0.0< | I115: No waste
A116: 2021-01-03T09:29:00 | B116: 72.3 | C116: 0.1 | D116: 1.1 | E116: 9.1 | F116: 0.6 | G116: 0.2 | H116: 0 | I116: Waste
A117: 2021-01-03T09:59:00 | B117: 136.9 | C117: 6.4 | D117: 1.4 | E117: 9.9 | F117: 0.8 | G117: 0.1 | H117: 0.5 | I117: Waste
A118: 2021-01-03T10:29:00 | B118: 146.7 | C118: 3.9 | D118: 1.6 | E118: 7.7 | F118: 0.9 | G118: 0.1 | H118: 0.9 | I118: Waste
A119: 2021-01-03T10:59:00 | B119: 135.9 | C119: 3.4 | D119: 1.7 | E119: 7.6 | F119: 1 | G119: 0.1 | H119: 0.8 | I119: Waste
A120: 2021-01-03T11:29:00 | B120: 125.1 | C120: 6.2 | D120: 1.7 | E120: 7.9 | F120: 1 | G120: 0.1 | H120: 0.6 | I120: Waste
A121: 2021-01-03T11:59:00 | B121: 117.7 | C121: 17.6 | D121: 1.7 | E121: 7.5 | F121: 0.9 | G121: 0.2 | H121: 0.7 | I121: Waste
A122: 2021-01-03T12:29:00 | B122: 129.6 | C122: 2.8 | D122: 1.7 | E122: 5.3 | F122: 0.6 | G122: 0.1 | H122: 0.9 | I122: Waste
A123: 2021-01-03T12:59:00 | B123: 155 | C123: 1.1 | D123: 1.7 | E123: 5.6 | F123: 0.5 | G123: 0.1 | H123: 1.1 | I123: Waste
A124: 2021-01-03T13:29:00 | B124: 148.7 | C124: 2.8 | D124: 1.6 | E124: 7.1 | F124: 0.5 | G124: 0.1 | H124: 1.1 | I124: Waste
A125: 2021-01-03T13:59:00 | B125: 158.2 | C125: 1.6 | D125: 1.7 | E125: 7 | F125: 0.4 | G125: 0.1 | H125: 0.9 | I125: Waste
A126: 2021-01-03T14:29:00 | B126: 161.4 | C126: 3 | D126: 1.8 | E126: 7.6 | F126: 0.6 | G126: 0.1 | H126: 0.9 | I126: Waste
A127: 2021-01-03T14:59:00 | B127: 178.7 | C127: 0.8 | D127: 1.7 | E127: 6.1 | F127: 0.5 | G127: 0.1 | H127: 0.9 | I127: Waste
A128: 2021-01-03T15:29:00 | B128: 138 | C128: 7.5 | D128: 1.6 | E128: 7.5 | F128: 0.4 | G128: 0.1 | H128: 0.8 | I128: Waste
A129: 2021-01-03T15:59:00 | B129: 113.6 | C129: 8.5 | D129: 1.7 | E129: 7.9 | F129: 0.4 | G129: 0.1 | H129: 0.7 | I129: Waste
A130: 2021-01-03T16:29:00 | B130: 74.8 | C130: 5.9 | D130: 1.7 | E130: 7.4 | F130: 0.8 | G130: 0.1 | H130: 0.6 | I130: Waste
A131: 2021-01-03T16:59:00 | B131: 73.3 | C131: 5.5 | D131: 1.7 | E131: 8.2 | F131: 0.9 | G131: 0.1 | H131: 0.6 | I131: Waste
A132: 2021-01-03T17:29:00 | B132: 74.3 | C132: 25.2 | D132: 1.9 | E132: 8.1 | F132: 1.1 | G132: 0.6 | H132: 0.5 | I132: Waste
A133: 2021-01-03T17:59:00 | B133: 73.9 | C133: 7.6 | D133: 1.7 | E133: 7.5 | F133: 0.9 | G133: 0.1 | H133: 0.3 | I133: Waste
A134: 2021-01-03T18:29:00 | B134: 95.3 | C134: 0.8 | D134: 1.7 | E134: 7.2 | F134: 0.6 | G134: 0.1 | H134: 0.4 | I134: Waste
A135: 2021-01-03T18:59:00 | B135: 108.5 | C135: 2.6 | D135: 1.7 | E135: 7.5 | F135: 0.5 | G135: 0.1 | H135: 0.4 | I135: Waste
A136: 2021-01-03T19:29:00 | B136: 90.6 | C136: 2.7 | D136: 1.8 | E136: 7.7 | F136: 0.5 | G136: 0.1 | H136: 0.3 | I136: Waste
A137: 2021-01-03T19:59:00 | B137: 66 | C137: 7.6 | D137: 1.8 | E137: 8.3 | F137: 0.9 | G137: 0.3 | H137: 0.3 | I137: Waste
A138: 2021-01-03T20:29:00 | B138: 76.4 | C138: 38.9 | D138: 1.9 | E138: 7.4 | F138: 3.2 | G138: 2.8 | H138: 0.5 | I138: Waste
A139: 2021-01-03T20:59:00 | B139: 70.7 | C139: 2.4 | D139: 1.6 | E139: 5 | F139: 2.5 | G139: 0.1 | H139: 0.5 | I139: Waste
A140: 2021-01-03T21:29:00 | B140: 70.5 | C140: 7.5 | D140: 1.7 | E140: 4.7 | F140: 1.8 | G140: 0.6 | H140: 0.5 | I140: Waste
A141: 2021-01-03T21:59:00 | B141: 81.9 | C141: 2.1 | D141: 1.7 | E141: 5.2 | F141: 1.2 | G141: 0.1 | H141: 0.5 | I141: Waste
A142: 2021-01-03T22:29:00 | B142: 85.1 | C142: 1.2 | D142: 1.8 | E142: 6.3 | F142: 0.9 | G142: 0.1 | H142: 0.5 | I142: Waste
A143: 2021-01-03T22:59:00 | B143: 77.4 | C143: 2.3 | D143: 1.8 | E143: 7.4 | F143: 0.8 | G143: 0.1 | H143: 0.5 | I143: Waste
A144: 2021-01-03T23:29:00 | B144: 75.2 | C144: 3.1 | D144: 1.9 | E144: 8.1 | F144: 1.1 | G144: 0.1 | H144: 0.4 | I144: Waste
A145: 2021-01-03T23:59:00 | B145: 72.2 | C145: 2.8 | D145: 1.7 | E145: 7.8 | F145: 1.1 | G145: 0.1 | H145: 0.4 | I145: Waste
A146: 2021-01-04T00:29:00 | B146: 77 | C146: 2 | D146: 1.8 | E146: 7.8 | F146: 0.9 | G146: 0.1 | H146: 0.3 | I146: Waste
A147: 2021-01-04T00:59:00 | B147: 76.5 | C147: 2.7 | D147: 1.7 | E147: 8.3 | F147: 0.9 | G147: 0.1 | H147: 0.3 | I147: Waste
A148: 2021-01-04T01:29:00 | B148: 73.1 | C148: 5.9 | D148: 1.7 | E148: 7.6 | F148: 1 | G148: 0.2 | H148: 0.3 | I148: Waste
A149: 2021-01-04T01:59:00 | B149: 81.8 | C149: 7.5 | D149: 1.6 | E149: 5.6 | F149: 4 | G149: 0.4 | H149: 0.4 | I149: Waste
A150: 2021-01-04T02:29:00 | B150: 96.2 | C150: 1.5 | D150: 1.8 | E150: 4.9 | F150: 3.1 | G150: 0.1 | H150: 0.7 | I150: Waste
A151: 2021-01-04T02:59:00 | B151: 93.1 | C151: 3.7 | D151: 1.9 | E151: 4.6 | F151: 2.4 | G151: 0.1 | H151: 0.7 | I151: Waste
A152: 2021-01-04T03:29:00 | B152: 93.6 | C152: 1.7 | D152: 1.9 | E152: 4.1 | F152: 2 | G152: 0.1 | H152: 0.7 | I152: Waste
A153: 2021-01-04T03:59:00 | B153: 81.2 | C153: 1.5 | D153: 1.8 | E153: 3.8 | F153: 1.5 | G153: 0.1 | H153: 0.7 | I153: Waste
A154: 2021-01-04T04:29:00 | B154: 67.9 | C154: 1.9 | D154: 1.8 | E154: 4.2 | F154: 1.6 | G154: 0.1 | H154: 0.7 | I154: Waste
A155: 2021-01-04T04:59:00 | B155: 80.4 | C155: 2.5 | D155: 1.8 | E155: 5 | F155: 1.4 | G155: 0.1 | H155: 0.6 | I155: Waste
A156: 2021-01-04T05:29:00 | B156: 77.5 | C156: 2.9 | D156: 1.9 | E156: 6.5 | F156: 1.4 | G156: 0.1 | H156: 0.7 | I156: Waste
A157: 2021-01-04T05:59:00 | B157: 73 | C157: 2.4 | D157: 1.8 | E157: 6.4 | F157: 1 | G157: 0.1 | H157: 0.6 | I157: Waste
A158: 2021-01-04T06:29:00 | B158: 77.6 | C158: 2.2 | D158: 1.7 | E158: 6.3 | F158: 0.9 | G158: 0.1 | H158: 0.6 | I158: Waste
A159: 2021-01-04T06:59:00 | B159: 84 | C159: 2 | D159: 1.8 | E159: 6.5 | F159: 0.7 | G159: 0.1 | H159: 0.6 | I159: Waste
A160: 2021-01-04T07:29:00 | B160: 81.1 | C160: 2.2 | D160: 1.6 | E160: 7.2 | F160: 0.7 | G160: 0.1 | H160: 0.5 | I160: Waste
A161: 2021-01-04T07:59:00 | B161: 79.3 | C161: 3.1 | D161: 1.4 | E161: 7.5 | F161: 0.8 | G161: 0.1 | H161: 0.5 | I161: Waste
A162: 2021-01-04T08:29:00 | B162: 81.3 | C162: 3 | D162: 1.7 | E162: 8.2 | F162: 1.1 | G162: 0.1 | H162: 0.6 | I162: Waste
A163: 2021-01-04T08:59:00 | B163: 95.9 | C163: 2.5 | D163: 1.5 | E163: 7.4 | F163: 0.9 | G163: 0.1 | H163: 0.6 | I163: Waste
A164: 2021-01-04T09:29:00 | B164: 144.5 | C164: 2.3 | D164: 1.5 | E164: 7.4 | F164: 0.6 | G164: 0.1 | H164: 0.6 | I164: Waste
A165: 2021-01-04T09:59:00 | B165: 167.2 | C165: 2.4 | D165: 1.4 | E165: 6.9 | F165: 0.5 | G165: 0.1 | H165: 0.6 | I165: Waste
A166: 2021-01-04T10:29:00 | B166: 149.4 | C166: 3 | D166: 1.3 | E166: 4.9 | F166: 2.3 | G166: 0.1 | H166: 0.7 | I166: Waste
A167: 2021-01-04T10:59:00 | B167: 134.8 | C167: 3 | D167: 1.4 | E167: 4 | F167: 1.6 | G167: 0.2 | H167: 0.7 | I167: Waste
A168: 2021-01-04T11:29:00 | B168: 110.6 | C168: 4.7 | D168: 1.4 | E168: 4.3 | F168: 1.6 | G168: 0.1 | H168: 0.8 | I168: Waste
A169: 2021-01-04T11:59:00 | B169: 122.3 | C169: 6.9 | D169: 1.3 | E169: 4.4 | F169: 1 | G169: 0.1 | H169: 0.7 | I169: Waste
A170: 2021-01-04T12:29:00 | B170: 108.6 | C170: 1.2 | D170: 1.4 | E170: 4.3 | F170: 0.7 | G170: 0.1 | H170: 0.6 | I170: Waste
A171: 2021-01-04T12:59:00 | B171: 136.9 | C171: 2.1 | D171: 1.4 | E171: 5.1 | F171: 0.6 | G171: 0.1 | H171: 0.7 | I171: Waste
A172: 2021-01-04T13:29:00 | B172: 123 | C172: 2.9 | D172: 1.3 | E172: 6.2 | F172: 0.6 | G172: 0.1 | H172: 0.6 | I172: Waste
A173: 2021-01-04T13:59:00 | B173: 105.3 | C173: 3.1 | D173: 1.5 | E173: 7.4 | F173: 0.6 | G173: 0.1 | H173: 0.5 | I173: Waste
A174: 2021-01-04T14:29:00 | B174: 101.3 | C174: 3.5 | D174: 1.5 | E174: 7.4 | F174: 0.8 | G174: 0.1 | H174: 0.6 | I174: Waste
A175: 2021-01-04T14:59:00 | B175: 106 | C175: 6.2 | D175: 1.6 | E175: 6.1 | F175: 1.1 | G175: 0.2 | H175: 0.5 | I175: Waste
A176: 2021-01-04T15:29:00 | B176: 108.6 | C176: 3 | D176: 1.5 | E176: 7.2 | F176: 0.7 | G176: 0.1 | H176: 0.7 | I176: Waste
A177: 2021-01-04T15:59:00 | B177: 99.5 | C177: 2.5 | D177: 1.3 | E177: 8.8 | F177: 0.5 | G177: 0.2 | H177: 1 | I177: Waste
A178: 2021-01-04T16:29:00 | B178: 122.9 | C178: 0.9 | D178: 1.4 | E178: 6.4 | F178: 0.5 | G178: 0.1 | H178: 1 | I178: Waste
A179: 2021-01-04T16:59:00 | B179: 137.2 | C179: 0.8 | D179: 1.4 | E179: 7.2 | F179: 0.5 | G179: 0.1 | H179: 0.8 | I179: Waste
A180: 2021-01-04T17:29:00 | B180: 125 | C180: 1.2 | D180: 1.5 | E180: 7.2 | F180: 0.6 | G180: 0.1 | H180: 0.6 | I180: Waste
A181: 2021-01-04T17:59:00 | B181: 106.3 | C181: 2.3 | D181: 1.4 | E181: 7.8 | F181: 0.4 | G181: 0.1 | H181: 0.4 | I181: Waste
A182: 2021-01-04T18:29:00 | B182: 87.4 | C182: 1.7 | D182: 1.3 | E182: 8.1 | F182: 0.5 | G182: 0.1 | H182: 0.4 | I182: Waste
A183: 2021-01-04T18:59:00 | B183: 64.8 | C183: 1.8 | D183: 1.5 | E183: 7.3 | F183: 0.9 | G183: 0.1 | H183: 0.3 | I183: Waste
A184: 2021-01-04T19:29:00 | B184: 62 | C184: 1.8 | D184: 1.5 | E184: 8.2 | F184: 0.9 | G184: 0.1 | H184: 0.3 | I184: Waste
A185: 2021-01-04T19:59:00 | B185: 74.8 | C185: 8.2 | D185: 1.5 | E185: 7.5 | F185: 0.8 | G185: 0.4 | H185: 0.2 | I185: Waste
A186: 2021-01-04T20:29:00 | B186: 92.8 | C186: 2.9 | D186: 1.5 | E186: 7.9 | F186: 0.8 | G186: 0.1 | H186: 0.4 | I186: Waste
A187: 2021-01-04T20:59:00 | B187: 87.9 | C187: 2.1 | D187: 1.4 | E187: 8.5 | F187: 0.7 | G187: 0.1 | H187: 0.3 | I187: Waste
A188: 2021-01-04T21:29:00 | B188: 70.8 | C188: 1.7 | D188: 1.4 | E188: 7.4 | F188: 1 | G188: 0.1 | H188: 0.2 | I188: Waste
A189: 2021-01-04T21:59:00 | B189: 63.6 | C189: 1.9 | D189: 1.4 | E189: 7.6 | F189: 1 | G189: 0.1 | H189: 0.3 | I189: Waste
A190: 2021-01-04T22:29:00 | B190: 72.9 | C190: 2 | D190: 1.3 | E190: 5 | F190: 4.6 | G190: 0.1 | H190: 0.4 | I190: Waste
A191: 2021-01-04T22:59:00 | B191: 85.1 | C191: 1.3 | D191: 1.2 | E191: 3.3 | F191: 4.1 | G191: 0.1 | H191: 0.5 | I191: Waste
A192: 2021-01-04T23:29:00 | B192: 87.9 | C192: 2.7 | D192: 1.4 | E192: 3.4 | F192: 3.3 | G192: 0.1 | H192: 0.9 | I192: Waste
A193: 2021-01-04T23:59:00 | B193: 86.5 | C193: 1.2 | D193: 1.3 | E193: 3 | F193: 2 | G193: 0.1 | H193: 0.8 | I193: Waste
A194: 2021-01-05T00:29:00 | B194: 75.2 | C194: 2.2 | D194: 1.3 | E194: 3.2 | F194: 1.8 | G194: 0.1 | H194: 0.7 | I194: Waste
A195: 2021-01-05T00:59:00 | B195: 76.2 | C195: 2.5 | D195: 1.3 | E195: 3.4 | F195: 1.8 | G195: 0.1 | H195: 0.8 | I195: Waste
A196: 2021-01-05T01:29:00 | B196: 72.1 | C196: 3 | D196: 1.4 | E196: 3.5 | F196: 1.6 | G196: 0.1 | H196: 0.8 | I196: Waste
A197: 2021-01-05T01:59:00 | B197: 78.9 | C197: 2.7 | D197: 1.4 | E197: 3.9 | F197: 1.4 | G197: 0.1 | H197: 0.8 | I197: Waste
A198: 2021-01-05T02:29:00 | B198: 97.9 | C198: 1.5 | D198: 1.5 | E198: 4.8 | F198: 1.2 | G198: 0.1 | H198: 0.9 | I198: Waste
A199: 2021-01-05T02:59:00 | B199: 94 | C199: 5.6 | D199: 1.6 | E199: 4.4 | F199: 1.2 | G199: 0.3 | H199: 0.8 | I199: Waste
A200: 2021-01-05T03:29:00 | B200: 104.7 | C200: 2.1 | D200: 1.6 | E200: 4.2 | F200: 1.1 | G200: 0.1 | H200: 0.9 | I200: Waste
... 4300 more rows

Sheet 10m Mean (hidden)
A1: Date.Time | B1: NOx | C1: CO | D1: SO2 | E1: HCl | F1: NH3 | G1: TOC | H1: Dust | I1: Valid | M1: Valid | N1: Waste
A2: 2021-01-01T00:09:00 | B2: 103.1 | C2: 1.5 | D2: 1.5 | E2: 5 | F2: 2.8 | G2: 0 | H2: 1.1 | I2: Waste
A3: 2021-01-01T00:19:00 | B3: 92.3 | C3: 1.8 | D3: 1.6 | E3: 5.2 | F3: 2.9 | G3: 0 | H3: 0.9 | I3: Waste | M3: Row Labels | N3: Average of CO | O3: Max of CO
A4: 2021-01-01T00:29:00 | B4: 88.7 | C4: 1.8 | D4: 1.6 | E4: 5.3 | F4: 2.9 | G4: 0 | H4: 1 | I4: Waste | M4: Jan | N4: 6.04382764 | O4: 394.9
A5: 2021-01-01T00:39:00 | B5: 90.3 | C5: 2 | D5: 1.6 | E5: 5.3 | F5: 2.7 | G5: 0 | H5: 0.8 | I5: Waste | M5: Feb | N5: 8.339655847 | O5: 403.9
A6: 2021-01-01T00:49:00 | B6: 92.4 | C6: 2.3 | D6: 1.6 | E6: 5.7 | F6: 2.6 | G6: 0 | H6: 0.8 | I6: Waste | M6: Mar | N6: 5.038166567 | O6: 489.2
A7: 2021-01-01T00:59:00 | B7: 77.7 | C7: 3 | D7: 1.6 | E7: 5.8 | F7: 2.8 | G7: 0 | H7: 1.2 | I7: Waste | M7: Apr | N7: 5.927908903 | O7: 254
A8: 2021-01-01T01:09:00 | B8: 76.5 | C8: 3 | D8: 1.6 | E8: 5.7 | F8: 2.7 | G8: 0 | H8: 1.1 | I8: Waste | M8: May | N8: 11.39234958 | O8: 384.2
A9: 2021-01-01T01:19:00 | B9: 86.2 | C9: 2.4 | D9: 1.7 | E9: 5.8 | F9: 2.3 | G9: 0 | H9: 0.8 | I9: Waste | M9: Jun | N9: 0 | O9: 0
A10: 2021-01-01T01:29:00 | B10: 80.4 | C10: 2.2 | D10: 1.6 | E10: 6.2 | F10: 2.2 | G10: 0 | H10: 0.8 | I10: Waste | M10: Jul | N10: 6.421486643 | O10: 365
A11: 2021-01-01T01:39:00 | B11: 78.6 | C11: 2.3 | D11: 1.7 | E11: 6.3 | F11: 2.1 | G11: 0 | H11: 0.7 | I11: Waste | M11: Aug | N11: 4.458982036 | O11: 97
A12: 2021-01-01T01:49:00 | B12: 90.1 | C12: 1.8 | D12: 1.7 | E12: 6.3 | F12: 1.7 | G12: 0 | H12: 0.9 | I12: Waste | M12: Sep | N12: 4.716730622 | O12: 290.6
A13: 2021-01-01T01:59:00 | B13: 105 | C13: 2.9 | D13: 1.6 | E13: 6.5 | F13: 1.4 | G13: 0 | H13: 1.2 | I13: Waste | M13: Oct | N13: 7.62186452 | O13: 285.1
A14: 2021-01-01T02:09:00 | B14: 115.4 | C14: 2.1 | D14: 1.7 | E14: 7.3 | F14: 1.4 | G14: 0 | H14: 0.8 | I14: Waste | M14: Nov | N14: 0 | O14: 0
A15: 2021-01-01T02:19:00 | B15: 117 | C15: 1.6 | D15: 1.7 | E15: 7.5 | F15: 1.3 | G15: 0 | H15: 0.8 | I15: Waste | M15: Dec | N15: 3.035 | O15: 4.9
A16: 2021-01-01T02:29:00 | B16: 107.1 | C16: 1.7 | D16: 1.8 | E16: 7.8 | F16: 1.2 | G16: 0 | H16: 0.7 | I16: Waste
A17: 2021-01-01T02:39:00 | B17: 107.4 | C17: 1.6 | D17: 2 | E17: 7.4 | F17: 1.3 | G17: 0 | H17: 0.9 | I17: Waste
A18: 2021-01-01T02:49:00 | B18: 104.6 | C18: 1.5 | D18: 1.9 | E18: 6.7 | F18: 1.2 | G18: 0 | H18: 0.8 | I18: Waste
A19: 2021-01-01T02:59:00 | B19: 105.6 | C19: 7.9 | D19: 1.8 | E19: 6.7 | F19: 1.3 | G19: 0 | H19: 0.7 | I19: Waste
A20: 2021-01-01T03:09:00 | B20: 105.6 | C20: 1.5 | D20: 1.8 | E20: 6.6 | F20: 1.2 | G20: 0 | H20: 0.8 | I20: Waste
A21: 2021-01-01T03:19:00 | B21: 96.2 | C21: 3.9 | D21: 1.8 | E21: 6.8 | F21: 1.3 | G21: 0 | H21: 1.9 | I21: Waste
A22: 2021-01-01T03:29:00 | B22: 107.2 | C22: 1.4 | D22: 1.7 | E22: 6.5 | F22: 1.1 | G22: 0 | H22: 1.8 | I22: Waste
A23: 2021-01-01T03:39:00 | B23: 103.7 | C23: 11.2 | D23: 1.6 | E23: 6.5 | F23: 1 | G23: 0 | H23: 1.7 | I23: Waste
A24: 2021-01-01T03:49:00 | B24: 93.9 | C24: 1.7 | D24: 1.6 | E24: 6.7 | F24: 1 | G24: 0 | H24: 1.6 | I24: Waste
A25: 2021-01-01T03:59:00 | B25: 87.5 | C25: 45.4 | D25: 1.7 | E25: 7 | F25: 1.1 | G25: 0.2 | H25: 1.8 | I25: Waste
A26: 2021-01-01T04:09:00 | B26: 91.4 | C26: 6.7 | D26: 1.5 | E26: 6.8 | F26: 0.9 | G26: 0.1 | H26: 0.7 | I26: Waste
A27: 2021-01-01T04:19:00 | B27: 89.5 | C27: 2.2 | D27: 1.6 | E27: 7.3 | F27: 0.9 | G27: 0 | H27: 0.7 | I27: Waste
A28: 2021-01-01T04:29:00 | B28: 88.6 | C28: 10.5 | D28: 1.6 | E28: 7.4 | F28: 0.9 | G28: 0.1 | H28: 0.7 | I28: Waste
A29: 2021-01-01T04:39:00 | B29: 91.6 | C29: 4.2 | D29: 1.7 | E29: 8.2 | F29: 0.9 | G29: 0 | H29: 0.8 | I29: Waste
A30: 2021-01-01T04:49:00 | B30: 85.5 | C30: 2.5 | D30: 1.7 | E30: 7.1 | F30: 0.9 | G30: 0 | H30: 0.8 | I30: Waste
A31: 2021-01-01T04:59:00 | B31: 92.3 | C31: 3.5 | D31: 1.7 | E31: 7.2 | F31: 0.8 | G31: 0.1 | H31: 0.6 | I31: Waste
A32: 2021-01-01T05:09:00 | B32: 105.5 | C32: 6.6 | D32: 1.8 | E32: 7.8 | F32: 1.1 | G32: 0 | H32: 0.9 | I32: Waste
A33: 2021-01-01T05:19:00 | B33: 123.7 | C33: 2.4 | D33: 1.7 | E33: 8 | F33: 1.1 | G33: 0 | H33: 0.9 | I33: Waste
A34: 2021-01-01T05:29:00 | B34: 104.8 | C34: 10.2 | D34: 1.5 | E34: 7.8 | F34: 1 | G34: 0 | H34: 0.9 | I34: Waste
A35: 2021-01-01T05:39:00 | B35: 92.7 | C35: 1.7 | D35: 1.6 | E35: 7.6 | F35: 0.9 | G35: 0 | H35: 0.7 | I35: Waste
A36: 2021-01-01T05:49:00 | B36: 95.8 | C36: 2 | D36: 1.7 | E36: 7.5 | F36: 0.8 | G36: 0 | H36: 0.6 | I36: Waste
A37: 2021-01-01T05:59:00 | B37: 99.9 | C37: 1.9 | D37: 1.7 | E37: 8.1 | F37: 0.8 | G37: 0 | H37: 0.6 | I37: Waste
A38: 2021-01-01T06:09:00 | B38: 89.4 | C38: 18 | D38: 1.6 | E38: 8.3 | F38: 1 | G38: 0.1 | H38: 0.6 | I38: Waste
A39: 2021-01-01T06:19:00 | B39: 99.7 | C39: 2 | D39: 1.6 | E39: 8.3 | F39: 0.9 | G39: 0 | H39: 0.7 | I39: Waste
A40: 2021-01-01T06:29:00 | B40: 97.2 | C40: 9.9 | D40: 1.6 | E40: 8.7 | F40: 1 | G40: 0 | H40: 0.7 | I40: Waste
A41: 2021-01-01T06:39:00 | B41: 93.5 | C41: 4.1 | D41: 1.6 | E41: 9 | F41: 1 | G41: 0 | H41: 0.8 | I41: Waste
A42: 2021-01-01T06:49:00 | B42: 94.1 | C42: 3 | D42: 1.6 | E42: 8.5 | F42: 1.1 | G42: 0 | H42: 0.7 | I42: Waste
A43: 2021-01-01T06:59:00 | B43: 96.9 | C43: 2.9 | D43: 1.5 | E43: 7.2 | F43: 2.4 | G43: 0 | H43: 0.7 | I43: Waste
A44: 2021-01-01T07:09:00 | B44: 100.1 | C44: 6.4 | D44: 1.6 | E44: 6.2 | F44: 3.3 | G44: 0 | H44: 0.7 | I44: Waste
A45: 2021-01-01T07:19:00 | B45: 107.8 | C45: 2.3 | D45: 1.5 | E45: 5.7 | F45: 2.6 | G45: 0 | H45: 0.8 | I45: Waste
A46: 2021-01-01T07:29:00 | B46: 105.9 | C46: 2.1 | D46: 1.2 | E46: 5.3 | F46: 2.3 | G46: 0.1 | H46: 1.5 | I46: Waste
A47: 2021-01-01T07:39:00 | B47: 98.4 | C47: 2.6 | D47: 0.7 | E47: 5.2 | F47: 2.2 | G47: 0.1 | H47: 2.4 | I47: Waste
A48: 2021-01-01T07:49:00 | B48: 103.2 | C48: 1.1 | D48: 1.7 | E48: 5.7 | F48: 1.9 | G48: 0 | H48: 1.8 | I48: Waste
A49: 2021-01-01T07:59:00 | B49: 120.1 | C49: 3.9 | D49: 1.8 | E49: 5.8 | F49: 1.7 | G49: 0 | H49: 1.8 | I49: Waste
A50: 2021-01-01T08:09:00 | B50: 121.1 | C50: 2.6 | D50: 1.9 | E50: 7 | F50: 2 | G50: 0 | H50: 1.4 | I50: Waste
A51: 2021-01-01T08:19:00 | B51: 128.5 | C51: 3.1 | D51: 2 | E51: 7.5 | F51: 2 | G51: 0 | H51: 1.5 | I51: Waste
A52: 2021-01-01T08:29:00 | B52: 120.9 | C52: 7.3 | D52: 1.8 | E52: 7.2 | F52: 1.6 | G52: 0 | H52: 1.1 | I52: Waste
A53: 2021-01-01T08:39:00 | B53: 106.6 | C53: 1.8 | D53: 1.7 | E53: 7.1 | F53: 1.5 | G53: 0 | H53: 0.8 | I53: Waste
A54: 2021-01-01T08:49:00 | B54: 106.1 | C54: 1.8 | D54: 1.8 | E54: 7.2 | F54: 1.4 | G54: 0 | H54: 0.7 | I54: Waste
A55: 2021-01-01T08:59:00 | B55: 106.3 | C55: 4.4 | D55: 1.9 | E55: 7.4 | F55: 1.4 | G55: 0 | H55: 0.6 | I55: Waste
A56: 2021-01-01T09:09:00 | B56: 96.2 | C56: 3.6 | D56: 1.8 | E56: 7.7 | F56: 1.4 | G56: 0 | H56: 0.5 | I56: Waste
A57: 2021-01-01T09:19:00 | B57: 100.7 | C57: 1.5 | D57: 1.8 | E57: 7.7 | F57: 1.3 | G57: 0 | H57: 0.7 | I57: Waste
A58: 2021-01-01T09:29:00 | B58: 100 | C58: 4.5 | D58: 1.8 | E58: 7.8 | F58: 1.3 | G58: 0 | H58: 1.2 | I58: Waste
A59: 2021-01-01T09:39:00 | B59: 99 | C59: 8.8 | D59: 1.8 | E59: 8 | F59: 1.3 | G59: 0 | H59: 0.5 | I59: Waste
A60: 2021-01-01T09:49:00 | B60: 100.7 | C60: 2.1 | D60: 1.9 | E60: 7.3 | F60: 1.2 | G60: 0 | H60: 1.1 | I60: Waste
A61: 2021-01-01T09:59:00 | B61: 99.4 | C61: 12.9 | D61: 1.8 | E61: 7.3 | F61: 1.2 | G61: 0 | H61: 1 | I61: Waste
A62: 2021-01-01T10:09:00 | B62: 109.6 | C62: 1.8 | D62: 1.8 | E62: 7.7 | F62: 1.1 | G62: 0 | H62: 1 | I62: Waste
A63: 2021-01-01T10:19:00 | B63: 104.3 | C63: 144.4 | D63: 2 | E63: 8.6 | F63: 1.4 | G63: 0.9 | H63: 0.8 | I63: Waste
A64: 2021-01-01T10:29:00 | B64: 199.1< | C64: 315.4< | D64: 1.9< | E64: 9.0< | F64: 2.8< | G64: 1.4< | H64: 0.6< | I64: No waste
A65: 2021-01-01T10:39:00 | B65: 133.2< | C65: 0.2< | D65: 1.3< | E65: 9.1< | F65: 1.9< | G65: 0.1< | H65: 0.1< | I65: No waste
A66: 2021-01-01T10:49:00 | B66: 115.9< | C66: 0.0< | D66: 1.2< | E66: 9.8< | F66: 1.4< | G66: 0.0< | H66: 0.1< | I66: No waste
A67: 2021-01-01T10:59:00 | B67: 113.5< | C67: 0.0< | D67: 1.1< | E67: 9.9< | F67: 1.1< | G67: 0.0< | H67: 0.0< | I67: No waste
A68: 2021-01-01T11:09:00 | B68: 108.5< | C68: 0.2< | D68: 1.5< | E68: 12.0< | F68: 1.3< | G68: 0.1< | H68: 0.0< | I68: No waste
A69: 2021-01-01T11:19:00 | B69: 111.5< | C69: 0.0< | D69: 1.6< | E69: 11.8< | F69: 1.2< | G69: 0.1< | H69: 0.0< | I69: No waste
A70: 2021-01-01T11:29:00 | B70: 113.1< | C70: 0.0< | D70: 1.2< | E70: 8.7< | F70: 0.7< | G70: 0.0< | H70: 0.0< | I70: No waste
A71: 2021-01-01T11:39:00 | B71: 110.1 | C71: 0 | D71: 1.2 | E71: 9.2 | F71: 0.6 | G71: 0 | H71: 0 | I71: Waste
A72: 2021-01-01T11:49:00 | B72: 75.1 | C72: 0.1 | D72: 1.2 | E72: 8.7 | F72: 0.7 | G72: 0 | H72: 0 | I72: Waste
A73: 2021-01-01T11:59:00 | B73: 84.7 | C73: 0 | D73: 1.3 | E73: 9.1 | F73: 0.9 | G73: 0 | H73: 0 | I73: Waste
A74: 2021-01-01T12:09:00 | B74: 106.9 | C74: 1.2 | D74: 1.3 | E74: 9.7 | F74: 0.8 | G74: 0 | H74: 0.7 | I74: Waste
A75: 2021-01-01T12:19:00 | B75: 116.3 | C75: 2.2 | D75: 1.3 | E75: 9.8 | F75: 0.9 | G75: 0 | H75: 0.8 | I75: Waste
A76: 2021-01-01T12:29:00 | B76: 118.1 | C76: 3.2 | D76: 1.5 | E76: 10.7 | F76: 1 | G76: 0 | H76: 0.5 | I76: Waste
A77: 2021-01-01T12:39:00 | B77: 101.1 | C77: 164.5 | D77: 2 | E77: 7.7 | F77: 1.3 | G77: 0.5 | H77: 0.4 | I77: Waste
A78: 2021-01-01T12:49:00 | B78: 146.5< | C78: 54.3< | D78: 1.7< | E78: 6.1< | F78: 1.9< | G78: 0.1< | H78: 0.1< | I78: No waste
A79: 2021-01-01T12:59:00 | B79: 108.2< | C79: 0.0< | D79: 1.1< | E79: 5.8< | F79: 1.2< | G79: 0.0< | H79: 0.0< | I79: No waste
A80: 2021-01-01T13:09:00 | B80: 113.3< | C80: 0.0< | D80: 1.2< | E80: 6.5< | F80: 0.9< | G80: 0.0< | H80: 0.0< | I80: No waste
A81: 2021-01-01T13:19:00 | B81: 104.0< | C81: 0.0< | D81: 1.2< | E81: 7.0< | F81: 0.8< | G81: 0.0< | H81: 0.0< | I81: No waste
A82: 2021-01-01T13:29:00 | B82: 72.3 | C82: 0.1 | D82: 1.2 | E82: 7.8 | F82: 0.7 | G82: 0 | H82: 0 | I82: Waste
A83: 2021-01-01T13:39:00 | B83: 95.8 | C83: 0 | D83: 1.2 | E83: 8.3 | F83: 0.9 | G83: 0 | H83: 0 | I83: Waste
A84: 2021-01-01T13:49:00 | B84: 111.6 | C84: 1.5 | D84: 1.2 | E84: 10.7 | F84: 0.8 | G84: 0 | H84: 0.2 | I84: Waste
A85: 2021-01-01T13:59:00 | B85: 109.4 | C85: 8.7 | D85: 1.2 | E85: 13.6 | F85: 0.9 | G85: 0 | H85: 0.1 | I85: Waste
A86: 2021-01-01T14:09:00 | B86: 113.5 | C86: 6.1 | D86: 1.8 | E86: 17.8 | F86: 1.2 | G86: 0 | H86: 0.4 | I86: Waste
A87: 2021-01-01T14:19:00 | B87: 174.7 | C87: 28.7 | D87: 1.9 | E87: 9.6 | F87: 1.2 | G87: 0.1 | H87: 0.5 | I87: Waste
A88: 2021-01-01T14:29:00 | B88: 168.8 | C88: 158.7 | D88: 2.4 | E88: 6.8 | F88: 1.3 | G88: 5.1 | H88: 0.4 | I88: Waste
A89: 2021-01-01T14:39:00 | B89: 222.6 | C89: 121 | D89: 2.5 | E89: 5.8 | F89: 1.4 | G89: 0.4 | H89: 0.8 | I89: Waste
A90: 2021-01-01T14:49:00 | B90: 175.2< | C90: 38.1< | D90: 2.1< | E90: 6.0< | F90: 2.0< | G90: 0.4< | H90: 0.1< | I90: No waste
A91: 2021-01-01T14:59:00 | B91: 129.6< | C91: 0.0< | D91: 1.8< | E91: 5.8< | F91: 1.3< | G91: 0.0< | H91: 0.0< | I91: No waste
A92: 2021-01-01T15:09:00 | B92: 86.1 | C92: 0 | D92: 1.7 | E92: 7.9 | F92: 1 | G92: 0 | H92: 0 | I92: Waste
A93: 2021-01-01T15:19:00 | B93: 87.2 | C93: 0.3 | D93: 1.9 | E93: 8.4 | F93: 1 | G93: 0 | H93: 0 | I93: Waste
A94: 2021-01-01T15:29:00 | B94: 92 | C94: 0 | D94: 1.7 | E94: 7.7 | F94: 1 | G94: 0 | H94: 0 | I94: Waste
A95: 2021-01-01T15:39:00 | B95: 96.4 | C95: 2.3 | D95: 1.2 | E95: 8.5 | F95: 0.7 | G95: 0 | H95: 0.2 | I95: Waste
A96: 2021-01-01T15:49:00 | B96: 108.7 | C96: 13 | D96: 1.4 | E96: 10.8 | F96: 0.9 | G96: 0 | H96: 0.2 | I96: Waste
A97: 2021-01-01T15:59:00 | B97: 115.3 | C97: 0.7 | D97: 1.7 | E97: 11.9 | F97: 0.9 | G97: 0 | H97: 0.5 | I97: Waste
A98: 2021-01-01T16:09:00 | B98: 113.9 | C98: 2.9 | D98: 1.7 | E98: 8.2 | F98: 1 | G98: 0 | H98: 0.4 | I98: Waste
A99: 2021-01-01T16:19:00 | B99: 93.7 | C99: 2.5 | D99: 1.7 | E99: 7.2 | F99: 1.1 | G99: 0 | H99: 0.4 | I99: Waste
A100: 2021-01-01T16:29:00 | B100: 90.9 | C100: 4.3 | D100: 1.8 | E100: 7.4 | F100: 1.3 | G100: 0.3 | H100: 0.4 | I100: Waste
A101: 2021-01-01T16:39:00 | B101: 101 | C101: 11.8 | D101: 1.7 | E101: 7.2 | F101: 1.1 | G101: 0.2 | H101: 0.4 | I101: Waste
A102: 2021-01-01T16:49:00 | B102: 105.4 | C102: 1.8 | D102: 1.8 | E102: 7.3 | F102: 1.1 | G102: 0 | H102: 0.6 | I102: Waste
A103: 2021-01-01T16:59:00 | B103: 89.7 | C103: 3.8 | D103: 1.9 | E103: 7.2 | F103: 1.2 | G103: 0 | H103: 0.4 | I103: Waste
A104: 2021-01-01T17:09:00 | B104: 111.1 | C104: 11.3 | D104: 2 | E104: 7.7 | F104: 1.3 | G104: 0 | H104: 0.5 | I104: Waste
A105: 2021-01-01T17:19:00 | B105: 116.4 | C105: 14.1 | D105: 1.9 | E105: 7.9 | F105: 1.4 | G105: 0.1 | H105: 2.9 | I105: Waste
A106: 2021-01-01T17:29:00 | B106: 92.4 | C106: 3.3 | D106: 1.8 | E106: 7.7 | F106: 1.4 | G106: 0 | H106: 0.9 | I106: Waste
A107: 2021-01-01T17:39:00 | B107: 88.5 | C107: 4.8 | D107: 1.7 | E107: 7.7 | F107: 1.3 | G107: 0 | H107: 0.4 | I107: Waste
A108: 2021-01-01T17:49:00 | B108: 92.2 | C108: 6.4 | D108: 1.7 | E108: 7.8 | F108: 1.4 | G108: 0 | H108: 0.7 | I108: Waste
A109: 2021-01-01T17:59:00 | B109: 84 | C109: 3.9 | D109: 1.8 | E109: 7.9 | F109: 1.5 | G109: 0 | H109: 0.9 | I109: Waste
A110: 2021-01-01T18:09:00 | B110: 88.8 | C110: 4.3 | D110: 1.8 | E110: 7.9 | F110: 1.5 | G110: 0 | H110: 1.6 | I110: Waste
A111: 2021-01-01T18:19:00 | B111: 85.2 | C111: 3.1 | D111: 1.7 | E111: 7.7 | F111: 1.5 | G111: 0 | H111: 0.8 | I111: Waste
A112: 2021-01-01T18:29:00 | B112: 84.4 | C112: 2.4 | D112: 1.8 | E112: 7.2 | F112: 1.5 | G112: 0 | H112: 0.8 | I112: Waste
A113: 2021-01-01T18:39:00 | B113: 86.3 | C113: 58.4 | D113: 1.9 | E113: 7.3 | F113: 1.6 | G113: 0.6 | H113: 1.5 | I113: Waste
A114: 2021-01-01T18:49:00 | B114: 101.4 | C114: 3.6 | D114: 1.8 | E114: 7.9 | F114: 1.3 | G114: 0 | H114: 1.9 | I114: Waste
A115: 2021-01-01T18:59:00 | B115: 90.2 | C115: 3 | D115: 1.9 | E115: 8.6 | F115: 1.4 | G115: 0 | H115: 1.9 | I115: Waste
A116: 2021-01-01T19:09:00 | B116: 88.8 | C116: 1.9 | D116: 1.9 | E116: 8.7 | F116: 1.4 | G116: 0 | H116: 1.8 | I116: Waste
A117: 2021-01-01T19:19:00 | B117: 90 | C117: 5.3 | D117: 1.8 | E117: 9 | F117: 1.4 | G117: 0 | H117: 2.1 | I117: Waste
A118: 2021-01-01T19:29:00 | B118: 91.6 | C118: 51 | D118: 1.8 | E118: 9 | F118: 1.6 | G118: 0.2 | H118: 1.6 | I118: Waste
A119: 2021-01-01T19:39:00 | B119: 95.9 | C119: 3.3 | D119: 1.8 | E119: 9.1 | F119: 1.5 | G119: 0 | H119: 0.9 | I119: Waste
A120: 2021-01-01T19:49:00 | B120: 87.6 | C120: 11.9 | D120: 1.8 | E120: 8.1 | F120: 2.1 | G120: 0 | H120: 0.9 | I120: Waste
A121: 2021-01-01T19:59:00 | B121: 90.3 | C121: 7.5 | D121: 1.8 | E121: 7.4 | F121: 2 | G121: 0 | H121: 0.8 | I121: Waste
A122: 2021-01-01T20:09:00 | B122: 102.3 | C122: 5.9 | D122: 1.9 | E122: 8.3 | F122: 2.3 | G122: 0 | H122: 1 | I122: Waste
A123: 2021-01-01T20:19:00 | B123: 104.1 | C123: 7.6 | D123: 1.9 | E123: 8.3 | F123: 2.6 | G123: 0 | H123: 1.8 | I123: Waste
A124: 2021-01-01T20:29:00 | B124: 100.6 | C124: 2.6 | D124: 1.8 | E124: 7.1 | F124: 1.9 | G124: 0 | H124: 1.5 | I124: Waste
A125: 2021-01-01T20:39:00 | B125: 93.9 | C125: 1.6 | D125: 1.8 | E125: 7.5 | F125: 1.8 | G125: 0 | H125: 1.3 | I125: Waste
A126: 2021-01-01T20:49:00 | B126: 92.5 | C126: 1.9 | D126: 1.8 | E126: 7.8 | F126: 1.7 | G126: 0 | H126: 1.2 | I126: Waste
A127: 2021-01-01T20:59:00 | B127: 87.1 | C127: 1.6 | D127: 1.8 | E127: 8.1 | F127: 1.7 | G127: 0 | H127: 1.3 | I127: Waste
A128: 2021-01-01T21:09:00 | B128: 89.9 | C128: 2 | D128: 1.8 | E128: 7.9 | F128: 1.7 | G128: 0 | H128: 1.1 | I128: Waste
A129: 2021-01-01T21:19:00 | B129: 87.9 | C129: 2.2 | D129: 1.8 | E129: 7 | F129: 1.8 | G129: 0 | H129: 1 | I129: Waste
A130: 2021-01-01T21:29:00 | B130: 88.4 | C130: 2.7 | D130: 1.9 | E130: 7.4 | F130: 1.8 | G130: 0 | H130: 1.1 | I130: Waste
A131: 2021-01-01T21:39:00 | B131: 90.3 | C131: 2.3 | D131: 1.8 | E131: 7.9 | F131: 1.6 | G131: 0 | H131: 0.9 | I131: Waste
A132: 2021-01-01T21:49:00 | B132: 92.2 | C132: 9 | D132: 1.9 | E132: 8.5 | F132: 1.6 | G132: 0 | H132: 0.9 | I132: Waste
A133: 2021-01-01T21:59:00 | B133: 91.8 | C133: 2 | D133: 1.8 | E133: 8.8 | F133: 1.6 | G133: 0 | H133: 1 | I133: Waste
A134: 2021-01-01T22:09:00 | B134: 84.8 | C134: 2.1 | D134: 1.9 | E134: 9.2 | F134: 1.6 | G134: 0 | H134: 1 | I134: Waste
A135: 2021-01-01T22:19:00 | B135: 88.5 | C135: 1.9 | D135: 1.7 | E135: 9.2 | F135: 1.7 | G135: 0 | H135: 0.7 | I135: Waste
A136: 2021-01-01T22:29:00 | B136: 83.6 | C136: 1.7 | D136: 1.7 | E136: 8.8 | F136: 1.9 | G136: 0 | H136: 0.8 | I136: Waste
A137: 2021-01-01T22:39:00 | B137: 210.2< | C137: 381.8< | D137: 2.7< | E137: 12.2< | F137: 4.0< | G137: 7.4< | H137: 0.2< | I137: No waste
A138: 2021-01-01T22:49:00 | B138: 85.0< | C138: 0.2< | D138: 1.2< | E138: 7.9< | F138: 1.9< | G138: 0.0< | H138: 0.0< | I138: No waste
A139: 2021-01-01T22:59:00 | B139: 101.8< | C139: 0.1< | D139: 1.1< | E139: 8.1< | F139: 1.5< | G139: 0.0< | H139: 0.0< | I139: No waste
A140: 2021-01-01T23:09:00 | B140: 104.0< | C140: 0.3< | D140: 1.4< | E140: 9.4< | F140: 1.4< | G140: 0.1< | H140: 0.0< | I140: No waste
A141: 2021-01-01T23:19:00 | B141: 73.4 | C141: 0.4 | D141: 1.6 | E141: 9.5 | F141: 1.4 | G141: 0 | H141: 0 | I141: Waste
A142: 2021-01-01T23:29:00 | B142: 73.3 | C142: 4.2 | D142: 1.4 | E142: 9.6 | F142: 1.6 | G142: 0 | H142: 0.1 | I142: Waste
A143: 2021-01-01T23:39:00 | B143: 113.9 | C143: 16 | D143: 1.2 | E143: 12 | F143: 1.4 | G143: 0 | H143: 0.1 | I143: Waste
A144: 2021-01-01T23:49:00 | B144: 130.1 | C144: 6.8 | D144: 1.4 | E144: 18.5 | F144: 1.2 | G144: 0 | H144: 0.6 | I144: Waste
A145: 2021-01-01T23:59:00 | B145: 166 | C145: 1 | D145: 1.7 | E145: 11.4 | F145: 0.9 | G145: 0 | H145: 0.8 | I145: Waste
A146: 2021-01-02T00:09:00 | B146: 108.5 | C146: 1.6 | D146: 1.7 | E146: 7.5 | F146: 0.9 | G146: 0 | H146: 1.1 | I146: Waste
A147: 2021-01-02T00:19:00 | B147: 105.5 | C147: 2.7 | D147: 1.7 | E147: 7.1 | F147: 1.1 | G147: 0 | H147: 1.5 | I147: Waste
A148: 2021-01-02T00:29:00 | B148: 85.1 | C148: 2 | D148: 1.8 | E148: 7.4 | F148: 1.4 | G148: 0 | H148: 1.3 | I148: Waste
A149: 2021-01-02T00:39:00 | B149: 89.6 | C149: 1.8 | D149: 1.9 | E149: 8.5 | F149: 1.4 | G149: 0 | H149: 1 | I149: Waste
A150: 2021-01-02T00:49:00 | B150: 83.9 | C150: 1.8 | D150: 1.8 | E150: 9.1 | F150: 1.6 | G150: 0 | H150: 1.1 | I150: Waste
A151: 2021-01-02T00:59:00 | B151: 85.6 | C151: 2.1 | D151: 1.8 | E151: 9 | F151: 1.7 | G151: 0 | H151: 1 | I151: Waste
A152: 2021-01-02T01:09:00 | B152: 84.5 | C152: 1.7 | D152: 1.7 | E152: 8.9 | F152: 1.7 | G152: 0 | H152: 0.6 | I152: Waste
A153: 2021-01-02T01:19:00 | B153: 92.5 | C153: 1.7 | D153: 1.7 | E153: 9 | F153: 1.8 | G153: 0 | H153: 0.8 | I153: Waste
A154: 2021-01-02T01:29:00 | B154: 80.5 | C154: 2.1 | D154: 1.7 | E154: 8.8 | F154: 2.1 | G154: 0 | H154: 0.8 | I154: Waste
A155: 2021-01-02T01:39:00 | B155: 91.1 | C155: 1.9 | D155: 1.7 | E155: 8.4 | F155: 2 | G155: 0 | H155: 0.8 | I155: Waste
A156: 2021-01-02T01:49:00 | B156: 91.6 | C156: 1.4 | D156: 1.6 | E156: 8.7 | F156: 2 | G156: 0 | H156: 0.8 | I156: Waste
A157: 2021-01-02T01:59:00 | B157: 89.9 | C157: 1.7 | D157: 1.7 | E157: 8.7 | F157: 2.1 | G157: 0 | H157: 0.7 | I157: Waste
A158: 2021-01-02T02:09:00 | B158: 109 | C158: 2.1 | D158: 1.8 | E158: 9.6 | F158: 2.1 | G158: 0 | H158: 1.1 | I158: Waste
A159: 2021-01-02T02:19:00 | B159: 112.9 | C159: 2.5 | D159: 1.8 | E159: 9.4 | F159: 1.9 | G159: 0 | H159: 1.1 | I159: Waste
A160: 2021-01-02T02:29:00 | B160: 105.9 | C160: 8.1 | D160: 1.9 | E160: 9.5 | F160: 2 | G160: 0 | H160: 0.9 | I160: Waste
A161: 2021-01-02T02:39:00 | B161: 100.8 | C161: 3.7 | D161: 1.9 | E161: 8.6 | F161: 2 | G161: 0 | H161: 0.8 | I161: Waste
A162: 2021-01-02T02:49:00 | B162: 104.4 | C162: 2.5 | D162: 1.8 | E162: 8.1 | F162: 1.8 | G162: 0 | H162: 0.9 | I162: Waste
A163: 2021-01-02T02:59:00 | B163: 99.3 | C163: 2.6 | D163: 1.8 | E163: 8 | F163: 1.9 | G163: 0 | H163: 1.7 | I163: Waste
A164: 2021-01-02T03:09:00 | B164: 94.7 | C164: 4 | D164: 2 | E164: 8 | F164: 2.2 | G164: 0 | H164: 2.4 | I164: Waste
A165: 2021-01-02T03:19:00 | B165: 94.8 | C165: 6.2 | D165: 1.8 | E165: 7.7 | F165: 2.2 | G165: 0 | H165: 2.7 | I165: Waste
A166: 2021-01-02T03:29:00 | B166: 106.4 | C166: 5.9 | D166: 1.7 | E166: 7.6 | F166: 1.9 | G166: 0.1 | H166: 2.8 | I166: Waste
A167: 2021-01-02T03:39:00 | B167: 99.3 | C167: 58.3 | D167: 1.7 | E167: 7.2 | F167: 2 | G167: 0.3 | H167: 2.9 | I167: Waste
A168: 2021-01-02T03:49:00 | B168: 91.9 | C168: 3.6 | D168: 1.7 | E168: 7.1 | F168: 2 | G168: 0 | H168: 2.7 | I168: Waste
A169: 2021-01-02T03:59:00 | B169: 85.4 | C169: 12.3 | D169: 1.7 | E169: 7 | F169: 2.1 | G169: 0 | H169: 2.1 | I169: Waste
A170: 2021-01-02T04:09:00 | B170: 88.6 | C170: 2.8 | D170: 1.8 | E170: 7.2 | F170: 1.9 | G170: 0 | H170: 1 | I170: Waste
A171: 2021-01-02T04:19:00 | B171: 86.1 | C171: 2.9 | D171: 1.7 | E171: 7.8 | F171: 1.9 | G171: 0 | H171: 1.4 | I171: Waste
A172: 2021-01-02T04:29:00 | B172: 85 | C172: 4 | D172: 1.8 | E172: 8.2 | F172: 1.9 | G172: 0 | H172: 1.4 | I172: Waste
A173: 2021-01-02T04:39:00 | B173: 90.9 | C173: 9.6 | D173: 1.7 | E173: 7.3 | F173: 1.8 | G173: 0 | H173: 1.7 | I173: Waste
A174: 2021-01-02T04:49:00 | B174: 87.1 | C174: 3.7 | D174: 1.8 | E174: 7.6 | F174: 1.8 | G174: 0 | H174: 1 | I174: Waste
A175: 2021-01-02T04:59:00 | B175: 88 | C175: 2.7 | D175: 1.9 | E175: 8.1 | F175: 1.8 | G175: 0 | H175: 1.5 | I175: Waste
A176: 2021-01-02T05:09:00 | B176: 97 | C176: 8.9 | D176: 2 | E176: 9.5 | F176: 2 | G176: 0 | H176: 1.4 | I176: Waste
A177: 2021-01-02T05:19:00 | B177: 100 | C177: 3.1 | D177: 2 | E177: 9.8 | F177: 2 | G177: 0 | H177: 1.5 | I177: Waste
A178: 2021-01-02T05:29:00 | B178: 93.5 | C178: 4.1 | D178: 1.7 | E178: 8.3 | F178: 1.9 | G178: 0 | H178: 1.2 | I178: Waste
A179: 2021-01-02T05:39:00 | B179: 89.3 | C179: 3 | D179: 1.8 | E179: 7.9 | F179: 2.2 | G179: 0 | H179: 1.2 | I179: Waste
A180: 2021-01-02T05:49:00 | B180: 85.2 | C180: 3.7 | D180: 1.8 | E180: 7.5 | F180: 2.3 | G180: 0 | H180: 1.1 | I180: Waste
A181: 2021-01-02T05:59:00 | B181: 80.8 | C181: 5.2 | D181: 1.7 | E181: 7.4 | F181: 2.5 | G181: 0 | H181: 1.3 | I181: Waste
A182: 2021-01-02T06:09:00 | B182: 78.7 | C182: 2.4 | D182: 1.6 | E182: 7.3 | F182: 2.5 | G182: 0 | H182: 1.3 | I182: Waste
A183: 2021-01-02T06:19:00 | B183: 81.6 | C183: 2.6 | D183: 1.7 | E183: 7.7 | F183: 2.5 | G183: 0 | H183: 1.1 | I183: Waste
A184: 2021-01-02T06:29:00 | B184: 80.4 | C184: 3.4 | D184: 1.7 | E184: 7.2 | F184: 2.5 | G184: 0 | H184: 1.2 | I184: Waste
A185: 2021-01-02T06:39:00 | B185: 79.3 | C185: 3.8 | D185: 1.7 | E185: 7.5 | F185: 2.4 | G185: 0 | H185: 1 | I185: Waste
A186: 2021-01-02T06:49:00 | B186: 73.5 | C186: 8.9 | D186: 1.7 | E186: 7.6 | F186: 2.4 | G186: 0 | H186: 1.2 | I186: Waste
A187: 2021-01-02T06:59:00 | B187: 78.2 | C187: 1.7 | D187: 1.7 | E187: 7.7 | F187: 2.1 | G187: 0 | H187: 1 | I187: Waste
A188: 2021-01-02T07:09:00 | B188: 76.2 | C188: 2.6 | D188: 1.7 | E188: 8.1 | F188: 2.1 | G188: 0 | H188: 1 | I188: Waste
A189: 2021-01-02T07:19:00 | B189: 77.7 | C189: 2.9 | D189: 1.7 | E189: 8.3 | F189: 2 | G189: 0 | H189: 1 | I189: Waste
A190: 2021-01-02T07:29:00 | B190: 77.2 | C190: 19 | D190: 0.5 | E190: 7.9 | F190: 2.1 | G190: 0.1 | H190: 1.1 | I190: Waste
A191: 2021-01-02T07:39:00 | B191: 81.8 | C191: 2.6 | D191: 0.2 | E191: 7.6 | F191: 1.8 | G191: 0.2 | H191: 1.1 | I191: Waste
A192: 2021-01-02T07:49:00 | B192: 83.9 | C192: 2.3 | D192: 1 | E192: 9.2 | F192: 1.8 | G192: 0.2 | H192: 1.1 | I192: Waste
A193: 2021-01-02T07:59:00 | B193: 81.3 | C193: 2.1 | D193: 1.1 | E193: 9.3 | F193: 2 | G193: 0.2 | H193: 0.9 | I193: Waste
A194: 2021-01-02T08:09:00 | B194: 89.7 | C194: 2.3 | D194: 1.3 | E194: 9.1 | F194: 2.9 | G194: 0.2 | H194: 1 | I194: Waste
A195: 2021-01-02T08:19:00 | B195: 99.5 | C195: 9.6 | D195: 1.2 | E195: 8.9 | F195: 3.1 | G195: 0.4 | H195: 1.3 | I195: Waste
A196: 2021-01-02T08:29:00 | B196: 88.1 | C196: 1.5 | D196: 1.1 | E196: 7.4 | F196: 2.7 | G196: 0.2 | H196: 1.1 | I196: Waste
A197: 2021-01-02T08:39:00 | B197: 82 | C197: 2.3 | D197: 1.2 | E197: 7.4 | F197: 2.7 | G197: 0.2 | H197: 1.1 | I197: Waste
A198: 2021-01-02T08:49:00 | B198: 93.4 | C198: 2 | D198: 1.2 | E198: 7.5 | F198: 2.5 | G198: 0.2 | H198: 1.1 | I198: Waste
A199: 2021-01-02T08:59:00 | B199: 84.4 | C199: 3.5 | D199: 1.1 | E199: 7.1 | F199: 2.7 | G199: 0.2 | H199: 1 | I199: Waste
A200: 2021-01-02T09:09:00 | B200: 83.4 | C200: 3.5 | D200: 1.2 | E200: 7.4 | F200: 2.7 | G200: 0.2 | H200: 0.9 | I200: Waste
... 4300 more rows

Sheet CO 95%ile (hidden)
A1: Date | B1: CO 95%ile
A2: 2021-01-01 | B2: 28.7 | E2: Row Labels | F2: Max of CO 95%ile
A3: 2021-01-02 | B3: 13 | E3: Jan | F3: 67.2
A4: 2021-01-03 | B4: 17.5 | E4: Feb | F4: 121.8
A5: 2021-01-04 | B5: 5.6 | E5: Mar | F5: 70
A6: 2021-01-05 | B6: 33.6 | E6: Apr | F6: 65.1
A7: 2021-01-06 | B7: 23.7 | E7: May | F7: 81.1
A8: 2021-01-07 | B8: 24.2 | E8: Jun | F8: 0
A9: 2021-01-08 | B9: 12.7 | E9: Jul | F9: 62
A10: 2021-01-09 | B10: 18.2 | E10: Aug | F10: 21.5
A11: 2021-01-10 | B11: 6.4 | E11: Sep | F11: 36.1
A12: 2021-01-11 | B12: 11.5 | E12: Oct | F12: 91.7
A13: 2021-01-12 | B13: 8.5 | E13: Nov | F13: 0
A14: 2021-01-13 | B14: 12.5 | E14: Dec | F14: 4.9
A15: 2021-01-14 | B15: 8.2
A16: 2021-01-15 | B16: 22.9
A17: 2021-01-16 | B17: 10.7
A18: 2021-01-17 | B18: 10.8
A19: 2021-01-18 | B19: 8.8
A20: 2021-01-19 | B20: 67.2
A21: 2021-01-20
A22: 2021-01-21
A23: 2021-01-22
A24: 2021-01-23
A25: 2021-01-24
A26: 2021-01-25
A27: 2021-01-26
A28: 2021-01-27
A29: 2021-01-28
A30: 2021-01-29
A31: 2021-01-30
A32: 2021-01-31
A33: 2021-02-01
A34: 2021-02-02 | B34: 7
A35: 2021-02-03 | B35: 6.6
A36: 2021-02-04
A37: 2021-02-05 | B37: 10.3
A38: 2021-02-06 | B38: 10.2
A39: 2021-02-07 | B39: 36.5
A40: 2021-02-08 | B40: 121.8
A41: 2021-02-09 | B41: 99.6
A42: 2021-02-10 | B42: 13.8
A43: 2021-02-11 | B43: 3.9
A44: 2021-02-12 | B44: 9.6
A45: 2021-02-13 | B45: 9.4
A46: 2021-02-14
A47: 2021-02-15
A48: 2021-02-16
A49: 2021-02-17 | B49: 44.1
A50: 2021-02-18 | B50: 6.3
A51: 2021-02-19 | B51: 9.7
A52: 2021-02-20 | B52: 121.6
A53: 2021-02-21 | B53: 56.7
A54: 2021-02-22 | B54: 98.6
A55: 2021-02-23 | B55: 68.3
A56: 2021-02-24 | B56: 25.1
A57: 2021-02-25 | B57: 28.4
A58: 2021-02-26 | B58: 11.9
A59: 2021-02-27 | B59: 10.3
A60: 2021-02-28 | B60: 14.9
A61: 2021-03-01 | B61: 6.4
A62: 2021-03-02 | B62: 26.3
A63: 2021-03-03 | B63: 4
A64: 2021-03-04 | B64: 2.4
A65: 2021-03-05 | B65: 4.4
A66: 2021-03-06 | B66: 4.9
A67: 2021-03-07 | B67: 4.2
A68: 2021-03-08 | B68: 3.4
A69: 2021-03-09 | B69: 3.7
A70: 2021-03-10 | B70: 4.2
A71: 2021-03-11 | B71: 7.1
A72: 2021-03-12 | B72: 15.3
A73: 2021-03-13 | B73: 16.8
A74: 2021-03-14
A75: 2021-03-15
A76: 2021-03-16
A77: 2021-03-17 | B77: 2
A78: 2021-03-18 | B78: 68.7
A79: 2021-03-19 | B79: 70
A80: 2021-03-20 | B80: 13.4
A81: 2021-03-21 | B81: 27.9
A82: 2021-03-22 | B82: 15
A83: 2021-03-23 | B83: 18.1
A84: 2021-03-24 | B84: 12.3
A85: 2021-03-25 | B85: 8.9
A86: 2021-03-26 | B86: 3.6
A87: 2021-03-27 | B87: 36.9
A88: 2021-03-28 | B88: 3.8
A89: 2021-03-29
A90: 2021-03-30
A91: 2021-03-31
A92: 2021-04-01
A93: 2021-04-02
A94: 2021-04-03
A95: 2021-04-04
A96: 2021-04-05 | B96: 20.5
A97: 2021-04-06 | B97: 4
A98: 2021-04-07 | B98: 6.8
A99: 2021-04-08 | B99: 9.6
A100: 2021-04-09 | B100: 6.2
A101: 2021-04-10 | B101: 4.6
A102: 2021-04-11
A103: 2021-04-12
A104: 2021-04-13
A105: 2021-04-14
A106: 2021-04-15
A107: 2021-04-16
A108: 2021-04-17
A109: 2021-04-18 | B109: 4.1
A110: 2021-04-19 | B110: 13.1
A111: 2021-04-20 | B111: 10.6
A112: 2021-04-21 | B112: 18
A113: 2021-04-22 | B113: 17.4
A114: 2021-04-23 | B114: 16.6
A115: 2021-04-24 | B115: 29.6
A116: 2021-04-25 | B116: 22.3
A117: 2021-04-26 | B117: 25.3
A118: 2021-04-27 | B118: 34
A119: 2021-04-28 | B119: 4.5
A120: 2021-04-29 | B120: 55.4
A121: 2021-04-30 | B121: 65.1
A122: 2021-05-01 | B122: 38
A123: 2021-05-02 | B123: 22.9
A124: 2021-05-03 | B124: 78.3
A125: 2021-05-04 | B125: 53
A126: 2021-05-05 | B126: 61.9
A127: 2021-05-06 | B127: 22.7
A128: 2021-05-07 | B128: 31.9
A129: 2021-05-08 | B129: 32.8
A130: 2021-05-09 | B130: 65
A131: 2021-05-10 | B131: 69.4
A132: 2021-05-11 | B132: 69.2
A133: 2021-05-12 | B133: 81.1
A134: 2021-05-13 | B134: 48.3
A135: 2021-05-14 | B135: 15.8
A136: 2021-05-15 | B136: 49.5
A137: 2021-05-16 | B137: 38.5
A138: 2021-05-17 | B138: 39.3
A139: 2021-05-18 | B139: 63.3
A140: 2021-05-19 | B140: 43.1
A141: 2021-05-20 | B141: 30.6
A142: 2021-05-21 | B142: 30.6
A143: 2021-05-22 | B143: 40
A144: 2021-05-23 | B144: 38.9
A145: 2021-05-24 | B145: 39.2
A146: 2021-05-25 | B146: 17.5
A147: 2021-05-26 | B147: 11
A148: 2021-05-27 | B148: 10.5
A149: 2021-05-28 | B149: 15.8
A150: 2021-05-29 | B150: 31.2
A151: 2021-05-30 | B151: 13.5
A152: 2021-05-31
A153: 2021-06-01
A154: 2021-06-02
A155: 2021-06-03
A156: 2021-06-04
A157: 2021-06-05
A158: 2021-06-06
A159: 2021-06-07
A160: 2021-06-08
A161: 2021-06-09
A162: 2021-06-10
A163: 2021-06-11
A164: 2021-06-12
A165: 2021-06-13
A166: 2021-06-14
A167: 2021-06-15
A168: 2021-06-16
A169: 2021-06-17
A170: 2021-06-18
A171: 2021-06-19
A172: 2021-06-20
A173: 2021-06-21
A174: 2021-06-22
A175: 2021-06-23
A176: 2021-06-24
A177: 2021-06-25
A178: 2021-06-26
A179: 2021-06-27
A180: 2021-06-28
A181: 2021-06-29
A182: 2021-06-30
A183: 2021-07-01
A184: 2021-07-02
A185: 2021-07-03
A186: 2021-07-04
A187: 2021-07-05
A188: 2021-07-06
A189: 2021-07-07
A190: 2021-07-08
A191: 2021-07-09
A192: 2021-07-10
A193: 2021-07-11
A194: 2021-07-12
A195: 2021-07-13
A196: 2021-07-14
A197: 2021-07-15 | B197: 3.1
A198: 2021-07-16
A199: 2021-07-17 | B199: 16.3
A200: 2021-07-18 | B200: 25.8
... 166 more rows
